Workbook

Sheet Basic Data
B2: OVERVIEW OF METHODOLOGY:
A3: 1 | B3: Review Local Limits policy, spreadsheet instructions, & coordinate plan w/ Ecology
A4: 2 | B4: Enter the basic information on this sheet in this color cell | D4: <- And Click on Checkboxes to select Pollutants for Analysis
A5: 3 | B5: Enter Monitoring Data (inf, primary eff, final eff & sludge) in "Sample Data" | D5: <- Data should be this color cell
A6: 4 | B6: Enter ave ambient & industrial pollutant levels in "Sample Data" rows 9&10 | D6: <- The spreadsheet DOES NOT average ambient and industrial concentrations for you
A7: 5 | B7: Review the information for each pollutant to ensure the data makes sense
A8: 6 | B8: Adjust the analysis methods in "Local Limits" to reflect pollutant specific decisions
A9: 7 | B9: Enter Data in the "Conventional Poll Tool" tab for BOD, TSS, and Ammonia (example)
A10: 8 | B10: Evaluate appropriate limits for toxic-explosive pollutants which may be discharged
A11: 9 | B11: Compile limits & send this spreadsheet, the proposed ordinance, & a cover letter to Ecology
A12: 10 | B12: Plan for collecting additional data to fill gaps and periodically confirm limits are protective
B14: Name of Facility: | D14: <--- For this color cells, input is optional
B15: Point of Contact:
B16: Person Entering Data:
B17: Reviewer:
B18: GENERAL INFORMATION: | C18: (Data in colored cells below required)
B19: Receiving Water Hardness (if fresh) | D19: <----- Number must be between 25 and 400
B20: (M)arine, (F)resh, or (B)oth Discharges | D20: <----- Enter only letters "M", "F", or "B"
B21: Sludge: Class A (A) or (C)eiling level | D21: <----- Enter only letters "A" or "C"
B22: Plant: (A)ctivated sludge or (O)ther | D22: <----- Enter only letters "A" or "O"
B24: Total Plant Flow (in MGD) | D24: <----- For flows typically the most critical situation (one that yields the lowest local limits) is the lowest flow month, but run several scenarios if there is any doubt. Adopt the lowest limits.
B25: Domestic Flow (in MGD)
B26: Industrial Flow (in MGD)
B27: Infiltration/Inflow (by subtraction)
B28: Acute Dilution Factor | D28: <----- From NPDES Permit Fact Sheet
B29: Chronic Dilution Factor | D29: <----- From NPDES Permit Fact Sheet
B30: Dilution Factor for Human Health Based WQ | D30: <----- Enter Chronic DF if not otherwise determined
B31: Digester Flow (in MGD) | D31: =C24*300/20000 -> 0
B32: Dry Sludge Production Rate (US Tons/day) | D32: =C24*300*8.34/2000 -> 0
B34: Default Method for Calculating Limits | C34: Customize as needed for specific pollutants at "LOCLIMIT.XLS" Rows 45-49
B35: Sampling Data Available (inf, eff, sludge) (Y/N) | D35: <--- "Y" if sampling data available, otherwise defaults presumed
B36: Credit present loading of existing sources (Y/N) | D36: <-- reduce influent to domestic using "loclimit.xls" row 28
B37: Adjust for receiving water pollution (Y/N) | D37: <-- requires receiving water data in "loclimit.xls" row 29
B38: Use Observed Overall Removal Rate (Y/N) | D38: <-- Always say "Y" if good data available from the POTW
B39: Use Observed Primary Removal Rate (Y/N) | D39: <-- If primary effluent sample data is obtained say "Y"
B40: Fraction of Loading Capacity held in reserve | D40: <-- Enter .1 for 10%, etc.
B42: Which Conservative Pollutants to Limit? (Bold = Required by EPA)
B43: Check (or Un-Check) for Each Pollutant | C43: Develop Local Limit? (check for YES)
A44: 44 | B44: Antimony
A45: 45 | B45: Arsenic (T)
A46: 46 | B46: Arsenic (penta or +5)
A47: 47 | B47: Beryllium
A48: 48 | B48: Cadmium
A49: 49 | B49: Chromium(+6)
A50: 50 | B50: Chromium (T)
A51: 51 | B51: Copper
A52: 52 | B52: Cyanide
A53: 53 | B53: Lead
A54: 54 | B54: Mercury
A55: 55 | B55: Molybdenum
A56: 56 | B56: Nickel
A57: 57 | B57: Selenium
A58: 58 | B58: Silver
A59: 59 | B59: Thallium
A60: 60 | B60: TributylTin
A61: 61 | B61: Zinc
A62: 62 | B62: Add #1
A63: 63 | B63: Add #2
A64: 64 | B64: Add #3
A65: 65 | B65: Add #4
B67: RECAP of how loadings were set: | C67: (Don't enter data in below section) | D67: Sb | E67: As | F67: As5 | G67: Be | H67: Cd | I67: Cr6 | J67: Cu | K67: Cu | L67: CN | M67: Pb | N67: Hg | O67: Mo | P67: Ni | Q67: Se | R67: Ag | S67: Th | T67: TBT | U67: Zn
B68: Domestic Level from Sampling | C68: Data to right is returned ->> | D68: ='Local Limits'!B50 -> 0 | E68: ='Local Limits'!C50 -> 0 | F68: ='Local Limits'!D50 -> 0 | G68: ='Local Limits'!E50 -> 0 | H68: ='Local Limits'!F50 -> 0 | I68: ='Local Limits'!G50 -> 0 | J68: ='Local Limits'!H50 -> 0 | K68: ='Local Limits'!I50 -> 0 | L68: ='Local Limits'!J50 -> 0 | M68: ='Local Limits'!K50 -> 0 | N68: ='Local Limits'!L50 -> 0 | O68: ='Local Limits'!M50 -> 0 | P68: ='Local Limits'!N50 -> 0 | Q68: ='Local Limits'!O50 -> 0 | R68: ='Local Limits'!P50 -> 0 | S68: ='Local Limits'!Q50 -> 0 | T68: ='Local Limits'!R50 -> 0 | U68: ='Local Limits'!S50 -> 0
B69: Compensate for Existing Sources | C69: Data to right is returned ->> | D69: ='Local Limits'!B51 -> 0 | E69: ='Local Limits'!C51 -> 0 | F69: ='Local Limits'!D51 -> 0 | G69: ='Local Limits'!E51 -> 0 | H69: ='Local Limits'!F51 -> 0 | I69: ='Local Limits'!G51 -> 0 | J69: ='Local Limits'!H51 -> 0 | K69: ='Local Limits'!I51 -> 0 | L69: ='Local Limits'!J51 -> 0 | M69: ='Local Limits'!K51 -> 0 | N69: ='Local Limits'!L51 -> 0 | O69: ='Local Limits'!M51 -> 0 | P69: ='Local Limits'!N51 -> 0 | Q69: ='Local Limits'!O51 -> 0 | R69: ='Local Limits'!P51 -> 0 | S69: ='Local Limits'!Q51 -> 0 | T69: ='Local Limits'!R51 -> 0 | U69: ='Local Limits'!S51 -> 0
B70: Adjust for background levels | C70: Data to right is returned ->> | D70: ='Local Limits'!B52 -> 0 | E70: ='Local Limits'!C52 -> 0 | F70: ='Local Limits'!D52 -> 0 | G70: ='Local Limits'!E52 -> 0 | H70: ='Local Limits'!F52 -> 0 | I70: ='Local Limits'!G52 -> 0 | J70: ='Local Limits'!H52 -> 0 | K70: ='Local Limits'!I52 -> 0 | L70: ='Local Limits'!J52 -> 0 | M70: ='Local Limits'!K52 -> 0 | N70: ='Local Limits'!L52 -> 0 | O70: ='Local Limits'!M52 -> 0 | P70: ='Local Limits'!N52 -> 0 | Q70: ='Local Limits'!O52 -> 0 | R70: ='Local Limits'!P52 -> 0 | S70: ='Local Limits'!Q52 -> 0 | T70: ='Local Limits'!R52 -> 0 | U70: ='Local Limits'!S52 -> 0
B71: Overall removal rate from sampling | C71: Data to right is returned ->> | D71: ='Local Limits'!B53 -> 0 | E71: ='Local Limits'!C53 -> 0 | F71: ='Local Limits'!D53 -> 0 | G71: ='Local Limits'!E53 -> 0 | H71: ='Local Limits'!F53 -> 0 | I71: ='Local Limits'!G53 -> 0 | J71: ='Local Limits'!H53 -> 0 | K71: ='Local Limits'!I53 -> 0 | L71: ='Local Limits'!J53 -> 0 | M71: ='Local Limits'!K53 -> 0 | N71: ='Local Limits'!L53 -> 0 | O71: ='Local Limits'!M53 -> 0 | P71: ='Local Limits'!N53 -> 0 | Q71: ='Local Limits'!O53 -> 0 | R71: ='Local Limits'!P53 -> 0 | S71: ='Local Limits'!Q53 -> 0 | T71: ='Local Limits'!R53 -> 0 | U71: ='Local Limits'!S53 -> 0
B72: Primary removal rate from sampling | C72: Data to right is returned ->> | D72: ='Local Limits'!B54 -> 0 | E72: ='Local Limits'!C54 -> 0 | F72: ='Local Limits'!D54 -> 0 | G72: ='Local Limits'!E54 -> 0 | H72: ='Local Limits'!F54 -> 0 | I72: ='Local Limits'!G54 -> 0 | J72: ='Local Limits'!H54 -> 0 | K72: ='Local Limits'!I54 -> 0 | L72: ='Local Limits'!J54 -> 0 | M72: ='Local Limits'!K54 -> 0 | N72: ='Local Limits'!L54 -> 0 | O72: ='Local Limits'!M54 -> 0 | P72: ='Local Limits'!N54 -> 0 | Q72: ='Local Limits'!O54 -> 0 | R72: ='Local Limits'!P54 -> 0 | S72: ='Local Limits'!Q54 -> 0 | T72: ='Local Limits'!R54 -> 0 | U72: ='Local Limits'!S54 -> 0
B73: (For Contributing Flows Method, manually change row 11 of LOCLIM.xls spreadsheet to reflect the flow for which the pollutant will be allocated)
B74: This "How to Allocate Loadings" section is used to understand how limits were derived at a later date or by a reviewer.

Sheet Sample Data
A1: ENTER DATA FROM PLANT SAMPLING IN THIS SPREADSHEET
A2: SUMMARY DATA | C2: =$C$13 -> Antimony | D2: =$D$13 -> Arsenic (T) | E2: =$E$13 -> Arsenic(+5) | F2: =F13 -> Beryllium | G2: =$G$13 -> Cadmium | H2: =$H$13 -> Chrome(+6) | I2: =$I$13 -> Chrome (T) | J2: =$J$13 -> Copper | K2: =$K$13 -> Cyanide | L2: =$L$13 -> Lead | M2: =$M$13 -> Mercury | N2: =$N$13 -> Molybdenum | O2: =$O$13 -> Nickel | P2: =$P$13 -> Selenium | Q2: =$Q$13 -> Silver | R2: =$R$13 -> Thallium | S2: =S$13 -> Tributyl Tin | T2: Zinc | U2: Add #1 | V2: Add #2 | W2: Add #3 | X2: Add #4
A3: Ave. Influent Conc. | C3: =AVERAGE(C14,C24, C34, C44, C54, C64, C74, C84, C94, C104, C114, C124, C134, C144, C154, C164, C174, C184, C194, C204) ->  | D3: =AVERAGE(D$14,D$24, D$34, D$44, D$54, D$64, D$74, D$84, D$94, D$104, D$114, D$124, D$134, D$144, D$154, D$164, D$174, D$184, D$194, D$204) ->  | E3: =AVERAGE(E$14,E$24, E$34, E$44, E$54, E$64, E$74, E$84, E$94, E$104, E$114, E$124, E$134, E$144, E$154, E$164, E$174, E$184, E$194, E$204) -> 15 | F3: =AVERAGE(F$14,F$24, F$34, F$44, F$54, F$64, F$74, F$84, F$94, F$104, F$114, F$124, F$134, F$144, F$154, F$164, F$174, F$184, F$194, F$204) ->  | G3: =AVERAGE(G$14,G$24, G$34, G$44, G$54, G$64, G$74, G$84, G$94, G$104, G$114, G$124, G$134, G$144, G$154, G$164, G$174, G$184, G$194, G$204) ->  | H3: =AVERAGE(H$14,H$24, H$34, H$44, H$54, H$64, H$74, H$84, H$94, H$104, H$114, H$124, H$134, H$144, H$154, H$164, H$174, H$184, H$194, H$204) ->  | I3: =AVERAGE(I$14,I$24, I$34, I$44, I$54, I$64, I$74, I$84, I$94, I$104, I$114, I$124, I$134, I$144, I$154, I$164, I$174, I$184, I$194, I$204) ->  | P3: =AVERAGE(P$14,P$24, P$34, P$44, P$54, P$64, P$74, P$84, P$94, P$104, P$114, P$124, P$134, P$144, P$154, P$164, P$174, P$184, P$194, P$204) -> 
A4: Ave. Effluent Conc. | C4: =AVERAGE(C15,C25, C35, C45, C55, C65, C75, C85, C95, C105, C115, C125, C135, C145, C155, C165, C175, C185, C195, C205) ->  | D4: =AVERAGE(D15,D25, D35, D45, D55, D65, D75, D85, D95, D105, D115, D125, D135, D145, D155, D165, D175, D185, D195, D205) ->  | E4: 6 | J4: =AVERAGE(J15,J25, J35, J45, J55, J65, J75, J85, J95, J105, J115, J125, J135, J145, J155, J165, J175, J185, J195, J205) ->  | P4: =AVERAGE(P15,P25, P35, P45, P55, P65, P75, P85, P95, P105, P115, P125, P135, P145, P155, P165, P175, P185, P195, P205) -> 
A5: Ave. Primary Removal | C5: =AVERAGE(C$19,C$29, C$39, C$49, C$59, C$69, C$79, C$89, C$99, C$109, C$119, C$129, C$139, C$149, C$159, C$169, C$179, C$189, C$199, C$209) ->  | D5: =AVERAGE(D$19,D$29, D$39, D$49, D$59, D$69, D$79, D$89, D$99, D$109, D$119, D$129, D$139, D$149, D$159, D$169, D$179, D$189, D$199, D$209) ->  | E5: =AVERAGE(E$19,E$29, E$39, E$49, E$59, E$69, E$79, E$89, E$99, E$109, E$119, E$129, E$139, E$149, E$159, E$169, E$179, E$189, E$199, E$209) -> 0.4 | N5: =AVERAGE(N$19,N$29, N$39, N$49, N$59, N$69, N$79, N$89, N$99, N$109, N$119, N$129, N$139, N$149, N$159, N$169, N$179, N$189, N$199, N$209) ->  | O5: =AVERAGE(O$19,O$29, O$39, O$49, O$59, O$69, O$79, O$89, O$99, O$109, O$119, O$129, O$139, O$149, O$159, O$169, O$179, O$189, O$199, O$209) ->  | P5: =AVERAGE(P$19,P$29, P$39, P$49, P$59, P$69, P$79, P$89, P$99, P$109, P$119, P$129, P$139, P$149, P$159, P$169, P$179, P$189, P$199, P$209) ->  | Q5: =AVERAGE(Q$19,Q$29, Q$39, Q$49, Q$59, Q$69, Q$79, Q$89, Q$99, Q$109, Q$119, Q$129, Q$139, Q$149, Q$159, Q$169, Q$179, Q$189, Q$199, Q$209) ->  | R5: =AVERAGE(R$19,R$29, R$39, R$49, R$59, R$69, R$79, R$89, R$99, R$109, R$119, R$129, R$139, R$149, R$159, R$169, R$179, R$189, R$199, R$209) ->  | S5: =AVERAGE(S$19,S$29, S$39, S$49, S$59, S$69, S$79, S$89, S$99, S$109, S$119, S$129, S$139, S$149, S$159, S$169, S$179, S$189, S$199, S$209) -> 
A6: Ave. Overall Removal | C6: =AVERAGE(C$20,C$30, C$40, C$50, C$60, C$70, C$80, C$90, C$100, C$110, C$120, C$130, C$140, C$150, C$160, C$170, C$180, C$190, C$200, C$210) ->  | E6: 0.6 | Q6: =AVERAGE(Q$20,Q$30, Q$40, Q$50, Q$60, Q$70, Q$80, Q$90, Q$100, Q$110, Q$120, Q$130, Q$140, Q$150, Q$160, Q$170, Q$180, Q$190, Q$200, Q$210) -> 
A7: Effluent Variation (COV) | C7: =STDEV(C15,C25,C35,C45,C55,C65,C75,C85,C95,C105,C115,C125,C135,C145,C155,C165,C175,C185,C195,C205)/GEOMEAN(C15,C25,C35,C45,C55,C65,C75,C85,C95,C105,C115,C125,C135,C145,C155,C165,C175,C185,C195,C205) ->  | D7: =STDEV(D15,D25,D35,D45,D55,D65,D75,D85,D95,D105,D115,D125,D135,D145,D155,D165,D175,D185,D195,D205)/GEOMEAN(D15,D25,D35,D45,D55,D65,D75,D85,D95,D105,D115,D125,D135,D145,D155,D165,D175,D185,D195,D205) ->  | P7: =STDEV(P15,P25,P35,P45,P55,P65,P75,P85,P95,P105,P115,P125,P135,P145,P155,P165,P175,P185,P195,P205)/GEOMEAN(P15,P25,P35,P45,P55,P65,P75,P85,P95,P105,P115,P125,P135,P145,P155,P165,P175,P185,P195,P205) -> 
A8: Average Sludge Conc. | C8: =AVERAGE(C17,C27,C37,C47,C57,C67,C77,C87,C97,C107,C117,C127,C137,C147,C157,C167,C177,C187,C197,C207) ->  | D8: =AVERAGE(D17,D27,D37,D47,D57,D67,D77,D87,D97,D107,D117,D127,D137,D147,D157,D167,D177,D187,D197,D207) ->  | E8: 18 | P8: =AVERAGE(P17,P27,P37,P47,P57,P67,P77,P87,P97,P107,P117,P127,P137,P147,P157,P167,P177,P187,P197,P207) -> 
A9: Ambient Receiving Water Conc. | E9: 0.12
A10: AVE Industrial Conc.
A11: SUMMARY (ABOVE) | C11: Click the "+" button to the left of row numbers to review or input data.
A12: SAMPLE 1 | C12: Enter only dates and sampling results (white boxes in default pallate)
A13: Date: | B13: LOCATION | C13: Antimony | D13: Arsenic (T) | E13: Arsenic(+5) | F13: Beryllium | G13: Cadmium | H13: Chrome(+6) | I13: Chrome (T) | J13: Copper | K13: Cyanide | L13: Lead | M13: Mercury | N13: Molybdenum | O13: Nickel | P13: Selenium | Q13: Silver | R13: Thallium | S13: Tributyl Tin | T13: Zinc | U13: ='Basic Data'!B62 -> Add #1 | V13: ='Basic Data'!B63 -> Add #2 | W13: ='Basic Data'!B64 -> Add #3 | X13: ='Basic Data'!B65 -> Add #4
A14: 2010-01-13 | B14: Influent | E14: 15
B15: Effluent | E15: 6
B16: Prim._Clar. | E16: 9
B17: Sludge | E17: 18
B18: Detection_Limit | E18: 0
A19: Primary Removal Rate: | C19: =IF(AND(C14>C18, C14>C15, C14>=C16, C16>0), ((C14-C16)/C14), "Can't Do") -> Can't Do | D19: =IF(AND(D14>D18, D14>D15, D14>=D16, D16>0), ((D14-D16)/D14), "Can't Do") -> Can't Do | E19: 0.4 | F19: Can't Do | G19: Can't Do | H19: Can't Do | I19: Can't Do | J19: Can't Do | K19: Can't Do | L19: Can't Do | M19: Can't Do | N19: Can't Do | O19: Can't Do | P19: Can't Do | Q19: Can't Do | R19: Can't Do | S19: Can't Do | T19: Can't Do | U19: Can't Do | V19: Can't Do | W19: Can't Do | X19: Can't Do
A20: Overall Removal Rate | C20: =IF(C14>C15, ((C14-C15)/C14), "Can't Do") -> Can't Do | D20: Can't Do | E20: 0.6 | F20: Can't Do | G20: Can't Do | H20: Can't Do | I20: Can't Do | J20: Can't Do | K20: Can't Do | L20: Can't Do | M20: Can't Do | N20: Can't Do | O20: Can't Do | P20: =IF(P14>P15, ((P14-P15)/P14), "Can't Do") -> Can't Do | Q20: Can't Do | R20: Can't Do | S20: Can't Do | T20: Can't Do | U20: Can't Do | V20: Can't Do | W20: Can't Do | X20: Can't Do
C21: ='Basic Data'!$C$32 -> 0
A22: SAMPLE 2 | C22: Enter only dates and sampling results (white boxes in default pallate)
A23: Date: | B23: LOCATION | C23: =C13 -> Antimony | D23: =D13 -> Arsenic (T) | E23: Arsenic(+5) | F23: Beryllium | G23: Cadmium | H23: Chrome(+6) | I23: Chrome (T) | J23: Copper | K23: Cyanide | L23: Lead | M23: Mercury | N23: Molybdenum | O23: Nickel | P23: Selenium | Q23: Silver | R23: Thallium | S23: Tributyl Tin | T23: Zinc | U23: Add #1 | V23: Add #2 | W23: Add #3 | X23: Add #4
B24: Influent
B25: Effluent
B26: Prim._Clar.
B27: Sludge
B28: Detection_Limit | C28: 0 | D28: 0 | E28: 0 | F28: 0 | G28: 0 | H28: 0 | I28: 0 | J28: 0 | K28: 0 | L28: 0 | M28: 0 | N28: 0 | O28: 0 | P28: 0 | Q28: 0 | R28: 0 | S28: 0 | T28: 0 | U28: 0 | V28: 0 | W28: 0 | X28: 0
A29: Primary Removal Rate: | C29: =IF(AND(C24>C28, C24>C25, C24>C26, C26>0), ((C24-C26)/C24), "Can't Do") -> Can't Do | D29: =IF(AND(D24>D28, D24>D25, D24>D26, D26>0), ((D24-D26)/D24), "Can't Do") -> Can't Do | E29: =IF(AND(E24>E28, E24>E25, E24>E26, E26>0), ((E24-E26)/E24), "Can't Do") -> Can't Do | F29: Can't Do | G29: Can't Do | H29: Can't Do | I29: Can't Do | J29: Can't Do | K29: Can't Do | L29: Can't Do | M29: Can't Do | N29: Can't Do | O29: Can't Do | P29: =IF(AND(P24>P28, P24>P25, P24>P26, P26>0), ((P24-P26)/P24), "Can't Do") -> Can't Do | Q29: =IF(AND(Q24>Q28, Q24>Q25, Q24>Q26, Q26>0), ((Q24-Q26)/Q24), "Can't Do") -> Can't Do | R29: Can't Do | S29: Can't Do | T29: Can't Do | U29: Can't Do | V29: Can't Do | W29: Can't Do | X29: Can't Do
A30: Overall Removal Rate | C30: =IF(C24>C25, ((C24-C25)/C24), "Can't Do") -> Can't Do | D30: Can't Do | E30: Can't Do | F30: Can't Do | G30: Can't Do | H30: Can't Do | I30: Can't Do | J30: Can't Do | K30: Can't Do | L30: Can't Do | M30: Can't Do | N30: Can't Do | O30: Can't Do | P30: =IF(P24>P25, ((P24-P25)/P24), "Can't Do") -> Can't Do | Q30: =IF(Q24>Q25, ((Q24-Q25)/Q24), "Can't Do") -> Can't Do | R30: Can't Do | S30: Can't Do | T30: Can't Do | U30: Can't Do | V30: Can't Do | W30: Can't Do | X30: Can't Do
A32: SAMPLE 3 | C32: Enter only dates and sampling results (white boxes in default pallate)
A33: Date: | B33: LOCATION | C33: =C13 -> Antimony | D33: =D13 -> Arsenic (T) | E33: Arsenic(+5) | F33: Beryllium | G33: Cadmium | H33: Chrome(+6) | I33: Chrome (T) | J33: Copper | K33: Cyanide | L33: Lead | M33: Mercury | N33: Molybdenum | O33: Nickel | P33: Selenium | Q33: Silver | R33: Thallium | S33: Tributyl Tin | T33: Zinc | U33: Add #1 | V33: Add #2 | W33: Add #3 | X33: Add #4
B34: Influent
B35: Effluent
B36: Prim._Clar.
B37: Sludge
B38: Detection_Limit | C38: 0 | D38: 0 | E38: 0 | F38: 0 | G38: 0 | H38: 0 | I38: 0 | J38: 0 | K38: 0 | L38: 0 | M38: 0 | N38: 0 | O38: 0 | P38: 0 | Q38: 0 | R38: 0 | S38: 0 | T38: 0 | U38: 0 | V38: 0 | W38: 0 | X38: 0
A39: Primary Removal Rate: | C39: =IF(AND(C34>C38, C34>C35, C34>C36, C36>0), ((C34-C36)/C34), "Can't Do") -> Can't Do | D39: =IF(AND(D34>D38, D34>D35, D34>D36, D36>0), ((D34-D36)/D34), "Can't Do") -> Can't Do | E39: Can't Do | F39: Can't Do | G39: Can't Do | H39: Can't Do | I39: Can't Do | J39: Can't Do | K39: Can't Do | L39: Can't Do | M39: Can't Do | N39: Can't Do | O39: Can't Do | P39: =IF(AND(P34>P38, P34>P35, P34>P36, P36>0), ((P34-P36)/P34), "Can't Do") -> Can't Do | Q39: =IF(AND(Q34>Q38, Q34>Q35, Q34>Q36, Q36>0), ((Q34-Q36)/Q34), "Can't Do") -> Can't Do | R39: Can't Do | S39: Can't Do | T39: Can't Do | U39: Can't Do | V39: Can't Do | W39: Can't Do | X39: Can't Do
A40: Overall Removal Rate | C40: =IF(C34>C35, ((C34-C35)/C34), "Can't Do") -> Can't Do | D40: Can't Do | E40: Can't Do | F40: Can't Do | G40: Can't Do | H40: Can't Do | I40: Can't Do | J40: Can't Do | K40: Can't Do | L40: Can't Do | M40: Can't Do | N40: Can't Do | O40: Can't Do | P40: =IF(P34>P35, ((P34-P35)/P34), "Can't Do") -> Can't Do | Q40: =IF(Q34>Q35, ((Q34-Q35)/Q34), "Can't Do") -> Can't Do | R40: Can't Do | S40: Can't Do | T40: Can't Do | U40: Can't Do | V40: Can't Do | W40: Can't Do | X40: Can't Do
A42: SAMPLE 4 | C42: Enter only dates and sampling results (white boxes in default pallate)
A43: Date: | B43: LOCATION | C43: =C13 -> Antimony | D43: =D13 -> Arsenic (T) | E43: Arsenic(+5) | F43: Beryllium | G43: Cadmium | H43: Chrome(+6) | I43: Chrome (T) | J43: Copper | K43: Cyanide | L43: Lead | M43: Mercury | N43: Molybdenum | O43: Nickel | P43: Selenium | Q43: Silver | R43: Thallium | S43: Tributyl Tin | T43: Zinc | U43: Add #1 | V43: Add #2 | W43: Add #3 | X43: Add #4
B44: Influent
B45: Effluent
B46: Prim._Clar.
B47: Sludge
B48: Detection_Limit | C48: 0 | D48: 0 | E48: 0 | F48: 0 | G48: 0 | H48: 0 | I48: 0 | J48: 0 | K48: 0 | L48: 0 | M48: 0 | N48: 0 | O48: 0 | P48: 0 | Q48: 0 | R48: 0 | S48: 0 | T48: 0 | U48: 0 | V48: 0 | W48: 0 | X48: 0
A49: Primary Removal Rate: | C49: =IF(AND(C44>C48, C44>C45, C44>C46, C46>0), ((C44-C46)/C44), "Can't Do") -> Can't Do | D49: =IF(AND(D44>D48, D44>D45, D44>D46, D46>0), ((D44-D46)/D44), "Can't Do") -> Can't Do | E49: Can't Do | F49: Can't Do | G49: Can't Do | H49: Can't Do | I49: Can't Do | J49: Can't Do | K49: Can't Do | L49: Can't Do | M49: Can't Do | N49: Can't Do | O49: Can't Do | P49: =IF(AND(P44>P48, P44>P45, P44>P46, P46>0), ((P44-P46)/P44), "Can't Do") -> Can't Do | Q49: =IF(AND(Q44>Q48, Q44>Q45, Q44>Q46, Q46>0), ((Q44-Q46)/Q44), "Can't Do") -> Can't Do | R49: Can't Do | S49: Can't Do | T49: Can't Do | U49: Can't Do | V49: Can't Do | W49: Can't Do | X49: Can't Do
A50: Overall Removal Rate | C50: =IF(C44>C45, ((C44-C45)/C44), "Can't Do") -> Can't Do | D50: Can't Do | E50: Can't Do | F50: Can't Do | G50: Can't Do | H50: Can't Do | I50: Can't Do | J50: Can't Do | K50: Can't Do | L50: Can't Do | M50: Can't Do | N50: Can't Do | O50: Can't Do | P50: =IF(P44>P45, ((P44-P45)/P44), "Can't Do") -> Can't Do | Q50: =IF(Q44>Q45, ((Q44-Q45)/Q44), "Can't Do") -> Can't Do | R50: Can't Do | S50: Can't Do | T50: Can't Do | U50: Can't Do | V50: Can't Do | W50: Can't Do | X50: Can't Do
A52: SAMPLE 5 | C52: Enter only dates and sampling results (white boxes in default pallate)
A53: Date: | B53: LOCATION | C53: =C13 -> Antimony | D53: =D13 -> Arsenic (T) | E53: Arsenic(+5) | F53: Beryllium | G53: Cadmium | H53: Chrome(+6) | I53: Chrome (T) | J53: Copper | K53: Cyanide | L53: Lead | M53: Mercury | N53: Molybdenum | O53: Nickel | P53: Selenium | Q53: Silver | R53: Thallium | S53: Tributyl Tin | T53: Zinc | U53: Add #1 | V53: Add #2 | W53: Add #3 | X53: Add #4
B54: Influent
B55: Effluent
B56: Prim._Clar.
B57: Sludge
B58: Detection_Limit | C58: 0 | D58: 0 | E58: 0 | F58: 0 | G58: 0 | H58: 0 | I58: 0 | J58: 0 | K58: 0 | L58: 0 | M58: 0 | N58: 0 | O58: 0 | P58: 0 | Q58: 0 | R58: 0 | S58: 0 | T58: 0 | U58: 0 | V58: 0 | W58: 0 | X58: 0
A59: Primary Removal Rate: | C59: =IF(AND(C54>C58, C54>C55, C54>C56, C56>0), ((C54-C56)/C54), "Can't Do") -> Can't Do | D59: =IF(AND(D54>D58, D54>D55, D54>D56, D56>0), ((D54-D56)/D54), "Can't Do") -> Can't Do | E59: Can't Do | F59: Can't Do | G59: Can't Do | H59: Can't Do | I59: Can't Do | J59: Can't Do | K59: Can't Do | L59: Can't Do | M59: Can't Do | N59: Can't Do | O59: Can't Do | P59: =IF(AND(P54>P58, P54>P55, P54>P56, P56>0), ((P54-P56)/P54), "Can't Do") -> Can't Do | Q59: =IF(AND(Q54>Q58, Q54>Q55, Q54>Q56, Q56>0), ((Q54-Q56)/Q54), "Can't Do") -> Can't Do | R59: Can't Do | S59: Can't Do | T59: Can't Do | U59: Can't Do | V59: Can't Do | W59: Can't Do | X59: Can't Do
A60: Overall Removal Rate | C60: =IF(C54>C55, ((C54-C55)/C54), "Can't Do") -> Can't Do | D60: Can't Do | E60: Can't Do | F60: Can't Do | G60: Can't Do | H60: Can't Do | I60: Can't Do | J60: Can't Do | K60: Can't Do | L60: Can't Do | M60: Can't Do | N60: Can't Do | O60: Can't Do | P60: =IF(P54>P55, ((P54-P55)/P54), "Can't Do") -> Can't Do | Q60: =IF(Q54>Q55, ((Q54-Q55)/Q54), "Can't Do") -> Can't Do | R60: Can't Do | S60: Can't Do | T60: Can't Do | U60: Can't Do | V60: Can't Do | W60: Can't Do | X60: Can't Do
A62: SAMPLE 6 | C62: Enter only dates and sampling results (white boxes in default pallate)
A63: Date: | B63: LOCATION | C63: =C13 -> Antimony | D63: =D13 -> Arsenic (T) | E63: Arsenic(+5) | F63: Beryllium | G63: Cadmium | H63: Chrome(+6) | I63: Chrome (T) | J63: Copper | K63: Cyanide | L63: Lead | M63: Mercury | N63: Molybdenum | O63: Nickel | P63: Selenium | Q63: Silver | R63: Thallium | S63: Tributyl Tin | T63: Zinc | U63: Add #1 | V63: Add #2 | W63: Add #3 | X63: Add #4
B64: Influent
B65: Effluent
B66: Prim._Clar.
B67: Sludge
B68: Detection_Limit | C68: 0 | D68: 0 | E68: 0 | F68: 0 | G68: 0 | H68: 0 | I68: 0 | J68: 0 | K68: 0 | L68: 0 | M68: 0 | N68: 0 | O68: 0 | P68: 0 | Q68: 0 | R68: 0 | S68: 0 | T68: 0 | U68: 0 | V68: 0 | W68: 0 | X68: 0
A69: Primary Removal Rate: | C69: =IF(AND(C64>C68, C64>C65, C64>C66, C66>0), ((C64-C66)/C64), "Can't Do") -> Can't Do | D69: Can't Do | E69: Can't Do | F69: Can't Do | G69: Can't Do | H69: Can't Do | I69: Can't Do | J69: Can't Do | K69: Can't Do | L69: Can't Do | M69: Can't Do | N69: Can't Do | O69: Can't Do | P69: =IF(AND(P64>P68, P64>P65, P64>P66, P66>0), ((P64-P66)/P64), "Can't Do") -> Can't Do | Q69: =IF(AND(Q64>Q68, Q64>Q65, Q64>Q66, Q66>0), ((Q64-Q66)/Q64), "Can't Do") -> Can't Do | R69: Can't Do | S69: Can't Do | T69: Can't Do | U69: Can't Do | V69: Can't Do | W69: Can't Do | X69: Can't Do
A70: Overall Removal Rate | C70: =IF(C64>C65, ((C64-C65)/C64), "Can't Do") -> Can't Do | D70: Can't Do | E70: Can't Do | F70: Can't Do | G70: Can't Do | H70: Can't Do | I70: Can't Do | J70: Can't Do | K70: Can't Do | L70: Can't Do | M70: Can't Do | N70: Can't Do | O70: Can't Do | P70: =IF(P64>P65, ((P64-P65)/P64), "Can't Do") -> Can't Do | Q70: =IF(Q64>Q65, ((Q64-Q65)/Q64), "Can't Do") -> Can't Do | R70: Can't Do | S70: Can't Do | T70: Can't Do | U70: Can't Do | V70: Can't Do | W70: Can't Do | X70: Can't Do
A72: SAMPLE 7 | C72: Enter only dates and sampling results (white boxes in default pallate)
A73: Date: | B73: LOCATION | C73: =C13 -> Antimony | D73: =D13 -> Arsenic (T) | E73: Arsenic(+5) | F73: Beryllium | G73: Cadmium | H73: Chrome(+6) | I73: Chrome (T) | J73: Copper | K73: Cyanide | L73: Lead | M73: Mercury | N73: Molybdenum | O73: Nickel | P73: Selenium | Q73: Silver | R73: Thallium | S73: Tributyl Tin | T73: Zinc | U73: Add #1 | V73: Add #2 | W73: Add #3 | X73: Add #4
B74: Influent
B75: Effluent
B76: Prim._Clar.
B77: Sludge
B78: Detection_Limit | C78: 0 | D78: 0 | E78: 0 | F78: 0 | G78: 0 | H78: 0 | I78: 0 | J78: 0 | K78: 0 | L78: 0 | M78: 0 | N78: 0 | O78: 0 | P78: 0 | Q78: 0 | R78: 0 | S78: 0 | T78: 0 | U78: 0 | V78: 0 | W78: 0 | X78: 0
A79: Primary Removal Rate: | C79: =IF(AND(C74>C78, C74>C75, C74>C76, C76>0), ((C74-C76)/C74), "Can't Do") -> Can't Do | D79: =IF(AND(D74>D78, D74>D75, D74>D76, D76>0), ((D74-D76)/D74), "Can't Do") -> Can't Do | E79: Can't Do | F79: Can't Do | G79: Can't Do | H79: Can't Do | I79: Can't Do | J79: Can't Do | K79: Can't Do | L79: Can't Do | M79: Can't Do | N79: Can't Do | O79: Can't Do | P79: =IF(AND(P74>P78, P74>P75, P74>P76, P76>0), ((P74-P76)/P74), "Can't Do") -> Can't Do | Q79: =IF(AND(Q74>Q78, Q74>Q75, Q74>Q76, Q76>0), ((Q74-Q76)/Q74), "Can't Do") -> Can't Do | R79: Can't Do | S79: Can't Do | T79: Can't Do | U79: Can't Do | V79: Can't Do | W79: Can't Do | X79: Can't Do
A80: Overall Removal Rate | C80: =IF(C74>C75, ((C74-C75)/C74), "Can't Do") -> Can't Do | D80: Can't Do | E80: Can't Do | F80: Can't Do | G80: Can't Do | H80: Can't Do | I80: Can't Do | J80: Can't Do | K80: Can't Do | L80: Can't Do | M80: Can't Do | N80: Can't Do | O80: Can't Do | P80: =IF(P74>P75, ((P74-P75)/P74), "Can't Do") -> Can't Do | Q80: =IF(Q74>Q75, ((Q74-Q75)/Q74), "Can't Do") -> Can't Do | R80: Can't Do | S80: Can't Do | T80: Can't Do | U80: Can't Do | V80: Can't Do | W80: Can't Do | X80: Can't Do
A82: SAMPLE 8 | C82: Enter only dates and sampling results (white boxes in default pallate)
A83: Date: | B83: LOCATION | C83: =C13 -> Antimony | D83: =D13 -> Arsenic (T) | E83: Arsenic(+5) | F83: Beryllium | G83: Cadmium | H83: Chrome(+6) | I83: Chrome (T) | J83: Copper | K83: Cyanide | L83: Lead | M83: Mercury | N83: Molybdenum | O83: Nickel | P83: Selenium | Q83: Silver | R83: Thallium | S83: Tributyl Tin | T83: Zinc | U83: Add #1 | V83: Add #2 | W83: Add #3 | X83: Add #4
B84: Influent
B85: Effluent
B86: Prim._Clar.
B87: Sludge
B88: Detection_Limit | C88: 0 | D88: 0 | E88: 0 | F88: 0 | G88: 0 | H88: 0 | I88: 0 | J88: 0 | K88: 0 | L88: 0 | M88: 0 | N88: 0 | O88: 0 | P88: 0 | Q88: 0 | R88: 0 | S88: 0 | T88: 0 | U88: 0 | V88: 0 | W88: 0 | X88: 0
A89: Primary Removal Rate: | C89: =IF(AND(C84>C88, C84>C85, C84>C86, C86>0), ((C84-C86)/C84), "Can't Do") -> Can't Do | D89: =IF(AND(D84>D88, D84>D85, D84>D86, D86>0), ((D84-D86)/D84), "Can't Do") -> Can't Do | E89: Can't Do | F89: Can't Do | G89: Can't Do | H89: Can't Do | I89: Can't Do | J89: Can't Do | K89: Can't Do | L89: Can't Do | M89: Can't Do | N89: Can't Do | O89: Can't Do | P89: =IF(AND(P84>P88, P84>P85, P84>P86, P86>0), ((P84-P86)/P84), "Can't Do") -> Can't Do | Q89: =IF(AND(Q84>Q88, Q84>Q85, Q84>Q86, Q86>0), ((Q84-Q86)/Q84), "Can't Do") -> Can't Do | R89: Can't Do | S89: Can't Do | T89: Can't Do | U89: Can't Do | V89: Can't Do | W89: Can't Do | X89: Can't Do
A90: Overall Removal Rate | C90: =IF(C84>C85, ((C84-C85)/C84), "Can't Do") -> Can't Do | D90: Can't Do | E90: Can't Do | F90: Can't Do | G90: Can't Do | H90: Can't Do | I90: Can't Do | J90: Can't Do | K90: Can't Do | L90: Can't Do | M90: Can't Do | N90: Can't Do | O90: Can't Do | P90: =IF(P84>P85, ((P84-P85)/P84), "Can't Do") -> Can't Do | Q90: =IF(Q84>Q85, ((Q84-Q85)/Q84), "Can't Do") -> Can't Do | R90: Can't Do | S90: Can't Do | T90: Can't Do | U90: Can't Do | V90: Can't Do | W90: Can't Do | X90: Can't Do
A92: SAMPLE 9 | C92: Enter only dates and sampling results (white boxes in default pallate)
A93: Date: | B93: LOCATION | C93: =C13 -> Antimony | D93: =D13 -> Arsenic (T) | E93: Arsenic(+5) | F93: Beryllium | G93: Cadmium | H93: Chrome(+6) | I93: Chrome (T) | J93: Copper | K93: Cyanide | L93: Lead | M93: Mercury | N93: Molybdenum | O93: Nickel | P93: Selenium | Q93: Silver | R93: Thallium | S93: Tributyl Tin | T93: Zinc | U93: Add #1 | V93: Add #2 | W93: Add #3 | X93: Add #4
B94: Influent
B95: Effluent
B96: Prim._Clar.
B97: Sludge
B98: Detection_Limit | C98: 0 | D98: 0 | E98: 0 | F98: 0 | G98: 0 | H98: 0 | I98: 0 | J98: 0 | K98: 0 | L98: 0 | M98: 0 | N98: 0 | O98: 0 | P98: 0 | Q98: 0 | R98: 0 | S98: 0 | T98: 0 | U98: 0 | V98: 0 | W98: 0 | X98: 0
A99: Primary Removal Rate: | C99: =IF(AND(C94>C98, C94>C95, C94>C96, C96>0), ((C94-C96)/C94), "Can't Do") -> Can't Do | D99: =IF(AND(D94>D98, D94>D95, D94>D96, D96>0), ((D94-D96)/D94), "Can't Do") -> Can't Do | E99: Can't Do | F99: Can't Do | G99: Can't Do | H99: Can't Do | I99: Can't Do | J99: Can't Do | K99: Can't Do | L99: Can't Do | M99: Can't Do | N99: Can't Do | O99: Can't Do | P99: =IF(AND(P94>P98, P94>P95, P94>P96, P96>0), ((P94-P96)/P94), "Can't Do") -> Can't Do | Q99: =IF(AND(Q94>Q98, Q94>Q95, Q94>Q96, Q96>0), ((Q94-Q96)/Q94), "Can't Do") -> Can't Do | R99: Can't Do | S99: Can't Do | T99: Can't Do | U99: Can't Do | V99: Can't Do | W99: Can't Do | X99: Can't Do
A100: Overall Removal Rate | C100: =IF(C94>C95, ((C94-C95)/C94), "Can't Do") -> Can't Do | D100: Can't Do | E100: Can't Do | F100: Can't Do | G100: Can't Do | H100: Can't Do | I100: Can't Do | J100: Can't Do | K100: Can't Do | L100: Can't Do | M100: Can't Do | N100: Can't Do | O100: Can't Do | P100: =IF(P94>P95, ((P94-P95)/P94), "Can't Do") -> Can't Do | Q100: =IF(Q94>Q95, ((Q94-Q95)/Q94), "Can't Do") -> Can't Do | R100: Can't Do | S100: Can't Do | T100: Can't Do | U100: Can't Do | V100: Can't Do | W100: Can't Do | X100: Can't Do
A102: SAMPLE 10 | C102: Enter only dates and sampling results (white boxes in default pallate)
A103: Date: | B103: LOCATION | C103: =C13 -> Antimony | D103: =D13 -> Arsenic (T) | E103: Arsenic(+5) | F103: Beryllium | G103: Cadmium | H103: Chrome(+6) | I103: Chrome (T) | J103: Copper | K103: Cyanide | L103: Lead | M103: Mercury | N103: Molybdenum | O103: Nickel | P103: Selenium | Q103: Silver | R103: Thallium | S103: Tributyl Tin | T103: Zinc | U103: Add #1 | V103: Add #2 | W103: Add #3 | X103: Add #4
B104: Influent
B105: Effluent
B106: Prim._Clar.
B107: Sludge
B108: Detection_Limit | C108: 0 | D108: 0 | E108: 0 | F108: 0 | G108: 0 | H108: 0 | I108: 0 | J108: 0 | K108: 0 | L108: 0 | M108: 0 | N108: 0 | O108: 0 | P108: 0 | Q108: 0 | R108: 0 | S108: 0 | T108: 0 | U108: 0 | V108: 0 | W108: 0 | X108: 0
A109: Primary Removal Rate: | C109: =IF(AND(C104>C108, C104>C105, C104>C106, C106>0), ((C104-C106)/C104), "Can't Do") -> Can't Do | D109: =IF(AND(D104>D108, D104>D105, D104>D106, D106>0), ((D104-D106)/D104), "Can't Do") -> Can't Do | E109: Can't Do | F109: Can't Do | G109: Can't Do | H109: Can't Do | I109: Can't Do | J109: Can't Do | K109: Can't Do | L109: Can't Do | M109: Can't Do | N109: Can't Do | O109: Can't Do | P109: =IF(AND(P104>P108, P104>P105, P104>P106, P106>0), ((P104-P106)/P104), "Can't Do") -> Can't Do | Q109: =IF(AND(Q104>Q108, Q104>Q105, Q104>Q106, Q106>0), ((Q104-Q106)/Q104), "Can't Do") -> Can't Do | R109: Can't Do | S109: Can't Do | T109: Can't Do | U109: Can't Do | V109: Can't Do | W109: Can't Do | X109: Can't Do
A110: Overall Removal Rate | C110: =IF(C104>C105, ((C104-C105)/C104), "Can't Do") -> Can't Do | D110: Can't Do | E110: Can't Do | F110: Can't Do | G110: Can't Do | H110: Can't Do | I110: Can't Do | J110: Can't Do | K110: Can't Do | L110: Can't Do | M110: Can't Do | N110: Can't Do | O110: Can't Do | P110: =IF(P104>P105, ((P104-P105)/P104), "Can't Do") -> Can't Do | Q110: =IF(Q104>Q105, ((Q104-Q105)/Q104), "Can't Do") -> Can't Do | R110: Can't Do | S110: Can't Do | T110: Can't Do | U110: Can't Do | V110: Can't Do | W110: Can't Do | X110: Can't Do
A112: SAMPLE 11 | C112: Enter only dates and sampling results (white boxes in default pallate)
A113: Date: | B113: LOCATION | C113: =C13 -> Antimony | D113: =D13 -> Arsenic (T) | E113: Arsenic(+5) | F113: Beryllium | G113: Cadmium | H113: Chrome(+6) | I113: Chrome (T) | J113: Copper | K113: Cyanide | L113: Lead | M113: Mercury | N113: Molybdenum | O113: Nickel | P113: Selenium | Q113: Silver | R113: Thallium | S113: Tributyl Tin | T113: Zinc | U113: Add #1 | V113: Add #2 | W113: Add #3 | X113: Add #4
B114: Influent
B115: Effluent
B116: Prim._Clar.
B117: Sludge
B118: Detection_Limit | C118: 0 | D118: 0 | E118: 0 | F118: 0 | G118: 0 | H118: 0 | I118: 0 | J118: 0 | K118: 0 | L118: 0 | M118: 0 | N118: 0 | O118: 0 | P118: 0 | Q118: 0 | R118: 0 | S118: 0 | T118: 0 | U118: 0 | V118: 0 | W118: 0 | X118: 0
A119: Primary Removal Rate: | C119: =IF(AND(C114>C118, C114>C115, C114>C116, C116>0), ((C114-C116)/C114), "Can't Do") -> Can't Do | D119: =IF(AND(D114>D118, D114>D115, D114>D116, D116>0), ((D114-D116)/D114), "Can't Do") -> Can't Do | E119: Can't Do | F119: Can't Do | G119: Can't Do | H119: Can't Do | I119: Can't Do | J119: Can't Do | K119: Can't Do | L119: Can't Do | M119: Can't Do | N119: Can't Do | O119: Can't Do | P119: =IF(AND(P114>P118, P114>P115, P114>P116, P116>0), ((P114-P116)/P114), "Can't Do") -> Can't Do | Q119: =IF(AND(Q114>Q118, Q114>Q115, Q114>Q116, Q116>0), ((Q114-Q116)/Q114), "Can't Do") -> Can't Do | R119: Can't Do | S119: Can't Do | T119: Can't Do | U119: Can't Do | V119: Can't Do | W119: Can't Do | X119: Can't Do
A120: Overall Removal Rate | C120: =IF(C114>C115, ((C114-C115)/C114), "Can't Do") -> Can't Do | D120: Can't Do | E120: Can't Do | F120: Can't Do | G120: Can't Do | H120: Can't Do | I120: Can't Do | J120: Can't Do | K120: Can't Do | L120: Can't Do | M120: Can't Do | N120: Can't Do | O120: Can't Do | P120: =IF(P114>P115, ((P114-P115)/P114), "Can't Do") -> Can't Do | Q120: =IF(Q114>Q115, ((Q114-Q115)/Q114), "Can't Do") -> Can't Do | R120: Can't Do | S120: Can't Do | T120: Can't Do | U120: Can't Do | V120: Can't Do | W120: Can't Do | X120: Can't Do
A122: SAMPLE 12 | C122: Enter only dates and sampling results (white boxes in default pallate)
A123: Date: | B123: LOCATION | C123: =C13 -> Antimony | D123: =D13 -> Arsenic (T) | E123: Arsenic(+5) | F123: Beryllium | G123: Cadmium | H123: Chrome(+6) | I123: Chrome (T) | J123: Copper | K123: Cyanide | L123: Lead | M123: Mercury | N123: Molybdenum | O123: Nickel | P123: Selenium | Q123: Silver | R123: Thallium | S123: Tributyl Tin | T123: Zinc | U123: Add #1 | V123: Add #2 | W123: Add #3 | X123: Add #4
B124: Influent
B125: Effluent
B126: Prim._Clar.
B127: Sludge
B128: Detection_Limit | C128: 0 | D128: 0 | E128: 0 | F128: 0 | G128: 0 | H128: 0 | I128: 0 | J128: 0 | K128: 0 | L128: 0 | M128: 0 | N128: 0 | O128: 0 | P128: 0 | Q128: 0 | R128: 0 | S128: 0 | T128: 0 | U128: 0 | V128: 0 | W128: 0 | X128: 0
A129: Primary Removal Rate: | C129: =IF(AND(C124>C128, C124>C125, C124>C126, C126>0), ((C124-C126)/C124), "Can't Do") -> Can't Do | D129: =IF(AND(D124>D128, D124>D125, D124>D126, D126>0), ((D124-D126)/D124), "Can't Do") -> Can't Do | E129: Can't Do | F129: Can't Do | G129: Can't Do | H129: Can't Do | I129: Can't Do | J129: Can't Do | K129: Can't Do | L129: Can't Do | M129: Can't Do | N129: Can't Do | O129: Can't Do | P129: =IF(AND(P124>P128, P124>P125, P124>P126, P126>0), ((P124-P126)/P124), "Can't Do") -> Can't Do | Q129: =IF(AND(Q124>Q128, Q124>Q125, Q124>Q126, Q126>0), ((Q124-Q126)/Q124), "Can't Do") -> Can't Do | R129: Can't Do | S129: Can't Do | T129: Can't Do | U129: Can't Do | V129: Can't Do | W129: Can't Do | X129: Can't Do
A130: Overall Removal Rate | C130: =IF(C124>C125, ((C124-C125)/C124), "Can't Do") -> Can't Do | D130: Can't Do | E130: Can't Do | F130: Can't Do | G130: Can't Do | H130: Can't Do | I130: Can't Do | J130: Can't Do | K130: Can't Do | L130: Can't Do | M130: Can't Do | N130: Can't Do | O130: Can't Do | P130: =IF(P124>P125, ((P124-P125)/P124), "Can't Do") -> Can't Do | Q130: =IF(Q124>Q125, ((Q124-Q125)/Q124), "Can't Do") -> Can't Do | R130: Can't Do | S130: Can't Do | T130: Can't Do | U130: Can't Do | V130: Can't Do | W130: Can't Do | X130: Can't Do
A132: SAMPLE 13 | C132: Enter only dates and sampling results (white boxes in default pallate)
A133: Date: | B133: LOCATION | C133: =C13 -> Antimony | D133: =D13 -> Arsenic (T) | E133: Arsenic(+5) | F133: Beryllium | G133: Cadmium | H133: Chrome(+6) | I133: Chrome (T) | J133: Copper | K133: Cyanide | L133: Lead | M133: Mercury | N133: Molybdenum | O133: Nickel | P133: Selenium | Q133: Silver | R133: Thallium | S133: Tributyl Tin | T133: Zinc | U133: Add #1 | V133: Add #2 | W133: Add #3 | X133: Add #4
B134: Influent
B135: Effluent
B136: Prim._Clar.
B137: Sludge
B138: Detection_Limit | C138: 0 | D138: 0 | E138: 0 | F138: 0 | G138: 0 | H138: 0 | I138: 0 | J138: 0 | K138: 0 | L138: 0 | M138: 0 | N138: 0 | O138: 0 | P138: 0 | Q138: 0 | R138: 0 | S138: 0 | T138: 0 | U138: 0 | V138: 0 | W138: 0 | X138: 0
A139: Primary Removal Rate: | C139: =IF(AND(C134>C138, C134>C135, C134>C136, C136>0), ((C134-C136)/C134), "Can't Do") -> Can't Do | D139: =IF(AND(D134>D138, D134>D135, D134>D136, D136>0), ((D134-D136)/D134), "Can't Do") -> Can't Do | E139: Can't Do | F139: Can't Do | G139: Can't Do | H139: Can't Do | I139: Can't Do | J139: Can't Do | K139: Can't Do | L139: Can't Do | M139: Can't Do | N139: Can't Do | O139: Can't Do | P139: =IF(AND(P134>P138, P134>P135, P134>P136, P136>0), ((P134-P136)/P134), "Can't Do") -> Can't Do | Q139: =IF(AND(Q134>Q138, Q134>Q135, Q134>Q136, Q136>0), ((Q134-Q136)/Q134), "Can't Do") -> Can't Do | R139: Can't Do | S139: Can't Do | T139: Can't Do | U139: Can't Do | V139: Can't Do | W139: Can't Do | X139: Can't Do
A140: Overall Removal Rate | C140: =IF(C134>C135, ((C134-C135)/C134), "Can't Do") -> Can't Do | D140: Can't Do | E140: Can't Do | F140: Can't Do | G140: Can't Do | H140: Can't Do | I140: Can't Do | J140: Can't Do | K140: Can't Do | L140: Can't Do | M140: Can't Do | N140: Can't Do | O140: Can't Do | P140: =IF(P134>P135, ((P134-P135)/P134), "Can't Do") -> Can't Do | Q140: =IF(Q134>Q135, ((Q134-Q135)/Q134), "Can't Do") -> Can't Do | R140: Can't Do | S140: Can't Do | T140: Can't Do | U140: Can't Do | V140: Can't Do | W140: Can't Do | X140: Can't Do
A142: SAMPLE 14 | C142: Enter only dates and sampling results (white boxes in default pallate)
A143: Date: | B143: LOCATION | C143: =C13 -> Antimony | D143: =D13 -> Arsenic (T) | E143: Arsenic(+5) | F143: Beryllium | G143: Cadmium | H143: Chrome(+6) | I143: Chrome (T) | J143: Copper | K143: Cyanide | L143: Lead | M143: Mercury | N143: Molybdenum | O143: Nickel | P143: Selenium | Q143: Silver | R143: Thallium | S143: Tributyl Tin | T143: Zinc | U143: Add #1 | V143: Add #2 | W143: Add #3 | X143: Add #4
B144: Influent
B145: Effluent
B146: Prim._Clar.
B147: Sludge
B148: Detection_Limit | C148: 0 | D148: 0 | E148: 0 | F148: 0 | G148: 0 | H148: 0 | I148: 0 | J148: 0 | K148: 0 | L148: 0 | M148: 0 | N148: 0 | O148: 0 | P148: 0 | Q148: 0 | R148: 0 | S148: 0 | T148: 0 | U148: 0 | V148: 0 | W148: 0 | X148: 0
A149: Primary Removal Rate: | C149: =IF(AND(C144>C148, C144>C145, C144>C146, C146>0), ((C144-C146)/C144), "Can't Do") -> Can't Do | D149: =IF(AND(D144>D148, D144>D145, D144>D146, D146>0), ((D144-D146)/D144), "Can't Do") -> Can't Do | E149: Can't Do | F149: Can't Do | G149: Can't Do | H149: Can't Do | I149: Can't Do | J149: Can't Do | K149: Can't Do | L149: Can't Do | M149: Can't Do | N149: Can't Do | O149: Can't Do | P149: =IF(AND(P144>P148, P144>P145, P144>P146, P146>0), ((P144-P146)/P144), "Can't Do") -> Can't Do | Q149: =IF(AND(Q144>Q148, Q144>Q145, Q144>Q146, Q146>0), ((Q144-Q146)/Q144), "Can't Do") -> Can't Do | R149: Can't Do | S149: Can't Do | T149: Can't Do | U149: Can't Do | V149: Can't Do | W149: Can't Do | X149: Can't Do
A150: Overall Removal Rate | C150: =IF(C144>C145, ((C144-C145)/C144), "Can't Do") -> Can't Do | D150: Can't Do | E150: Can't Do | F150: Can't Do | G150: Can't Do | H150: Can't Do | I150: Can't Do | J150: Can't Do | K150: Can't Do | L150: Can't Do | M150: Can't Do | N150: Can't Do | O150: Can't Do | P150: =IF(P144>P145, ((P144-P145)/P144), "Can't Do") -> Can't Do | Q150: =IF(Q144>Q145, ((Q144-Q145)/Q144), "Can't Do") -> Can't Do | R150: Can't Do | S150: Can't Do | T150: Can't Do | U150: Can't Do | V150: Can't Do | W150: Can't Do | X150: Can't Do
A152: SAMPLE 15 | C152: Enter only dates and sampling results (white boxes in default pallate)
A153: Date: | B153: LOCATION | C153: =C13 -> Antimony | D153: =D13 -> Arsenic (T) | E153: Arsenic(+5) | F153: Beryllium | G153: Cadmium | H153: Chrome(+6) | I153: Chrome (T) | J153: Copper | K153: Cyanide | L153: Lead | M153: Mercury | N153: Molybdenum | O153: Nickel | P153: Selenium | Q153: Silver | R153: Thallium | S153: Tributyl Tin | T153: Zinc | U153: Add #1 | V153: Add #2 | W153: Add #3 | X153: Add #4
B154: Influent
B155: Effluent
B156: Prim._Clar.
B157: Sludge
B158: Detection_Limit | C158: 0 | D158: 0 | E158: 0 | F158: 0 | G158: 0 | H158: 0 | I158: 0 | J158: 0 | K158: 0 | L158: 0 | M158: 0 | N158: 0 | O158: 0 | P158: 0 | Q158: 0 | R158: 0 | S158: 0 | T158: 0 | U158: 0 | V158: 0 | W158: 0 | X158: 0
A159: Primary Removal Rate: | C159: =IF(AND(C154>C158, C154>C155, C154>C156, C156>0), ((C154-C156)/C154), "Can't Do") -> Can't Do | D159: =IF(AND(D154>D158, D154>D155, D154>D156, D156>0), ((D154-D156)/D154), "Can't Do") -> Can't Do | E159: Can't Do | F159: Can't Do | G159: Can't Do | H159: Can't Do | I159: Can't Do | J159: Can't Do | K159: Can't Do | L159: Can't Do | M159: Can't Do | N159: Can't Do | O159: Can't Do | P159: =IF(AND(P154>P158, P154>P155, P154>P156, P156>0), ((P154-P156)/P154), "Can't Do") -> Can't Do | Q159: =IF(AND(Q154>Q158, Q154>Q155, Q154>Q156, Q156>0), ((Q154-Q156)/Q154), "Can't Do") -> Can't Do | R159: Can't Do | S159: Can't Do | T159: Can't Do | U159: Can't Do | V159: Can't Do | W159: Can't Do | X159: Can't Do
A160: Overall Removal Rate | C160: =IF(C154>C155, ((C154-C155)/C154), "Can't Do") -> Can't Do | D160: Can't Do | E160: Can't Do | F160: Can't Do | G160: Can't Do | H160: Can't Do | I160: Can't Do | J160: Can't Do | K160: Can't Do | L160: Can't Do | M160: Can't Do | N160: Can't Do | O160: Can't Do | P160: =IF(P154>P155, ((P154-P155)/P154), "Can't Do") -> Can't Do | Q160: =IF(Q154>Q155, ((Q154-Q155)/Q154), "Can't Do") -> Can't Do | R160: Can't Do | S160: Can't Do | T160: Can't Do | U160: Can't Do | V160: Can't Do | W160: Can't Do | X160: Can't Do
A162: SAMPLE 16 | C162: Enter only dates and sampling results (white boxes in default pallate)
A163: Date: | B163: LOCATION | C163: =C13 -> Antimony | D163: =D13 -> Arsenic (T) | E163: Arsenic(+5) | F163: Beryllium | G163: Cadmium | H163: Chrome(+6) | I163: Chrome (T) | J163: Copper | K163: Cyanide | L163: Lead | M163: Mercury | N163: Molybdenum | O163: Nickel | P163: Selenium | Q163: Silver | R163: Thallium | S163: Tributyl Tin | T163: Zinc | U163: Add #1 | V163: Add #2 | W163: Add #3 | X163: Add #4
B164: Influent
B165: Effluent
B166: Prim._Clar.
B167: Sludge
B168: Detection_Limit | C168: 0 | D168: 0 | E168: 0 | F168: 0 | G168: 0 | H168: 0 | I168: 0 | J168: 0 | K168: 0 | L168: 0 | M168: 0 | N168: 0 | O168: 0 | P168: 0 | Q168: 0 | R168: 0 | S168: 0 | T168: 0 | U168: 0 | V168: 0 | W168: 0 | X168: 0
A169: Primary Removal Rate: | C169: =IF(AND(C164>C168, C164>C165, C164>C166, C166>0), ((C164-C166)/C164), "Can't Do") -> Can't Do | D169: =IF(AND(D164>D168, D164>D165, D164>D166, D166>0), ((D164-D166)/D164), "Can't Do") -> Can't Do | E169: Can't Do | F169: Can't Do | G169: Can't Do | H169: Can't Do | I169: Can't Do | J169: Can't Do | K169: Can't Do | L169: Can't Do | M169: Can't Do | N169: Can't Do | O169: Can't Do | P169: =IF(AND(P164>P168, P164>P165, P164>P166, P166>0), ((P164-P166)/P164), "Can't Do") -> Can't Do | Q169: =IF(AND(Q164>Q168, Q164>Q165, Q164>Q166, Q166>0), ((Q164-Q166)/Q164), "Can't Do") -> Can't Do | R169: Can't Do | S169: Can't Do | T169: Can't Do | U169: Can't Do | V169: Can't Do | W169: Can't Do | X169: Can't Do
A170: Overall Removal Rate | C170: =IF(C164>C165, ((C164-C165)/C164), "Can't Do") -> Can't Do | D170: Can't Do | E170: Can't Do | F170: Can't Do | G170: Can't Do | H170: Can't Do | I170: Can't Do | J170: Can't Do | K170: Can't Do | L170: Can't Do | M170: Can't Do | N170: Can't Do | O170: Can't Do | P170: =IF(P164>P165, ((P164-P165)/P164), "Can't Do") -> Can't Do | Q170: =IF(Q164>Q165, ((Q164-Q165)/Q164), "Can't Do") -> Can't Do | R170: Can't Do | S170: Can't Do | T170: Can't Do | U170: Can't Do | V170: Can't Do | W170: Can't Do | X170: Can't Do
A172: SAMPLE 17 | C172: Enter only dates and sampling results (white boxes in default pallate)
A173: Date: | B173: LOCATION | C173: =C13 -> Antimony | D173: =D13 -> Arsenic (T) | E173: Arsenic(+5) | F173: Beryllium | G173: Cadmium | H173: Chrome(+6) | I173: Chrome (T) | J173: Copper | K173: Cyanide | L173: Lead | M173: Mercury | N173: Molybdenum | O173: Nickel | P173: Selenium | Q173: Silver | R173: Thallium | S173: Tributyl Tin | T173: Zinc | U173: Add #1 | V173: Add #2 | W173: Add #3 | X173: Add #4
B174: Influent
B175: Effluent
B176: Prim._Clar.
B177: Sludge
B178: Detection_Limit | C178: 0 | D178: 0 | E178: 0 | F178: 0 | G178: 0 | H178: 0 | I178: 0 | J178: 0 | K178: 0 | L178: 0 | M178: 0 | N178: 0 | O178: 0 | P178: 0 | Q178: 0 | R178: 0 | S178: 0 | T178: 0 | U178: 0 | V178: 0 | W178: 0 | X178: 0
A179: Primary Removal Rate: | C179: =IF(AND(C174>C178, C174>C175, C174>C176, C176>0), ((C174-C176)/C174), "Can't Do") -> Can't Do | D179: =IF(AND(D174>D178, D174>D175, D174>D176, D176>0), ((D174-D176)/D174), "Can't Do") -> Can't Do | E179: Can't Do | F179: Can't Do | G179: Can't Do | H179: Can't Do | I179: Can't Do | J179: Can't Do | K179: Can't Do | L179: Can't Do | M179: Can't Do | N179: Can't Do | O179: Can't Do | P179: =IF(AND(P174>P178, P174>P175, P174>P176, P176>0), ((P174-P176)/P174), "Can't Do") -> Can't Do | Q179: =IF(AND(Q174>Q178, Q174>Q175, Q174>Q176, Q176>0), ((Q174-Q176)/Q174), "Can't Do") -> Can't Do | R179: Can't Do | S179: Can't Do | T179: Can't Do | U179: Can't Do | V179: Can't Do | W179: Can't Do | X179: Can't Do
A180: Overall Removal Rate | C180: =IF(C174>C175, ((C174-C175)/C174), "Can't Do") -> Can't Do | D180: Can't Do | E180: Can't Do | F180: Can't Do | G180: Can't Do | H180: Can't Do | I180: Can't Do | J180: Can't Do | K180: Can't Do | L180: Can't Do | M180: Can't Do | N180: Can't Do | O180: Can't Do | P180: =IF(P174>P175, ((P174-P175)/P174), "Can't Do") -> Can't Do | Q180: =IF(Q174>Q175, ((Q174-Q175)/Q174), "Can't Do") -> Can't Do | R180: Can't Do | S180: Can't Do | T180: Can't Do | U180: Can't Do | V180: Can't Do | W180: Can't Do | X180: Can't Do
A182: SAMPLE 18 | C182: Enter only dates and sampling results (white boxes in default pallate)
A183: Date: | B183: LOCATION | C183: =C13 -> Antimony | D183: =D13 -> Arsenic (T) | E183: Arsenic(+5) | F183: Beryllium | G183: Cadmium | H183: Chrome(+6) | I183: Chrome (T) | J183: Copper | K183: Cyanide | L183: Lead | M183: Mercury | N183: Molybdenum | O183: Nickel | P183: Selenium | Q183: Silver | R183: Thallium | S183: Tributyl Tin | T183: Zinc | U183: Add #1 | V183: Add #2 | W183: Add #3 | X183: Add #4
B184: Influent
B185: Effluent
B186: Prim._Clar.
B187: Sludge
B188: Detection_Limit | C188: 0 | D188: 0 | E188: 0 | F188: 0 | G188: 0 | H188: 0 | I188: 0 | J188: 0 | K188: 0 | L188: 0 | M188: 0 | N188: 0 | O188: 0 | P188: 0 | Q188: 0 | R188: 0 | S188: 0 | T188: 0 | U188: 0 | V188: 0 | W188: 0 | X188: 0
A189: Primary Removal Rate: | C189: =IF(AND(C184>C188, C184>C185, C184>C186, C186>0), ((C184-C186)/C184), "Can't Do") -> Can't Do | D189: =IF(AND(D184>D188, D184>D185, D184>D186, D186>0), ((D184-D186)/D184), "Can't Do") -> Can't Do | E189: Can't Do | F189: Can't Do | G189: Can't Do | H189: Can't Do | I189: Can't Do | J189: Can't Do | K189: Can't Do | L189: Can't Do | M189: Can't Do | N189: Can't Do | O189: Can't Do | P189: =IF(AND(P184>P188, P184>P185, P184>P186, P186>0), ((P184-P186)/P184), "Can't Do") -> Can't Do | Q189: =IF(AND(Q184>Q188, Q184>Q185, Q184>Q186, Q186>0), ((Q184-Q186)/Q184), "Can't Do") -> Can't Do | R189: Can't Do | S189: Can't Do | T189: Can't Do | U189: Can't Do | V189: Can't Do | W189: Can't Do | X189: Can't Do
A190: Overall Removal Rate | C190: =IF(C184>C185, ((C184-C185)/C184), "Can't Do") -> Can't Do | D190: Can't Do | E190: Can't Do | F190: Can't Do | G190: Can't Do | H190: Can't Do | I190: Can't Do | J190: Can't Do | K190: Can't Do | L190: Can't Do | M190: Can't Do | N190: Can't Do | O190: Can't Do | P190: =IF(P184>P185, ((P184-P185)/P184), "Can't Do") -> Can't Do | Q190: =IF(Q184>Q185, ((Q184-Q185)/Q184), "Can't Do") -> Can't Do | R190: Can't Do | S190: Can't Do | T190: Can't Do | U190: Can't Do | V190: Can't Do | W190: Can't Do | X190: Can't Do
A192: SAMPLE 19 | C192: Enter only dates and sampling results (white boxes in default pallate)
A193: Date: | B193: LOCATION | C193: =C13 -> Antimony | D193: =D13 -> Arsenic (T) | E193: Arsenic(+5) | F193: Beryllium | G193: Cadmium | H193: Chrome(+6) | I193: Chrome (T) | J193: Copper | K193: Cyanide | L193: Lead | M193: Mercury | N193: Molybdenum | O193: Nickel | P193: Selenium | Q193: Silver | R193: Thallium | S193: Tributyl Tin | T193: Zinc | U193: Add #1 | V193: Add #2 | W193: Add #3 | X193: Add #4
B194: Influent
B195: Effluent
B196: Prim._Clar.
B197: Sludge
B198: Detection_Limit | C198: 0 | D198: 0 | E198: 0 | F198: 0 | G198: 0 | H198: 0 | I198: 0 | J198: 0 | K198: 0 | L198: 0 | M198: 0 | N198: 0 | O198: 0 | P198: 0 | Q198: 0 | R198: 0 | S198: 0 | T198: 0 | U198: 0 | V198: 0 | W198: 0 | X198: 0
A199: Primary Removal Rate: | C199: =IF(AND(C194>C198, C194>C195, C194>C196, C196>0), ((C194-C196)/C194), "Can't Do") -> Can't Do | D199: =IF(AND(D194>D198, D194>D195, D194>D196, D196>0), ((D194-D196)/D194), "Can't Do") -> Can't Do | E199: Can't Do | F199: Can't Do | G199: Can't Do | H199: Can't Do | I199: Can't Do | J199: Can't Do | K199: Can't Do | L199: Can't Do | M199: Can't Do | N199: Can't Do | O199: Can't Do | P199: =IF(AND(P194>P198, P194>P195, P194>P196, P196>0), ((P194-P196)/P194), "Can't Do") -> Can't Do | Q199: =IF(AND(Q194>Q198, Q194>Q195, Q194>Q196, Q196>0), ((Q194-Q196)/Q194), "Can't Do") -> Can't Do | R199: Can't Do | S199: Can't Do | T199: Can't Do | U199: Can't Do | V199: Can't Do | W199: Can't Do | X199: Can't Do
A200: Overall Removal Rate | C200: =IF(C194>C195, ((C194-C195)/C194), "Can't Do") -> Can't Do | D200: Can't Do | E200: Can't Do | F200: Can't Do | G200: Can't Do | H200: Can't Do | I200: Can't Do | J200: Can't Do | K200: Can't Do | L200: Can't Do | M200: Can't Do | N200: Can't Do | O200: Can't Do | P200: =IF(P194>P195, ((P194-P195)/P194), "Can't Do") -> Can't Do | Q200: =IF(Q194>Q195, ((Q194-Q195)/Q194), "Can't Do") -> Can't Do | R200: Can't Do | S200: Can't Do | T200: Can't Do | U200: Can't Do | V200: Can't Do | W200: Can't Do | X200: Can't Do
A202: SAMPLE 20 | C202: Enter only dates and sampling results (white boxes in default pallate)
A203: Date: | B203: LOCATION | C203: =C13 -> Antimony | D203: =D13 -> Arsenic (T) | E203: Arsenic(+5) | F203: Beryllium | G203: Cadmium | H203: Chrome(+6) | I203: Chrome (T) | J203: Copper | K203: Cyanide | L203: Lead | M203: Mercury | N203: Molybdenum | O203: Nickel | P203: Selenium | Q203: Silver | R203: Thallium | S203: Tributyl Tin | T203: Zinc | U203: Add #1 | V203: Add #2 | W203: Add #3 | X203: Add #4
B204: Influent
B205: Effluent
B206: Prim._Clar.
B207: Sludge
B208: Detection_Limit | C208: 0 | D208: 0 | E208: 0 | F208: 0 | G208: 0 | H208: 0 | I208: 0 | J208: 0 | K208: 0 | L208: 0 | M208: 0 | N208: 0 | O208: 0 | P208: 0 | Q208: 0 | R208: 0 | S208: 0 | T208: 0 | U208: 0 | V208: 0 | W208: 0 | X208: 0
A209: Primary Removal Rate: | C209: =IF(AND(C204>C208, C204>C205, C204>C206, C206>0), ((C204-C206)/C204), "Can't Do") -> Can't Do | D209: =IF(AND(D204>D208, D204>D205, D204>D206, D206>0), ((D204-D206)/D204), "Can't Do") -> Can't Do | E209: Can't Do | F209: Can't Do | G209: Can't Do | H209: Can't Do | I209: Can't Do | J209: Can't Do | K209: Can't Do | L209: Can't Do | M209: Can't Do | N209: Can't Do | O209: Can't Do | P209: =IF(AND(P204>P208, P204>P205, P204>P206, P206>0), ((P204-P206)/P204), "Can't Do") -> Can't Do | Q209: =IF(AND(Q204>Q208, Q204>Q205, Q204>Q206, Q206>0), ((Q204-Q206)/Q204), "Can't Do") -> Can't Do | R209: Can't Do | S209: Can't Do | T209: Can't Do | U209: Can't Do | V209: Can't Do | W209: Can't Do | X209: Can't Do
A210: Overall Removal Rate | C210: =IF(C204>C205, ((C204-C205)/C204), "Can't Do") -> Can't Do | D210: Can't Do | E210: Can't Do | F210: Can't Do | G210: Can't Do | H210: Can't Do | I210: Can't Do | J210: Can't Do | K210: Can't Do | L210: Can't Do | M210: Can't Do | N210: Can't Do | O210: Can't Do | P210: =IF(P204>P205, ((P204-P205)/P204), "Can't Do") -> Can't Do | Q210: =IF(Q204>Q205, ((Q204-Q205)/Q204), "Can't Do") -> Can't Do | R210: Can't Do | S210: Can't Do | T210: Can't Do | U210: Can't Do | V210: Can't Do | W210: Can't Do | X210: Can't Do

Sheet Local Limits
A1: Part I: GENERAL INFORMATION
A2: Receiving Water Hardness (if fresh)
A3: ='Basic Data'!C19 -> 0
A4: (M)arine, (F)resh, or (B)oth Discharges
A5: ='Basic Data'!C20 -> 0
A6: Sludge: Class A (A) or (C)eiling level
A7: ='Basic Data'!C21 -> 0
A8: Plant: (A)ctivated sludge or (O)ther
A9: ='Basic Data'!C22 -> 0
A11: Pollutant: | B11: Antimony | C11: Arsenic(T) | D11: Arsenic(+5) | E11: Beryllium | F11: Cadmium | G11: Chr (+6) | H11: Chrome (T) | I11: Copper | J11: Cyanide | K11: Lead | L11: Mercury | M11: Molybdenum | N11: Nickel | O11: Selenium | P11: Silver | Q11: Thallium | R11: TriButylTin | S11: Zinc | T11: ='Sample Data'!U13 -> Add #1 | U11: ='Sample Data'!V13 -> Add #2 | V11: ='Sample Data'!W13 -> Add #3 | W11: ='Sample Data'!X13 -> Add #4
A12: Part II: PLANT DATA - OPEN AND CHANGE "BASICDATA.XLS" VALUES IF FLOWS CONTRIBUTING FOR A PARTICULAR POLLUTANT VARY
A13: Total Plant Flow (in MGD) | B13: ='Basic Data'!$C$24 -> 0 | C13: ='Basic Data'!$C$24 -> 0 | D13: ='Basic Data'!$C$24 -> 0 | E13: ='Basic Data'!$C$24 -> 0 | F13: ='Basic Data'!$C$24 -> 0 | G13: ='Basic Data'!$C$24 -> 0 | H13: ='Basic Data'!$C$24 -> 0 | I13: ='Basic Data'!$C$24 -> 0 | J13: ='Basic Data'!$C$24 -> 0 | K13: ='Basic Data'!$C$24 -> 0 | L13: ='Basic Data'!$C$24 -> 0 | M13: ='Basic Data'!$C$24 -> 0 | N13: ='Basic Data'!$C$24 -> 0 | O13: ='Basic Data'!$C$24 -> 0 | P13: ='Basic Data'!$C$24 -> 0 | Q13: ='Basic Data'!$C$24 -> 0 | R13: ='Basic Data'!$C$24 -> 0 | S13: ='Basic Data'!$C$24 -> 0 | T13: ='Basic Data'!$C$24 -> 0 | U13: ='Basic Data'!$C$24 -> 0 | V13: ='Basic Data'!$C$24 -> 0 | W13: ='Basic Data'!$C$24 -> 0
A14: Domestic Flow (in MGD) | B14: ='Basic Data'!$C$25 -> 0 | C14: ='Basic Data'!$C$25 -> 0 | D14: ='Basic Data'!$C$25 -> 0 | E14: ='Basic Data'!$C$25 -> 0 | F14: ='Basic Data'!$C$25 -> 0 | G14: ='Basic Data'!$C$25 -> 0 | H14: ='Basic Data'!$C$25 -> 0 | I14: ='Basic Data'!$C$25 -> 0 | J14: ='Basic Data'!$C$25 -> 0 | K14: ='Basic Data'!$C$25 -> 0 | L14: ='Basic Data'!$C$25 -> 0 | M14: ='Basic Data'!$C$25 -> 0 | N14: ='Basic Data'!$C$25 -> 0 | O14: ='Basic Data'!$C$25 -> 0 | P14: ='Basic Data'!$C$25 -> 0 | Q14: ='Basic Data'!$C$25 -> 0 | R14: ='Basic Data'!$C$25 -> 0 | S14: ='Basic Data'!$C$25 -> 0 | T14: ='Basic Data'!$C$25 -> 0 | U14: ='Basic Data'!$C$25 -> 0 | V14: ='Basic Data'!$C$25 -> 0 | W14: ='Basic Data'!$C$25 -> 0
A15: Industrial Flow (in MGD) | B15: ='Basic Data'!$C$26 -> 0 | C15: ='Basic Data'!$C$26 -> 0 | D15: ='Basic Data'!$C$26 -> 0 | E15: ='Basic Data'!$C$26 -> 0 | F15: ='Basic Data'!$C$26 -> 0 | G15: ='Basic Data'!$C$26 -> 0 | H15: ='Basic Data'!$C$26 -> 0 | I15: ='Basic Data'!$C$26 -> 0 | J15: ='Basic Data'!$C$26 -> 0 | K15: ='Basic Data'!$C$26 -> 0 | L15: ='Basic Data'!$C$26 -> 0 | M15: ='Basic Data'!$C$26 -> 0 | N15: ='Basic Data'!$C$26 -> 0 | O15: ='Basic Data'!$C$26 -> 0 | P15: ='Basic Data'!$C$26 -> 0 | Q15: ='Basic Data'!$C$26 -> 0 | R15: ='Basic Data'!$C$26 -> 0 | S15: ='Basic Data'!$C$26 -> 0 | T15: ='Basic Data'!$C$26 -> 0 | U15: ='Basic Data'!$C$26 -> 0 | V15: ='Basic Data'!$C$26 -> 0 | W15: ='Basic Data'!$C$26 -> 0
A16: Infiltration/Inflow (by subtraction) | B16: ='Basic Data'!$C$27 -> 0 | C16: ='Basic Data'!$C$27 -> 0 | D16: ='Basic Data'!$C$27 -> 0 | E16: ='Basic Data'!$C$27 -> 0 | F16: ='Basic Data'!$C$27 -> 0 | G16: ='Basic Data'!$C$27 -> 0 | H16: ='Basic Data'!$C$27 -> 0 | I16: ='Basic Data'!$C$27 -> 0 | J16: ='Basic Data'!$C$27 -> 0 | K16: ='Basic Data'!$C$27 -> 0 | L16: ='Basic Data'!$C$27 -> 0 | M16: ='Basic Data'!$C$27 -> 0 | N16: ='Basic Data'!$C$27 -> 0 | O16: ='Basic Data'!$C$27 -> 0 | P16: ='Basic Data'!$C$27 -> 0 | Q16: ='Basic Data'!$C$27 -> 0 | R16: ='Basic Data'!$C$27 -> 0 | S16: ='Basic Data'!$C$27 -> 0 | T16: ='Basic Data'!$C$27 -> 0 | U16: ='Basic Data'!$C$27 -> 0 | V16: ='Basic Data'!$C$27 -> 0 | W16: ='Basic Data'!$C$27 -> 0
A17: Acute Dilution Factor | B17: ='Basic Data'!$C$28 -> 0 | C17: ='Basic Data'!$C$28 -> 0 | D17: ='Basic Data'!$C$28 -> 0 | E17: ='Basic Data'!$C$28 -> 0 | F17: ='Basic Data'!$C$28 -> 0 | G17: ='Basic Data'!$C$28 -> 0 | H17: ='Basic Data'!$C$28 -> 0 | I17: ='Basic Data'!$C$28 -> 0 | J17: ='Basic Data'!$C$28 -> 0 | K17: ='Basic Data'!$C$28 -> 0 | L17: ='Basic Data'!$C$28 -> 0 | M17: ='Basic Data'!$C$28 -> 0 | N17: ='Basic Data'!$C$28 -> 0 | O17: ='Basic Data'!$C$28 -> 0 | P17: ='Basic Data'!$C$28 -> 0 | Q17: ='Basic Data'!$C$28 -> 0 | R17: ='Basic Data'!$C$28 -> 0 | S17: ='Basic Data'!$C$28 -> 0 | T17: ='Basic Data'!$C$28 -> 0 | U17: ='Basic Data'!$C$28 -> 0 | V17: ='Basic Data'!$C$28 -> 0 | W17: ='Basic Data'!$C$28 -> 0
A18: Chronic Dilution Factor | B18: ='Basic Data'!$C$29 -> 0 | C18: ='Basic Data'!$C$29 -> 0 | D18: ='Basic Data'!$C$29 -> 0 | E18: ='Basic Data'!$C$29 -> 0 | F18: ='Basic Data'!$C$29 -> 0 | G18: ='Basic Data'!$C$29 -> 0 | H18: ='Basic Data'!$C$29 -> 0 | I18: ='Basic Data'!$C$29 -> 0 | J18: ='Basic Data'!$C$29 -> 0 | K18: ='Basic Data'!$C$29 -> 0 | L18: ='Basic Data'!$C$29 -> 0 | M18: ='Basic Data'!$C$29 -> 0 | N18: ='Basic Data'!$C$29 -> 0 | O18: ='Basic Data'!$C$29 -> 0 | P18: ='Basic Data'!$C$29 -> 0 | Q18: ='Basic Data'!$C$29 -> 0 | R18: ='Basic Data'!$C$29 -> 0 | S18: ='Basic Data'!$C$29 -> 0 | T18: ='Basic Data'!$C$29 -> 0 | U18: ='Basic Data'!$C$29 -> 0 | V18: ='Basic Data'!$C$29 -> 0 | W18: ='Basic Data'!$C$29 -> 0
A19: Dilution Factor for HH Limits | B19: ='Basic Data'!$C$30 -> 0 | C19: ='Basic Data'!$C$30 -> 0 | D19: ='Basic Data'!$C$30 -> 0 | E19: ='Basic Data'!$C$30 -> 0 | F19: ='Basic Data'!$C$30 -> 0 | G19: ='Basic Data'!$C$30 -> 0 | H19: ='Basic Data'!$C$30 -> 0 | I19: ='Basic Data'!$C$30 -> 0 | J19: ='Basic Data'!$C$30 -> 0 | K19: ='Basic Data'!$C$30 -> 0 | L19: ='Basic Data'!$C$30 -> 0 | M19: ='Basic Data'!$C$30 -> 0 | N19: ='Basic Data'!$C$30 -> 0 | O19: ='Basic Data'!$C$30 -> 0 | P19: ='Basic Data'!$C$30 -> 0 | Q19: ='Basic Data'!$C$30 -> 0 | R19: ='Basic Data'!$C$30 -> 0 | S19: ='Basic Data'!$C$30 -> 0 | T19: ='Basic Data'!$C$30 -> 0 | U19: ='Basic Data'!$C$30 -> 0 | V19: ='Basic Data'!$C$30 -> 0 | W19: ='Basic Data'!$C$30 -> 0
A20: Digester Flow (in MGD) | B20: ='Basic Data'!$C$31 -> 0 | C20: ='Basic Data'!$C$31 -> 0 | D20: ='Basic Data'!$C$31 -> 0 | E20: ='Basic Data'!$C$31 -> 0 | F20: ='Basic Data'!$C$31 -> 0 | G20: ='Basic Data'!$C$31 -> 0 | H20: ='Basic Data'!$C$31 -> 0 | I20: ='Basic Data'!$C$31 -> 0 | J20: ='Basic Data'!$C$31 -> 0 | K20: ='Basic Data'!$C$31 -> 0 | L20: ='Basic Data'!$C$31 -> 0 | M20: ='Basic Data'!$C$31 -> 0 | N20: ='Basic Data'!$C$31 -> 0 | O20: ='Basic Data'!$C$31 -> 0 | P20: ='Basic Data'!$C$31 -> 0 | Q20: ='Basic Data'!$C$31 -> 0 | R20: ='Basic Data'!$C$31 -> 0 | S20: ='Basic Data'!$C$31 -> 0 | T20: ='Basic Data'!$C$31 -> 0 | U20: ='Basic Data'!$C$31 -> 0 | V20: ='Basic Data'!$C$31 -> 0 | W20: ='Basic Data'!$C$31 -> 0
A21: Dry Sludge Production Rate (US Tons/day) | B21: ='Basic Data'!$C$32 -> 0 | C21: ='Basic Data'!$C$32 -> 0 | D21: ='Basic Data'!$C$32 -> 0 | E21: ='Basic Data'!$C$32 -> 0 | F21: ='Basic Data'!$C$32 -> 0 | G21: ='Basic Data'!$C$32 -> 0 | H21: ='Basic Data'!$C$32 -> 0 | I21: ='Basic Data'!$C$32 -> 0 | J21: ='Basic Data'!$C$32 -> 0 | K21: ='Basic Data'!$C$32 -> 0 | L21: ='Basic Data'!$C$32 -> 0 | M21: ='Basic Data'!$C$32 -> 0 | N21: ='Basic Data'!$C$32 -> 0 | O21: ='Basic Data'!$C$32 -> 0 | P21: ='Basic Data'!$C$32 -> 0 | Q21: ='Basic Data'!$C$32 -> 0 | R21: ='Basic Data'!$C$32 -> 0 | S21: ='Basic Data'!$C$32 -> 0 | T21: ='Basic Data'!$C$32 -> 0 | U21: ='Basic Data'!$C$32 -> 0 | V21: ='Basic Data'!$C$32 -> 0 | W21: ='Basic Data'!$C$32 -> 0
A23: Part III: CONCENTRATIONS LIMITING THE POTW DUE TO PASS THROUGH OR INTERFERENCE
A24: WQ Acute criteria, aquatic life (mg/L) | B24: =IF('POTW Limits'!K$10>0,'POTW Limits'!K$10/1000, "NA") -> 9 | C24: =IF('POTW Limits'!$K$11>0,'POTW Limits'!$K$11/1000, "NA") -> 0.36 | D24: =IF('POTW Limits'!$K$12>0,'POTW Limits'!$K$12/1000, "NA") -> 0.85 | E24: ='POTW Limits'!$K$13/1000 -> 0.13 | F24: ='POTW Limits'!$K$14/1000 -> 0.002204323516 | G24: ='POTW Limits'!$K$15/1000 -> 0.01527494908 | H24: ='POTW Limits'!$K$16/1000 -> 1.142836029 | I24: ='POTW Limits'!$K$17/1000 -> 0.01095385497 | J24: ='POTW Limits'!$K$18/1000 -> 0.022 | K24: ='POTW Limits'!$K$19/1000 -> 0.04261049684 | L24: ='POTW Limits'!$K$20/1000 -> 0.002470588235 | M24: NA | N24: ='POTW Limits'!$K$22/1000 -> 0.9205906728 | O24: ='POTW Limits'!$K$23/1000 -> 0.02 | P24: ='POTW Limits'!$K$24/1000 -> 0.001685854652 | Q24: ='POTW Limits'!$K$25/1000 -> 1.4 | R24: ='POTW Limits'!$K$26/1000 -> 0.00046 | S24: ='POTW Limits'!$K$27/1000 -> 0.07590921961 | T24: ='POTW Limits'!$K$29/1000 -> 0 | U24: =IF('POTW Limits'!K$30>0,'POTW Limits'!K$30/1000, "NA") -> NA | V24: ='POTW Limits'!$K$31/1000 -> 0 | W24: =IF('POTW Limits'!K$32>0,'POTW Limits'!K$32/1000, "NA") -> NA
A25: WQ Chronic criteria, aquatic life (mg/L) | B25: =IF('POTW Limits'!L$10>0,'POTW Limits'!L$10/1000, "NA") -> 1.6 | C25: ='POTW Limits'!$L$11/1000 -> 0.19 | D25: ='POTW Limits'!L12/1000 -> 0.048 | E25: ='POTW Limits'!$L$13/1000 -> 0.0053 | F25: ='POTW Limits'!$L$14/1000 -> 0.0008357967842 | G25: ='POTW Limits'!$L$15/1000 -> 0.0103950104 | H25: =IF(ISNUMBER('POTW Limits'!$L$16),'POTW Limits'!$L$16/1000,"NA") -> 0.1362195873 | I25: =IF(ISNUMBER('POTW Limits'!$L$17),'POTW Limits'!$L$17/1000,"NA") -> 0.007641679649 | J25: =IF(ISNUMBER('POTW Limits'!$L$18),'POTW Limits'!$L$18/1000,"NA") -> 0.0052 | K25: ='POTW Limits'!$L$19/1000 -> 0.001660469889 | L25: ='POTW Limits'!$L$20/1000 -> 1.2e-05 | M25: NA | N25: ='POTW Limits'!$L$22/1000 -> 0.1023415245 | O25: ='POTW Limits'!$L$23/1000 -> 0.005 | P25: =IF(ISNUMBER('POTW Limits'!$L$24),'POTW Limits'!$L$24/1000,"NA") -> NA | Q25: ='POTW Limits'!$L$25/1000 -> 0.04 | R25: ='POTW Limits'!$L$26/1000 -> 6.3e-05 | S25: ='POTW Limits'!$L$27/1000 -> 0.06875422214 | T25: ='POTW Limits'!L$29/1000 -> 0 | U25: =IF('POTW Limits'!L$30>0,'POTW Limits'!L$30/1000, "NA") -> NA | V25: ='POTW Limits'!L$31/1000 -> 0 | W25: =IF('POTW Limits'!L$32>0,'POTW Limits'!L$32/1000, "NA") -> NA
A26: WQ Chronic criteria, human health (mg/L) | B26: ='POTW Limits'!$M$10/1000 -> 0.014 | C26: NA | D26: NA | E26: NA | F26: NA | G26: NA | H26: NA | I26: NA | J26: ='POTW Limits'!$M18/1000 -> 0.7 | K26: NA | L26: ='POTW Limits'!$M20/1000 -> 0.00014 | M26: NA | N26: ='POTW Limits'!$M22/1000 -> 0.61 | O26: ='POTW Limits'!$M23/1000 -> 0.17 | P26: NA | Q26: ='POTW Limits'!$M$25/1000 -> 0.0017 | R26: NA | S26: NA | T26: ='POTW Limits'!M$29/1000 -> 0 | U26: ='POTW Limits'!M$30/1000 -> 0 | V26: ='POTW Limits'!M$31/1000 -> 0 | W26: ='POTW Limits'!M$32/1000 -> 0
A27: Activated Sludge Inhibition Level | B27: NA | C27: 0.1 | D27: 0.1 | E27: NA | F27: 1 | G27: 1 | H27: 10 | I27: 1 | J27: 0.1 | K27: 1 | L27: 0.1 | M27: NA | N27: 1 | O27: NA | P27: 0.25 | Q27: NA | R27: NA | S27: 0.3
A28: Anaerobic Digestor Inhibition Level | B28: NA | C28: 1.6 | D28: 1.6 | E28: NA | F28: 20 | G28: 110 | H28: NA | I28: 40 | J28: 4 | K28: 340 | L28: NA | M28: NA | N28: 10 | O28: NA | P28: 13 | Q28: NA | R28: NA | S28: 400
A29: Class A Sludge standards (40 CFR 503) | B29: NA | C29: 41 | D29: 41 | E29: NA | F29: 39 | G29: NA | H29: NA | I29: 1500 | J29: NA | K29: 300 | L29: 17 | M29: 75 | N29: 420 | O29: 100 | P29: NA | Q29: NA | R29: NA | S29: 2800
A30: Sludge ceiling concentration for beneficial use | B30: NA | C30: 75 | D30: 75 | E30: NA | F30: 85 | G30: NA | H30: NA | I30: 4300 | J30: NA | K30: 840 | L30: 57 | M30: 75 | N30: 420 | O30: 100 | P30: NA | Q30: NA | R30: NA | S30: 7500
A32: Part IV: POLLUTANT CONCENTRATION ------ SUMMARY
A33: Estimated Average Industrial Conc. | B33: ='Sample Data'!C10/1000 -> 0 | C33: ='Sample Data'!D10/1000 -> 0 | D33: ='Sample Data'!E10/1000 -> 0 | E33: ='Sample Data'!F10/1000 -> 0 | F33: ='Sample Data'!G10/1000 -> 0 | G33: ='Sample Data'!H10/1000 -> 0 | H33: ='Sample Data'!I10/1000 -> 0 | I33: ='Sample Data'!J10/1000 -> 0 | J33: ='Sample Data'!K10/1000 -> 0 | K33: ='Sample Data'!L10/1000 -> 0 | L33: ='Sample Data'!M10/1000 -> 0 | M33: ='Sample Data'!N10/1000 -> 0 | N33: ='Sample Data'!O10/1000 -> 0 | O33: ='Sample Data'!P10/1000 -> 0 | P33: ='Sample Data'!Q10/1000 -> 0 | Q33: ='Sample Data'!R10/1000 -> 0 | R33: ='Sample Data'!S10/1000 -> 0 | S33: ='Sample Data'!T10/1000 -> 0 | T33: ='Sample Data'!U10/1000 -> 0 | U33: ='Sample Data'!V10/1000 -> 0 | V33: ='Sample Data'!W10/1000 -> 0 | W33: ='Sample Data'!X10/1000 -> 0
A34: Ambient Concentration (receiving water) | B34: ='Sample Data'!C9/1000 -> 0 | C34: ='Sample Data'!D9/1000 -> 0 | D34: ='Sample Data'!E9/1000 -> 0.00012 | E34: ='Sample Data'!F9/1000 -> 0 | F34: ='Sample Data'!G9/1000 -> 0 | G34: ='Sample Data'!H9/1000 -> 0 | H34: ='Sample Data'!I9/1000 -> 0 | I34: ='Sample Data'!J9/1000 -> 0 | J34: ='Sample Data'!K9/1000 -> 0 | K34: ='Sample Data'!L9/1000 -> 0 | L34: ='Sample Data'!M9/1000 -> 0 | M34: ='Sample Data'!N9/1000 -> 0 | N34: ='Sample Data'!O9/1000 -> 0 | O34: ='Sample Data'!P9/1000 -> 0 | P34: ='Sample Data'!Q9/1000 -> 0 | Q34: ='Sample Data'!R9/1000 -> 0 | R34: ='Sample Data'!S9/1000 -> 0 | S34: ='Sample Data'!T9/1000 -> 0 | T34: ='Sample Data'!U9/1000 -> 0 | U34: ='Sample Data'!V9/1000 -> 0 | V34: ='Sample Data'!W9/1000 -> 0 | W34: ='Sample Data'!X9/1000 -> 0
A35: Adjusted Domestic concentration | B35: =IF(B51="Y",IF(B38>0,IF((B38*B13-B33*B15)>0,(B38*B13-B33*B15)/(B13-B15),0),IF((B36*B13-B33*B15)>0,(B36*B13-B33*B15)/(B13-B15),0)),IF(B38>0,B38,B36)) ->  | D35: 0.015 | S35: =IF(S51="Y",IF(S38>0,IF((S38*S13-S33*S15)>0,(S38*S13-S33*S15)/(S13-S15),0),IF((S36*S13-S33*S15)>0,(S36*S13-S33*S15)/(S13-S15),0)),IF(S38>0,S38,S36)) ->  | T35: =IF(T51="Y",IF(T38>0,IF((T38*T13-T33*T15)>0,(T38*T13-T33*T15)/(T13-T15),0),IF((T36*T13-T33*T15)>0,(T36*T13-T33*T15)/(T13-T15),0)),IF(T38>0,T38,T36)) ->  | U35: =IF(U51="Y",IF(U38>0,IF((U38*U13-U33*U15)>0,(U38*U13-U33*U15)/(U13-U15),0),IF((U36*U13-U33*U15)>0,(U36*U13-U33*U15)/(U13-U15),0)),IF(U38>0,U38,U36)) ->  | V35: =IF(V51="Y",IF(V38>0,IF((V38*V13-V33*V15)>0,(V38*V13-V33*V15)/(V13-V15),0),IF((V36*V13-V33*V15)>0,(V36*V13-V33*V15)/(V13-V15),0)),IF(V38>0,V38,V36)) ->  | W35: =IF(W51="Y",IF(W38>0,IF((W38*W13-W33*W15)>0,(W38*W13-W33*W15)/(W13-W15),0),IF((W36*W13-W33*W15)>0,(W36*W13-W33*W15)/(W13-W15),0)),IF(W38>0,W38,W36)) -> 
A36: Typical Domestic Concentrations | B36: 0.003 | C36: 0.003 | D36: 0 | E36: 0 | F36: 0.003 | G36: 0.001 | H36: 0.05 | I36: 0.061 | J36: 0.041 | K36: 0.049 | L36: 0.0003 | M36: 0.01 | N36: 0.021 | O36: 0.001 | P36: 0.005 | Q36: 0 | R36: 0 | S36: 0.175 | T36: 0 | U36: 0 | V36: 0 | W36: 0
A37: Average Sludge Level (mg/Kg - Dry) | B37: ='Sample Data'!C8 ->  | C37: ='Sample Data'!D8 ->  | D37: ='Sample Data'!E8 -> 18 | E37: ='Sample Data'!F8 ->  | F37: ='Sample Data'!G8 ->  | G37: ='Sample Data'!H8 ->  | H37: ='Sample Data'!I8 ->  | I37: ='Sample Data'!J8 ->  | J37: ='Sample Data'!K8 ->  | K37: ='Sample Data'!L8 ->  | L37: ='Sample Data'!M8 ->  | M37: ='Sample Data'!N8 ->  | N37: ='Sample Data'!O8 ->  | O37: ='Sample Data'!P8 ->  | P37: ='Sample Data'!Q8 ->  | Q37: ='Sample Data'!R8 ->  | R37: ='Sample Data'!S8 ->  | S37: ='Sample Data'!T8 ->  | T37: ='Sample Data'!U8 ->  | U37: ='Sample Data'!V8 ->  | V37: ='Sample Data'!W8 ->  | W37: ='Sample Data'!X8 -> 
A38: Average Influent Level (mg/l) | B38: ='Sample Data'!C3/1000 ->  | C38: ='Sample Data'!D3/1000 ->  | D38: ='Sample Data'!E3/1000 -> 0.015 | E38: ='Sample Data'!F3/1000 ->  | F38: ='Sample Data'!G3/1000 ->  | G38: ='Sample Data'!H3/1000 ->  | H38: ='Sample Data'!I3/1000 ->  | I38: ='Sample Data'!J3/1000 ->  | J38: ='Sample Data'!K3/1000 ->  | K38: ='Sample Data'!L3/1000 ->  | L38: ='Sample Data'!M3/1000 ->  | M38: ='Sample Data'!N3/1000 ->  | N38: ='Sample Data'!O3/1000 ->  | O38: ='Sample Data'!P3/1000 ->  | P38: ='Sample Data'!Q3/1000 ->  | Q38: ='Sample Data'!R3/1000 ->  | R38: ='Sample Data'!S3/1000 ->  | S38: ='Sample Data'!T3/1000 ->  | T38: ='Sample Data'!U3/1000 ->  | U38: ='Sample Data'!V3/1000 ->  | V38: ='Sample Data'!W3/1000 ->  | W38: ='Sample Data'!X3/1000 -> 
A39: Average Effluent Level (mg/l) | B39: ='Sample Data'!C4/1000 ->  | C39: ='Sample Data'!D4/1000 ->  | D39: ='Sample Data'!E4/1000 -> 0.006 | E39: ='Sample Data'!F4/1000 ->  | F39: ='Sample Data'!G4/1000 ->  | G39: ='Sample Data'!H4/1000 ->  | H39: ='Sample Data'!I4/1000 ->  | I39: ='Sample Data'!J4/1000 ->  | J39: ='Sample Data'!K4/1000 ->  | K39: ='Sample Data'!L4/1000 ->  | L39: ='Sample Data'!M4/1000 ->  | M39: ='Sample Data'!N4/1000 ->  | N39: ='Sample Data'!O4/1000 ->  | O39: ='Sample Data'!P4/1000 ->  | P39: ='Sample Data'!Q4/1000 ->  | Q39: ='Sample Data'!R4/1000 ->  | R39: ='Sample Data'!S4/1000 ->  | S39: ='Sample Data'!T4/1000 ->  | T39: ='Sample Data'!U4/1000 ->  | U39: ='Sample Data'!V4/1000 ->  | V39: ='Sample Data'!W4/1000 ->  | W39: ='Sample Data'!X4/1000 -> 
A41: Part V: REMOVAL RATES
A42: Average Primary Removal Rate | B42: ='Sample Data'!C$5 ->  | C42: ='Sample Data'!D$5 ->  | D42: ='Sample Data'!E$5 -> 0.4 | E42: ='Sample Data'!F$5 ->  | F42: ='Sample Data'!G$5 ->  | G42: ='Sample Data'!H$5 ->  | H42: ='Sample Data'!I$5 ->  | I42: ='Sample Data'!J$5 ->  | J42: ='Sample Data'!K$5 ->  | K42: ='Sample Data'!L$5 ->  | L42: ='Sample Data'!M$5 ->  | M42: ='Sample Data'!N$5 ->  | N42: ='Sample Data'!O$5 ->  | O42: ='Sample Data'!P$5 ->  | P42: ='Sample Data'!Q$5 ->  | Q42: ='Sample Data'!R$5 ->  | R42: ='Sample Data'!S$5 ->  | S42: ='Sample Data'!T$5 ->  | T42: ='Sample Data'!U$5 ->  | U42: ='Sample Data'!V$5 ->  | V42: ='Sample Data'!W$5 ->  | W42: ='Sample Data'!X$5 -> 
A43: Average Overall Removal Rate | B43: ='Sample Data'!C$6 ->  | C43: ='Sample Data'!D$6 ->  | D43: ='Sample Data'!E$6 -> 0.6 | E43: ='Sample Data'!F$6 ->  | F43: ='Sample Data'!G$6 ->  | G43: ='Sample Data'!H$6 ->  | H43: ='Sample Data'!I$6 ->  | I43: ='Sample Data'!J$6 ->  | J43: ='Sample Data'!K$6 ->  | K43: ='Sample Data'!L$6 ->  | L43: ='Sample Data'!M$6 ->  | M43: ='Sample Data'!N$6 ->  | N43: ='Sample Data'!O$6 ->  | O43: ='Sample Data'!P$6 ->  | P43: ='Sample Data'!Q$6 ->  | Q43: ='Sample Data'!R$6 ->  | R43: ='Sample Data'!S$6 ->  | S43: ='Sample Data'!T$6 ->  | T43: ='Sample Data'!U$6 ->  | U43: ='Sample Data'!V$6 ->  | V43: ='Sample Data'!W$6 ->  | W43: ='Sample Data'!X$6 -> 
A44: Reference Primary Removal Rate | C44: 0.1 | D44: 0.1 | F44: 0.15 | G44: 0.27 | H44: 0.22 | I44: 0.22 | J44: 0.27 | K44: 0.57 | L44: 0.1 | N44: 0.14 | P44: 0.2 | S44: 0.27
A45: Reference 2d Decile Plant Removal | B45: 0.35 | C45: 0.31 | D45: 0.31 | F45: 0.33 | G45: 0.68 | H45: 0.68 | I45: 0.67 | J45: 0.41 | K45: 0.39 | L45: 0.5 | N45: 0.25 | O45: 0.33 | P45: 0.5 | Q45: 0.35 | S45: 0.64
A46: Reference Ave Plant Removal | B46: 0.5 | C46: 0.45 | D46: 0.45 | F46: 0.67 | G46: 0.82 | H46: 0.82 | I46: 0.86 | J46: 0.69 | K46: 0.61 | L46: 0.6 | M46: 0.8 | N46: 0.42 | O46: 0.5 | P46: 0.75 | Q46: 0.5 | R46: 0 | S46: 0.79
A47: Reference 8th Decile Removal | C47: 0.53 | D47: 0.53 | F47: 0.91 | G47: 0.91 | H47: 0.91 | I47: 0.95 | J47: 0.84 | K47: 0.76 | L47: 0.79 | N47: 0.62 | O47: 0.67 | P47: 0.88 | S47: 0.88
A49: Part VI: HOW TO CALCULATE LIMITS:
A50: Sampling Data Available (inf, eff, sludge) (Y/N) | B50: ='Basic Data'!$C$35 -> 0 | C50: ='Basic Data'!$C$35 -> 0 | D50: ='Basic Data'!$C$35 -> 0 | E50: ='Basic Data'!$C$35 -> 0 | F50: ='Basic Data'!$C$35 -> 0 | G50: ='Basic Data'!$C$35 -> 0 | H50: ='Basic Data'!$C$35 -> 0 | I50: ='Basic Data'!$C$35 -> 0 | J50: ='Basic Data'!$C$35 -> 0 | K50: ='Basic Data'!$C$35 -> 0 | L50: ='Basic Data'!$C$35 -> 0 | M50: ='Basic Data'!$C$35 -> 0 | N50: ='Basic Data'!$C$35 -> 0 | O50: ='Basic Data'!$C$35 -> 0 | P50: ='Basic Data'!$C$35 -> 0 | Q50: ='Basic Data'!$C$35 -> 0 | R50: ='Basic Data'!$C$35 -> 0 | S50: ='Basic Data'!$C$35 -> 0 | T50: ='Basic Data'!$C$35 -> 0 | U50: ='Basic Data'!$C$35 -> 0 | V50: ='Basic Data'!$C$35 -> 0 | W50: ='Basic Data'!$C$35 -> 0
A51: Credit present loading of existing sources (Y/N) | B51: ='Basic Data'!$C$36 -> 0 | C51: ='Basic Data'!$C$36 -> 0 | D51: ='Basic Data'!$C$36 -> 0 | E51: ='Basic Data'!$C$36 -> 0 | F51: ='Basic Data'!$C$36 -> 0 | G51: ='Basic Data'!$C$36 -> 0 | H51: ='Basic Data'!$C$36 -> 0 | I51: ='Basic Data'!$C$36 -> 0 | J51: ='Basic Data'!$C$36 -> 0 | K51: ='Basic Data'!$C$36 -> 0 | L51: ='Basic Data'!$C$36 -> 0 | M51: ='Basic Data'!$C$36 -> 0 | N51: ='Basic Data'!$C$36 -> 0 | O51: ='Basic Data'!$C$36 -> 0 | P51: ='Basic Data'!$C$36 -> 0 | Q51: ='Basic Data'!$C$36 -> 0 | R51: ='Basic Data'!$C$36 -> 0 | S51: ='Basic Data'!$C$36 -> 0 | T51: ='Basic Data'!$C$36 -> 0 | U51: ='Basic Data'!$C$36 -> 0 | V51: ='Basic Data'!$C$36 -> 0 | W51: ='Basic Data'!$C$36 -> 0
A52: Adjust for receiving water pollution | B52: ='Basic Data'!$C$37 -> 0 | C52: ='Basic Data'!$C$37 -> 0 | D52: ='Basic Data'!$C$37 -> 0 | E52: ='Basic Data'!$C$37 -> 0 | F52: ='Basic Data'!$C$37 -> 0 | G52: ='Basic Data'!$C$37 -> 0 | H52: ='Basic Data'!$C$37 -> 0 | I52: ='Basic Data'!$C$37 -> 0 | J52: ='Basic Data'!$C$37 -> 0 | K52: ='Basic Data'!$C$37 -> 0 | L52: ='Basic Data'!$C$37 -> 0 | M52: ='Basic Data'!$C$37 -> 0 | N52: ='Basic Data'!$C$37 -> 0 | O52: ='Basic Data'!$C$37 -> 0 | P52: ='Basic Data'!$C$37 -> 0 | Q52: ='Basic Data'!$C$37 -> 0 | R52: ='Basic Data'!$C$37 -> 0 | S52: ='Basic Data'!$C$37 -> 0 | T52: ='Basic Data'!$C$37 -> 0 | U52: ='Basic Data'!$C$37 -> 0 | V52: ='Basic Data'!$C$37 -> 0 | W52: ='Basic Data'!$C$37 -> 0
A53: Use Observed Overall Removal Rate (Y/N) | B53: ='Basic Data'!$C38 -> 0 | C53: ='Basic Data'!$C38 -> 0 | D53: ='Basic Data'!$C38 -> 0 | E53: ='Basic Data'!$C38 -> 0 | F53: ='Basic Data'!$C38 -> 0 | G53: ='Basic Data'!$C38 -> 0 | H53: ='Basic Data'!$C38 -> 0 | I53: ='Basic Data'!$C38 -> 0 | J53: ='Basic Data'!$C38 -> 0 | K53: ='Basic Data'!$C38 -> 0 | L53: ='Basic Data'!$C38 -> 0 | M53: ='Basic Data'!$C38 -> 0 | N53: ='Basic Data'!$C38 -> 0 | O53: ='Basic Data'!$C38 -> 0 | P53: ='Basic Data'!$C38 -> 0 | Q53: ='Basic Data'!$C38 -> 0 | R53: ='Basic Data'!$C38 -> 0 | S53: ='Basic Data'!$C38 -> 0 | T53: ='Basic Data'!$C38 -> 0 | U53: ='Basic Data'!$C38 -> 0 | V53: ='Basic Data'!$C38 -> 0 | W53: ='Basic Data'!$C38 -> 0
A54: Use Observed Primary Removal Rate (Y/N) | B54: ='Basic Data'!$C39 -> 0 | C54: ='Basic Data'!$C39 -> 0 | D54: ='Basic Data'!$C39 -> 0 | E54: ='Basic Data'!$C39 -> 0 | F54: ='Basic Data'!$C39 -> 0 | G54: ='Basic Data'!$C39 -> 0 | H54: ='Basic Data'!$C39 -> 0 | I54: ='Basic Data'!$C39 -> 0 | J54: ='Basic Data'!$C39 -> 0 | K54: ='Basic Data'!$C39 -> 0 | L54: ='Basic Data'!$C39 -> 0 | M54: ='Basic Data'!$C39 -> 0 | N54: ='Basic Data'!$C39 -> 0 | O54: ='Basic Data'!$C39 -> 0 | P54: ='Basic Data'!$C39 -> 0 | Q54: ='Basic Data'!$C39 -> 0 | R54: ='Basic Data'!$C39 -> 0 | S54: ='Basic Data'!$C39 -> 0 | T54: ='Basic Data'!$C39 -> 0 | U54: ='Basic Data'!$C39 -> 0 | V54: ='Basic Data'!$C39 -> 0 | W54: ='Basic Data'!$C39 -> 0
A56: Part VII: LOCAL LIMITS CORRESPONDING TO THE CRITERIA ABOVE BASED ON COMPLIANCE WITH:
A57: Acute WQ Standards (in mg/l) | B57: =Acute(B13,B14,B15,B17,B24,B33,B34,B35,B36,B38,B43,B46,B50,B51,B52,B53) -> 0 | C57: =Acute(C13,C14,C15,C17,C24,C33,C34,C35,C36,C38,C43,C46,C50,C51,C52,C53) -> 0 | D57: =Acute(D13,D14,D15,D17,D24,D33,D34,D35,D36,D38,D43,D46,D50,D51,D52,D53) -> 0 | E57: =Acute(E13,E14,E15,E17,E24,E33,E34,E35,E36,E38,E43,E46,E50,E51,E52,E53) -> 0 | F57: =Acute(F13,F14,F15,F17,F24,F33,F34,F35,F36,F38,F43,F46,F50,F51,F52,F53) -> 0 | G57: =Acute(G13,G14,F15,G17,G24,G33,G34,G35,G36,G38,G43,G46,G50,G51,G52,G53) -> 0 | H57: =Acute(H13,H14,H15,H17,H24,H33,H34,H35,H36,H38,H43,H46,H50,H51,H52,H53) -> 0 | I57: =Acute(I13,I14,I15,I17,I24,I33,I34,I35,I36,I38,I43,I46,I50,I51,I52,I53) -> 0 | J57: =Acute(J13,J14,J15,J17,J24,J33,J34,J35,J36,J38,J43,J46,J50,J51,J52,J53) -> 0 | K57: =Acute(K13,K14,K15,K17,K24,K33,K34,K35,K36,K38,K43,K46,K50,K51,K52,K53) -> 0 | L57: =Acute(L13,L14,L15,L17,L24,L33,L34,L35,L36,L38,L43,L46,L50,L51,L52,L53) -> 0 | M57: NA | N57: =Acute(N13,N14,N15,N17,N24,N33,N34,N35,N36,N38,N43,N46,N50,N51,N52,N53) -> 0 | O57: =Acute(O13,O14,O15,O17,O24,O33,O34,O35,O36,O38,O43,O46,O50,O51,O52,O53) -> 0 | P57: =Acute(P13,P14,P15,P17,P24,P33,P34,P35,P36,P38,P43,P46,P50,P51,P52,P53) -> 0 | Q57: NA | R57: =Acute(R13,R14,R15,R17,R24,R33,R34,R35,R36,R38,R43,R46,R50,R51,R52,R53) -> 0 | S57: 0 | T57: 0 | U57: NA | V57: 0 | W57: NA
A58: Chronic WQ Standards (in mg/l) | B58: =Chronic(B13,B14,B15,B18,B25,B33,B34,B35,B36,B38,B43,B46,B50,B51,B52,B53) -> 0 | C58: 0 | D58: 0 | E58: 0 | F58: 0 | G58: 0 | H58: NA | I58: =Chronic(I13,I14,I15,I18,I25,I33,I34,I35,I36,I38,I43,I46,I50,I51,I52,I53) -> 0 | J58: =Chronic(J13,J14,J15,J18,J25,J33,J34,J35,J36,J38,J43,J46,J50,J51,J52,J53) -> 0 | K58: =Chronic(K13,K14,K15,K18,K25,K33,K34,K35,K36,K38,K43,K46,K50,K51,K52,K53) -> 0 | L58: =Chronic(L13,L14,L15,L18,L25,L33,L34,L35,L36,L38,L43,L46,L50,L51,L52,L53) -> 0 | M58: NA | N58: =Chronic(N13,N14,N15,N18,N25,N33,N34,N35,N36,N38,N43,N46,N50,N51,N52,N53) -> 0 | O58: =Chronic(O13,O14,O15,O18,O25,O33,O34,O35,O36,O38,O43,O46,O50,O51,O52,O53) -> 0 | P58: NA | Q58: NA | R58: =Chronic(R13,R14,R15,R18,R25,R33,R34,R35,R36,R38,R43,R46,R50,R51,R52,R53) -> 0 | S58: =Chronic(S13,S14,S15,S18,S25,S33,S34,S35,S36,S38,S43,S46,S50,S51,S52,S53) -> 0 | T58: =Chronic(T13,T14,T15,T18,T25,T33,T34,T35,T36,T38,T43,T46,T50,T51,T52,T53) -> 0 | U58: NA | V58: 0 | W58: NA
A59: HH Limits (in mg/L) | B59: =Hhealth(B13,B14,B15,B19,B26,B33,B34,B35,B36,B38,B43,B46,B50,B51,B52,B53) -> 0 | C59: NA | D59: NA | E59: NA | F59: NA | G59: NA | H59: NA | I59: NA | J59: =Hhealth(J13,J14,J15,J19,J26,J33,J34,J35,J36,J38,J43,J46,J50,J51,J52,J53) -> 0 | K59: NA | L59: =Hhealth(L13,L14,L15,L19,L26,L33,L34,L35,L36,L38,L43,L46,L50,L51,L52,L53) -> 0 | M59: NA | N59: =Hhealth(N13,N14,N15,N19,N26,N33,N34,N35,N36,N38,N43,N46,N50,N51,N52,N53) -> 0 | O59: =Hhealth(O13,O14,O15,O19,O26,O33,O34,O35,O36,O38,O43,O46,O50,O51,O52,O53) -> 0 | P59: NA | Q59: =Hhealth(Q13,Q14,Q15,Q19,Q26,Q33,Q34,Q35,Q36,Q38,Q43,Q46,Q50,Q51,Q52,Q53) -> 0 | R59: NA | S59: NA | T59: =Hhealth(T13,T14,T15,T19,T26,T33,T34,T35,T36,T38,T43,T46,T50,T51,T52,T53) -> 0 | U59: =Hhealth(U13,U14,U15,U19,U26,U33,U34,U35,U36,U38,U43,U46,U50,U51,U52,U53) -> 0 | V59: =Hhealth(V13,V14,V15,V19,V26,V33,V34,V35,V36,V38,V43,V46,V50,V51,V52,V53) -> 0 | W59: =Hhealth(W13,W14,W15,W19,W26,W33,W34,W35,W36,W38,W43,W46,W50,W51,W52,W53) -> 0
A60: Sludge Application Limits (in mg/l) | B60: NA | C60: =Sludge($A$7,C13,C15,C21,C29,C30,C33,C35,C36,C37,C38,C43,C46,C50,C51,C52,C53) ->  | D60: =Sludge($A$7,D13,D15,D21,D29,D30,D33,D35,D36,D37,D38,D43,D46,D50,D51,D52,D53) ->  | E60: NA | F60: =Sludge($A$7,F13,F15,F21,F29,F30,F33,F35,F36,F37,F38,F43,F46,F50,F51,F52,F53) ->  | G60: NA | H60: NA | I60: =Sludge($A$7,I13,I15,I21,I29,I30,I33,I35,I36,I37,I38,I43,I46,I50,I51,I52,I53) ->  | J60: NA | K60: =Sludge($A$7,K13,K15,K21,K29,K30,K33,K35,K36,K37,K38,K43,K46,K50,K51,K52,K53) ->  | L60: =Sludge($A$7,L13,L15,L21,L29,L30,L33,L35,L36,L37,L38,L43,L46,L50,L51,L52,L53) ->  | M60: =Sludge($A$7,M13,M15,M21,M29,M30,M33,M35,M36,M37,M38,M43,M46,M50,M51,M52,M53) ->  | N60: =Sludge($A$7,N13,N15,N21,N29,N30,N33,N35,N36,N37,N38,N43,N46,N50,N51,N52,N53) ->  | O60: =Sludge($A$7,O13,O15,O21,O29,O30,O33,O35,O36,O37,O38,O43,O46,O50,O51,O52,O53) ->  | P60: NA | Q60: NA | R60: NA | S60: =Sludge($A$7,S13,S15,S21,S29,S30,S33,S35,S36,S37,S38,S43,S46,S50,S51,S52,S53) ->  | T60: =IF(Sludge($A$7,T13,T15,T21,T29,T30,T33,T35,T36,T37,T38,T43,T46,T50,T51,T52,T53)>0, Sludge($A$7,T13,T15,T21,T29,T30,T33,T35,T36,T37,T38,T43,T46,T50,T51,T52,T53), "NA") ->  | U60: =IF(Sludge($A$7,U13,U15,U21,U29,U30,U33,U35,U36,U37,U38,U43,U46,U50,U51,U52,U53)>0, Sludge($A$7,U13,U15,U21,U29,U30,U33,U35,U36,U37,U38,U43,U46,U50,U51,U52,U53), "NA") ->  | V60: =IF(Sludge($A$7,V13,V15,V21,V29,V30,V33,V35,V36,V37,V38,V43,V46,V50,V51,V52,V53)>0, Sludge($A$7,V13,V15,V21,V29,V30,V33,V35,V36,V37,V38,V43,V46,V50,V51,V52,V53), "NA") ->  | W60: =IF(Sludge($A$7,W13,W15,W21,W29,W30,W33,W35,W36,W37,W38,W43,W46,W50,W51,W52,W53)>0, Sludge($A$7,W13,W15,W21,W29,W30,W33,W35,W36,W37,W38,W43,W46,W50,W51,W52,W53), "NA") -> 
A61: Activated Sludge Inhibition (in mg/l) | B61: NA | C61: =ASInhib($A$9,C13,C15,C27,C33,C35,C36,C38,C42,C44,C50,C51,C54) -> NA | D61: NA | E61: NA | F61: =ASInhib($A$9,F13,F15,F27,F33,F35,F36,F38,F42,F44,F50,F51,F54) -> NA | G61: NA | H61: NA | I61: NA | J61: NA | K61: NA | L61: NA | M61: NA | N61: =ASInhib($A$9,N13,N15,N27,N33,N35,N36,N38,N42,N44,N50,N51,N54) -> NA | O61: NA | P61: =ASInhib($A$9,P13,P15,P27,P33,P35,P36,P38,P42,P44,P50,P51,P54) -> NA | Q61: NA | R61: NA | S61: =ASInhib($A$9,S13,S15,S27,S33,S35,S36,S38,S42,S44,S50,S51,S54) -> NA | T61: =IF(ASInhib($A$9,T13,T15,T27,T33,T35,T36,T38,T42,T44,T50,T51,T54)>0,ASInhib($A$9,T13,T15,T27,T33,T35,T36,T38,T42,T44,T50,T51,T54),"NA") -> NA | U61: =IF(ASInhib($A$9,U13,U15,U27,U33,U35,U36,U38,U42,U44,U50,U51,U54)>0,ASInhib($A$9,U13,U15,U27,U33,U35,U36,U38,U42,U44,U50,U51,U54),"NA") -> NA | V61: =IF(ASInhib($A$9,V13,V15,V27,V33,V35,V36,V38,V42,V44,V50,V51,V54)>0,ASInhib($A$9,V13,V15,V27,V33,V35,V36,V38,V42,V44,V50,V51,V54),"NA") -> NA | W61: =IF(ASInhib($A$9,W13,W15,W27,W33,W35,W36,W38,W42,W44,W50,W51,W54)>0,ASInhib($A$9,W13,W15,W27,W33,W35,W36,W38,W42,W44,W50,W51,W54),"NA") -> NA
A62: Anaerobic Digestor Inhibition (in mg/l) | B62: NA | C62: =Digestor(C13,C15,C20,C28,C33,C35,C36,C38,C43,C46,C50,C51,C53) ->  | D62: NA | E62: NA | F62: =Digestor(F13,F15,F20,F28,F33,F35,F36,F38,F43,F46,F50,F51,F53) ->  | G62: =Digestor(G13,F15,G20,G28,G33,G35,G36,G38,G43,G46,G50,G51,G53) ->  | H62: NA | I62: =Digestor(I13,I15,I20,I28,I33,I35,I36,I38,I43,I46,I50,I51,I53) ->  | J62: =J38*(J28/((J37*(J21*2000)/(J20*1000000*8.34))))*(J13/J15) ->  | K62: =Digestor(K13,K15,K20,K28,K33,K35,K36,K38,K43,K46,K50,K51,K53) ->  | L62: NA | M62: NA | N62: =Digestor(N13,N15,N20,N28,N33,N35,N36,N38,N43,N46,N50,N51,N53) ->  | O62: NA | P62: =Digestor(P13,P15,P20,P28,P33,P35,P36,P38,P43,P46,P50,P51,P53) ->  | Q62: NA | R62: NA | S62: =Digestor(S13,S15,S20,S28,S33,S35,S36,S38,S43,S46,S50,S51,S53) ->  | T62: =IF(Digestor(T13,T15,T20,T28,T33,T35,T36,T38,T43,T46,T50,T51,T53)>0,Digestor(T13,T15,T20,T28,T33,T35,T36,T38,T43,T46,T50,T51,T53),"NA") ->  | U62: =IF(Digestor(U13,U15,U20,U28,U33,U35,U36,U38,U43,U46,U50,U51,U53)>0,Digestor(U13,U15,U20,U28,U33,U35,U36,U38,U43,U46,U50,U51,U53),"NA") ->  | V62: =IF(Digestor(V13,V15,V20,V28,V33,V35,V36,V38,V43,V46,V50,V51,V53)>0,Digestor(V13,V15,V20,V28,V33,V35,V36,V38,V43,V46,V50,V51,V53),"NA") ->  | W62: =IF(Digestor(W13,W15,W20,W28,W33,W35,W36,W38,W43,W46,W50,W51,W53)>0,Digestor(W13,W15,W20,W28,W33,W35,W36,W38,W43,W46,W50,W51,W53),"NA") -> 
A64: Part VIII: SAMPLE QUALITY: COMPARISON OF LOADINGS AND REMOVAL RATES IMPLIED BY SAMPLE DATA
A65: Pollutants in Influent (per sampling) | B65: =(B13*B38)*8.34 ->  | D65: 0
A66: Pollutants in biosolids (per sampling) | B66: =(B21*2000*B37/1000000) ->  | D66: 0
A67: Pollutants in effluent (per sampling) | B67: =(B13-B20)*'Sample Data'!C$4*8.34/1000 ->  | C67: =(C13-C20)*'Sample Data'!D$4*8.34/1000 ->  | D67: =(D13-D20)*'Sample Data'!E$4*8.34/1000 -> 0 | E67: =(E13-E20)*'Sample Data'!E$4*8.34/1000 -> 0 | F67: =(F13-F20)*'Sample Data'!F$4*8.34/1000 ->  | G67: =(G13-G20)*'Sample Data'!G$4*8.34/1000 ->  | H67: =(H13-H20)*'Sample Data'!H$4*8.34/1000 ->  | I67: =(I13-I20)*'Sample Data'!I$4*8.34/1000 ->  | J67: =(J13-J20)*'Sample Data'!J$4*8.34/1000 ->  | K67: =(K13-K20)*'Sample Data'!K$4*8.34/1000 ->  | L67: =(L13-L20)*'Sample Data'!L$4*8.34/1000 ->  | M67: =(M13-M20)*'Sample Data'!M$4*8.34/1000 ->  | N67: =(N13-N20)*'Sample Data'!N$4*8.34/1000 ->  | O67: =(O13-O20)*'Sample Data'!O$4*8.34/1000 ->  | P67: =(P13-P20)*'Sample Data'!P$4*8.34/1000 ->  | Q67: =(Q13-Q20)*'Sample Data'!Q$4*8.34/1000 ->  | R67: =(R13-R20)*'Sample Data'!Q$4*8.34/1000 ->  | S67: =(S13-S20)*'Sample Data'!R$4*8.34/1000 ->  | T67: =(T13-T20)*'Sample Data'!S$4*8.34/1000 ->  | U67: =(U13-U20)*'Sample Data'!T$4*8.34/1000 ->  | V67: =(V13-V20)*'Sample Data'!U$4*8.34/1000 ->  | W67: =(W13-W20)*'Sample Data'!V$4*8.34/1000 -> 
A68: % Influent load accounted for: (eff/inf) | B68: =(((B21*B37*0.002)+(B13-B20)*B39*8.34))/(B13*B38*8.34) -> 
A69: Current HW Load Implied by Sludge Data: | B69: =IF(B53="Y",(B66/B43),((B66/B46))) ->  | C69: =IF(C46<>0,(C66/C46)/C73,((C66/C43)/C73)) ->  | D69: =IF(D46<>0,(D66/D46)/D73,((D66/D43)/D73)) ->  | E69: =IF(E46<>0,(E66/E46)/E73,((E66/E43)/E73)) ->  | R69: =((R66/R43)/R73) -> 
A70: Local Limit implied by %max Biosolids level | B70: NA | C70: =(((C29-C37)/C37)*C38*C13)/C15 ->  | D70: =(((D29-D37)/D37)*D38*D13)/D15 ->  | E70: NA | F70: =(((F29-F37)/F37)*F38*F13)/F15 ->  | G70: NA | H70: NA | I70: =(((I29-I37)/I37)*I38*I13)/I15 ->  | J70: NA | K70: =(((K29-K37)/K37)*K38*K13)/K15 ->  | L70: =(((L29-L37)/L37)*L38*L13)/L15 ->  | M70: =(((M29-M37)/M37)*M38*M13)/M15 ->  | N70: =(((N29-N37)/N37)*N38*N13)/N15 ->  | O70: =(((O29-O37)/O37)*O38*O13)/O15 ->  | P70: NA | Q70: NA | R70: NA | S70: =(((S29-S37)/S37)*S38*S13)/S15 ->  | T70: NA | U70: NA | V70: NA | W70: NA
A72: PART IX: MASS BASED ANALYSIS
A73: Limiting MAHL (Dom Load + LL*IUflow) | B73: =((B35*(B13-B15))+(B15*B77))*8.34 ->  | C73: =((C35*(C13-C15))+(C15*C77))*8.34 ->  | D73: =((D35*(D13-D15))+(D15*D77))*8.34 ->  | R73: =((R35*(R13-R15))+(R15*R77))*8.34 -> 0
A74: Max. Allowable Industrial Loading | B74: =B77*B15*(8.34) -> 0 | E74: 0 | H74: 0 | Q74: 0 | R74: 0 | S74: =S77*S15*(8.34) ->  | T74: =T77*T15*(8.34) ->  | U74: =U77*U15*(8.34) ->  | V74: =V77*V15*(8.34) ->  | W74: =W77*W15*(8.34) -> 
A76: Part X: LOCAL LIMIT RECAP: | B76: =B11 -> Antimony | C76: =C11 -> Arsenic(T) | D76: Arsenic(+5) | E76: Beryllium | F76: Cadmium | G76: Chr (+6) | H76: Chrome (T) | I76: Copper | J76: Cyanide | K76: Lead | L76: Mercury | M76: Molybdenum | N76: Nickel | O76: Selenium | P76: Silver | Q76: Thallium | R76: TriButylTin | S76: Zinc | T76: Add #1 | U76: Add #2 | V76: Add #3 | W76: Add #4
A77: Lowest Limit | B77: =MIN(B57,B58,B59,B60,B61,B62) -> 0 | C77: =MIN(C57,C58,C59,C60,C61,C62) ->  | E77: =MIN(E57,E58,E59,E60,E61,E62) -> 0 | H77: 0 | Q77: 0 | R77: 0 | T77: =MIN(T57,T58,T59,T60,T61,T62) -> 
A78: ='Basic Data'!C40 -> 0 | B78: =B77*(1/(1+$A$78)) -> 0 | E78: =E77*(1/(1+$A$78)) -> 0 | H78: 0 | Q78: 0 | R78: 0 | T78: =T77*(1/(1+$A$78)) -> 
A79: Proposed Limit (MANUALLY ENTER) | D79: None

Sheet POTW Limits
A1: SPREADSHEET BASED On SHEET CREATED BY D. NUNNALLEE, REV. 1-92 BY G. SHERVEY, MOD BY D. Knight 8-02
D2: FACILITY: | E2: ='Basic Data'!C14 -> 0
D3: RUN DATE: | E3: =TODAY() -> 2010-06-16
A4: WATER QUALITY CRITERIA CALCULATIONS (in ug/L unless otherwise noted)
A5: Receiving Water: (F)resh, (M)arine, (B)oth | B5: ='Basic Data'!C20 -> 0
A6: Hardness for Use in Calculations: | B6: 60
B7: PRIOR | C7: CAR | D7: WATER QUALITY STANDARD | K7: TOTAL | L7: TOTAL | M7: Total | N7: Conv. Fact.
B8: ITY | C8: CIN | D8: FRESH | G8: MARINE | K8: LIMITING | L8: LIMITING | M8: LIMITING | N8: Marine | O8: Fresh | P8: Fresh
A9: POLLUTANT | B9: PLTNT? | C9: GEN? | D9: ACUTE | E9: CHRONIC | F9: Hhealth | G9: ACUTE | H9: CHRONIC | I9: Hhealth | J9: COMMENTS | K9: ACUTE | L9: CHRONIC | M9: HH | N9: dis/tot | O9: Acute | P9: Chronic
A10: Antimony (i) | D10: =D213 -> 9000 | E10: =E213 -> 1600 | F10: =H213 -> 14 | I10: =I213 -> 4300 | K10: =IF($B$5="F", D10/O10, IF($B$5="M", G10/N10, IF($B$5="B", D10/O10, "Complete box B5!"))) -> 9000 | L10: =IF($B$5="F", E10/P10, IF($B$5="M", H10/N10, IF($B$5="B", E10/P10, "Complete box B5!"))) -> 1600 | M10: =IF($B$5="F", IF(F10>0,F10,0), IF($B$5="M",IF(I10>0,I10,0), IF($B$5="B",IF(F10<I10, F10, IF(I10>0, I10,0)),"Complete box B5!"))) -> 14 | N10: 1 | O10: 1 | P10: 1
A11: ARSENIC (T) | B11: Y | C11: Y | D11: 360 | E11: 190 | G11: 69 | H11: 36 | J11: WAC 173-201A | K11: =IF($B$5="F", D11/O11, IF($B$5="M", G11/N11, IF($B$5="B", IF(D11<G11, D11/O11, G11/N11), "Complete box B5!"))) -> 360 | L11: =IF($B$5="F", E11/P11, IF($B$5="M", H11/N11, IF($B$5="B", IF(E11<H11, E11/P11, H11/N11), "Complete box B5!"))) -> 190 | M11: NA | N11: 1 | O11: 1 | P11: 1
A12: ARSENIC(PENT) | B12: Y | C12: Y | D12: 850 | E12: 48 | G12: 2319 | H12: 13 | J12: Gold Book | K12: 850 | L12: =IF($B$5="F", E12/P12, IF($B$5="M", H12/N12, IF($B$5="B", IF(E12<H12, E12/P12, H12/N12), "Complete box B5!"))) -> 48 | M12: NA | N12: 1 | O12: 1 | P12: 1
A13: Beryllium | D13: =D227 -> 130 | E13: =E227 -> 5.3 | J13: Gold Book | K13: =IF($B$5="F", D13/O13, IF($B$5="M", G13/N13, IF($B$5="B", D13/O13, "Complete box B5!"))) -> 130 | L13: =IF($B$5="F", E13/P13, IF($B$5="M", H13/N13, IF($B$5="B", E13/P13, "Complete box B5!"))) -> 5.3 | M13: NA | N13: 1 | O13: 1 | P13: 1
A14: CADMIUM - Dependent on Hardness in $B$6 | B14: Y | C14: N | D14: =(1.136672-((LN($B$6))*(0.041838)))*EXP(1.128*(LN($B$6))-3.828) -> 2.127993991 | E14: =(1.101672-((LN($B$6))*(0.041838)))*EXP(0.7852*(LN($B$6))-3.49) -> 0.7065999961 | G14: 42 | H14: 9.3 | J14: WAC 173-201A | K14: 2.204323516 | L14: 0.8357967842 | M14: NA | N14: 0.994 | O14: =(1.136672-((LN($B$6))*(0.041838))) -> 0.9653728122 | P14: =(1.01672-((LN($B$6))*(0.041838))) -> 0.8454208122
A15: CHROMIUM(HEX) | B15: Y | C15: N | D15: 15 | E15: 10 | G15: 1100 | H15: 50 | K15: 15.27494908 | L15: 10.3950104 | M15: NA | N15: 0.993 | O15: 0.982 | P15: 0.962
A16: CHROMIUM(T) - Dependent on hardness in $B$6 | B16: N | C16: N | D16: =(0.316)*EXP(0.819*(LN($B$6))+3.688) -> 361.136185 | E16: =(0.86)*EXP(0.819*(LN($B$6))+1.561) -> 117.1488451 | G16: 10300 | H16: NA | J16: WAC 173-201A, | K16: 1142.836029 | L16: =IF($B$5="F", E16/P16, IF($B$5="M", H16, IF($B$5="B", IF(E16<H16, E16/P16, H16), "Complete box B5!"))) -> 136.2195873 | M16: NA | N16: 1 | O16: 0.316 | P16: 0.86
A17: COPPER - Dependent on Hardness in $B$6 | B17: Y | C17: N | D17: =0.96*EXP(0.9422*(LN($B$6))-1.464) -> 10.51570077 | E17: =(0.96)*EXP(0.8545*(LN($B$6))-1.465) -> 7.336012463 | G17: 4.8 | H17: 3.1 | J17: WAC 173-201A | K17: 10.95385497 | L17: 7.641679649 | M17: NA | N17: 0.83 | O17: 0.96 | P17: 0.96
A18: CYANIDE | B18: Y | C18: N | D18: 22 | E18: 5.2 | F18: 700 | G18: 1 | H18: 1 | I18: 220000 | J18: WAC 173-201A | K18: 22 | L18: =IF($B$5="F", E18/P18, IF($B$5="M", H18, IF($B$5="B", IF(E18<H18, E18/P18, H18), "Complete box B5!"))) -> 5.2 | M18: =IF($B$5="F", IF(F18>0,F18,0), IF($B$5="M",IF(I18>0,I18,0), IF($B$5="B",IF(F18<I18, F18, IF(I18>0, I18,0)),"Complete box B5!"))) -> 700 | N18: 1 | O18: 1 | P18: 1
A19: LEAD - Dependent on hardness in $B$6 | B19: Y | C19: N | D19: =(1.46203-((LN($B$6))*(0.145712)))*EXP(1.273*(LN($B$6))-1.46) -> 36.87660959 | E19: =(1.46203-((LN($B$6))*(0.145712)))*EXP(1.273*(LN($B$6))-4.705) -> 1.437028534 | G19: 210 | H19: 8.1 | J19: WAC 173-201A, | K19: 42.61049684 | L19: 1.660469889 | M19: NA | N19: 0.951 | O19: =(1.46203-((LN($B$6))*(0.145712))) -> 0.8654348651 | P19: =(1.46203-((LN($B$6))*(0.145712))) -> 0.8654348651
A20: MERCURY | B20: Y | C20: N | D20: 2.1 | E20: 0.012 | F20: 0.14 | G20: 1.8 | H20: 0.025 | I20: 0.15 | J20: WAC 173-201A, | K20: 2.470588235 | L20: 0.012 | M20: 0.14 | N20: 0.85 | O20: 0.85 | P20: 1
A21: Molybdenum | B21: N | C21: N | M21: NA
A22: NICKEL - Dependent on hardness in $B$6 | B22: Y | C22: N | D22: =(0.998)*(EXP(0.846*(LN($B$6))+3.3612)) -> 918.7494914 | E22: =(0.997)*(EXP(0.846*(LN($B$6))+1.1645)) -> 102.0344999 | F22: 610 | G22: 74 | H22: 8.2 | I22: 4600 | J22: WAC 173-201A, | K22: 920.5906728 | L22: 102.3415245 | M22: 610 | N22: 0.99 | O22: 0.998 | P22: 0.997
A23: SELENIUM | B23: Y | C23: N | D23: 20 | E23: 5 | F23: 170 | G23: 290 | H23: 71 | I23: 11000 | J23: WAC 173-201A, | K23: 20 | L23: 5 | M23: 170 | N23: 0.998 | O23: 1 | P23: 1
A24: SILVER - Dependent on hardness in $B$6. | B24: Y | C24: N | D24: =0.85*EXP(1.72*(LN($B$6))-6.52) -> 1.432976454 | E24: NA | G24: 1.9 | H24: NA | J24: WAC 173-201A, | K24: 1.685854652 | L24: =IF($B$5="F", E24, IF($B$5="M", H24, IF($B$5="B", IF(E24<H24, E24, H24), "Complete box B5!"))) -> NA | M24: NA | N24: 0.85 | O24: 0.85 | P24: 1
A25: Thallium | D25: =D374 -> 1400 | E25: =E374 -> 40 | F25: =H374 -> 1.7 | G25: =F374 -> 2130 | I25: =I374 -> 6.3 | K25: 1400 | L25: 40 | M25: 1.7 | N25: 1 | O25: 1 | P25: 1
A26: Tributyl Tin (TBT) | D26: =D378 -> 0.46 | E26: =E378 -> 0.063 | G26: =F378 -> 0.37 | H26: =G378 -> 0.01 | K26: 0.46 | L26: 0.063 | M26: NA | N26: 1 | O26: 1 | P26: 1
A27: ZINC- Dependent on hardness in $B$6 | B27: Y | C27: N | D27: =0.978*EXP(0.8473*(LN($B$6))+0.8604) -> 74.23921678 | E27: =0.986*EXP(0.8473*(LN($B$6))+0.7614) -> 67.79166303 | G27: 90 | H27: 81 | J27: WAC 173-201A, | K27: 75.90921961 | L27: 68.75422214 | M27: NA | N27: 0.946 | O27: 0.978 | P27: 0.986
A28: Arsenic (inorganic) | B28: Y | C28: N | F28: 0.018 | I28: 0.14 | J28: National Toxics Rule | K28: 0 | L28: 0 | M28: 0.018 | N28: 1 | O28: 1 | P28: 1
A29: ='Local Limits'!T11 -> Add #1 | K29: 0 | L29: 0 | M29: 0 | N29: 1 | O29: 1 | P29: 1
A30: ='Local Limits'!U11 -> Add #2 | K30: 0 | L30: 0 | M30: 0 | N30: 1 | O30: 1 | P30: 1
A31: ='Local Limits'!V11 -> Add #3 | K31: 0 | L31: 0 | M31: 0 | N31: 1 | O31: 1 | P31: 1
A32: ='Local Limits'!W11 -> Add #4 | K32: 0 | L32: 0 | M32: 0 | N32: 1 | O32: 1 | P32: 1
K33: 0 | L33: 0 | M33: 0 | N33: 1 | O33: 1 | P33: 1
K34: 0 | L34: 0 | M34: 0 | N34: 1 | O34: 1 | P34: 1
A58: HARDNESS VALUE USED FOR HARDNESS DEPENDENT LIMITS>>>> | E58: =B206 -> Y | G58: mg/L
A59: * = INSUFFIFIENT DATA TO DEVELOP CRITERIA
A60: VALUE PRESENTED IS TH L.O.E.L- LOWEST OBSERVED
A70: THIS SPREADSHEET USES NAMED RANGES.
A71: THESE INSTRUCTIONS ARE NAMED '??'.
A72: THE MAIN TABLE OF POLLUTANTS
A73: IS NAMED 'TABLE.' USE THE F5
A74: "GO TO" KEY TO GO TO THE TOP OF THE TABLE.
A75: THE PRINT AREA IS NAMED '1', YOU MAY USE THE NAME
A76: TO BOTH GO TO THE TABLE AND AS A PRINT RANGE.
A77: '1' IS COLUMNS A THRU G AND ROWS 1 THRU 63.
A79: ENTER THE HARDNESS AT THE TOP OF THE TABLE.
A80: HARDNESS WILL THEN BE TRANSFERRED TO
A81: EVERY PARAMETER THAT IS HARDNESS
A82: DEPENDENT. COPY LINE ENTRIES FROM THE
A83: TABLE UP TO '1'. FORMULAS IN THE TABLE ARE SET
A84: AS ABSOLUTE, SO THE COPY PROCESS WILL NOT HARM
A85: THE FORMULAS OR ALTER THE VALUES.
A87: FILL IN THE FACILITY NAME, DATE, ETC.
A88: BY USING THE F2 "EDIT" KEY.
A188: < Click "+" to restore spaces in between pollutants used and other values
A197: WATER QUALITY CRITERIA (in ug/L unless otherwise noted)
B198: PRIOR | C198: CAR | D198: Water Quality Criteria | H198: Human Health Criteria | J198: Organoleptic | L198: Metals Translators
B199: ITY | C199: CIN | D199: Fresh | F199: Marine | J199: Effects | K199: Source and | L199: Freshwater | N199: Marine
A200: Pollutant, CAS No. & Application Ref. No. | B200: PLTNT? | C200: GEN? | D200: acute | E200: chronic | F200: acute | G200: chronic | H200: Fresh | I200: Marine | K200: Comments | L200: Acute | M200: Chronic | N200: Acute | O200: Chronic
A201: ENTER RECEIVING WATER TSS (IF UNKNOWN LEAVE BLANK) > | B201: 0
A202: IF RECEIVING WATER TSS IS ANNUAL DATA INSERT A, OR IF FROM CRITICAL PERIOD INSERT S> | B202: S
A203: ENTER HARDNESS>>>>>>>>> | B203: ='Basic Data'!C19 -> 0
A205: ACENAPTHENE 83329 1B | B205: Y | C205: N | D205: 1,700.* | E205: 520.* | F205: 970.* | G205: 710* | H205: 1200 | I205: 2700 | J205: 20 | K205: Gold Book, FR 63, 237-HH
A206: ACROLEIN 107028 1V | B206: Y | C206: N | D206: 68.* | E206: 21.* | F206: 55.* | H206: 320 | I206: 780 | K206: NTR, Gold Book
A207: ACRYLONITRILE 107131 2V | B207: Y | C207: Y | D207: 7,550.* | E207: 2,600.* | H207: 0.059 | I207: 0.66 | K207: Gold Book, NTR - HH
A208: ALKALINITY | B208: N | C208: N | E208: 20,000. | K208: Gold Book
A209: ALDRIN 309002 1P | B209: Y | C209: Y | D209: 2.5 | E209: 0.0019 | F209: 0.71 | G209: 0.0019 | H209: 0.00013 | I209: 0.00014 | K209: WAC 173-201A, NTR
A210: ALUMINUM, total recoverable 7429905 | B210: N | C210: N | D210: 750 | E210: 87 | K210: EPA 440/5-86-008
A211: AMMONIA unionized -see seperate spreadsheets for FW criteria | B211: N | C211: N | F211: 233 | G211: 35 | K211: WAC 173-201A
A212: ANTHRACENE 120127 3B | B212: Y | C212: N | H212: 9600 | I212: 110000 | K212: NTR
A213: ANTIMONY (INORGANIC) 7440360 1M | B213: Y | C213: N | D213: 9000 | E213: 1600 | H213: 14 | I213: 4300 | K213: NTR - HH
A214: ARSENIC (dissolved) 7440382 2M | B214: Y | C214: Y | D214: 360 | E214: 190 | F214: 69 | G214: 36 | K214: WAC 173-201A | L214: 1 | M214: 1 | N214: 1
A215: ARSENIC (inorganic) | B215: Y | C215: Y | H215: 0.018 | I215: 0.14 | K215: NTR
A216: ARSENIC(PENT) | B216: Y | C216: Y | D216: 850 | E216: 48 | F216: 2319 | G216: 13 | K216: Gold Book
A217: ARSENIC(TRI) | B217: Y | C217: Y | D217: 360 | E217: 190 | F217: 69 | G217: 36 | K217: Gold Book
A218: ASBESTOS 1332214 | B218: Y | C218: Y | H218: 7000,000 fibers/L | K218: NTR-HH
A219: BACTERIA | B219: N | C219: N | D219: see document
A220: BARIUM 7440393 | B220: N | C220: N | E220: EPA recommends 1 mg/L for drinking water | K220: Gold Book
A221: BENZENE 71432 3V | B221: Y | C221: Y | D221: 5300 | F221: 5100 | G221: 700 | H221: 1.2 | I221: 71 | K221: Gold Book, NTR - HH
A222: BENZIDINE 92875 4B | B222: Y | C222: Y | D222: 2500 | H222: 0.00012 | I222: 0.00054 | K222: Gold Book, NTR - HH
A223: BENZO(a)ANTHRACENE 56553 5B | B223: Y | C223: Y | H223: 0.0028 | I223: 0.031 | K223: NTR
A224: BENZO(a)PYRENE 50328 6B | B224: Y | C224: Y | H224: 0.0028 | I224: 0.031 | K224: NTR
A225: BENZO(b)FLUORANTHENE 205992 7B | B225: Y | C225: Y | H225: 0.0028 | I225: 0.031 | K225: NTR
A226: BENZO(k) FLUORANTHENE 207089 9B | B226: Y | C226: Y | H226: 0.0028 | I226: 0.031 | K226: NTR
A227: BERYLLIUM 7440417 3M | B227: Y | C227: Y | D227: 130 | E227: 5.3 | K227: Gold Book
A228: BHC - ALPHA 319846 2P | B228: Y | C228: Y | D228: 100 | F228: 0.34 | H228: 0.0039 | I228: 0.013 | K228: Gold Book, NTR - HH
A229: BHC - BETA 319857 3P | B229: Y | C229: Y | D229: 100 | F229: 0.34 | H229: 0.014 | I229: 0.046 | K229: Gold Book, NTR - HH
A230: BHC - GAMMA 58899 4P (Lindane) | B230: N | C230: Y | D230: 2 | E230: 0.08 | F230: 0.16 | H230: 0.019 | I230: 0.063 | K230: 173-201A, NTR - HH
A231: BHC - DELTA 319868 5P | B231: Y | C231: Y | K231: no criteria available, substance listed on NPDES applic.
A232: BIS(2-CHLOROETHYL)ETHER 111444 11B | B232: Y | C232: Y | H232: 0.031 | I232: 1.4 | K232: NTR
A233: BIS(2 CHLOROISOPROPYL)ETHER 39638329 12B | B233: Y | C233: N | H233: 1400 | I233: 170000 | K233: NTR
A234: BIS(2-ETHYLHEXYL) PHTHALATE 117817 13B | B234: Y | C234: Y | D234: 940 | E234: 3 | F234: 2944 | G234: 3.4 | H234: 1.8 | I234: 5.9 | K234: Gold Book, NTR
A235: Boron
A236: BROMOFORM 75252 5V | B236: Y | C236: Y | H236: 4.3 | I236: 360 | K236: NTR
A237: BUTYLBENZYL PHTHALATE 85687 | H237: 3000 | I237: 5200 | K237: FR 63, 237-HH
A238: CADMIUM - 7440439 4M Hardness dependent | B238: Y | C238: N | D238: =(1.136672-((LN($B$239))*(0.041838)))*EXP(1.128*(LN($B$239))-3.828) ->  | E238: =(1.101672-((LN($B$239))*(0.041838)))*EXP(0.7852*(LN($B$239))-3.49) ->  | F238: 42 | G238: 9.3 | K238: WAC 173-201A | L238: 0.943 | M238: 0.943 | N238: 0.994 | O238: 0.994
A239: Based on hardness in next column | B239: =B203 -> 0
A240: CARBON TETRACHLORIDE 56235 6V | B240: Y | C240: Y | D240: 35200 | F240: 50000 | H240: 0.25 | I240: 4.4 | K240: Gold Book, NTR - HH
A241: CHLOROBENZENE 108907 7V | B241: Y | C241: N | H241: 680 | I241: 21000 | K241: NTR
A242: CHLORDANE 57749 6P | B242: Y | C242: Y | D242: 2.4 | E242: 0.0043 | F242: 0.09 | G242: 0.004 | H242: 0.00057 | I242: 0.00059 | K242: WAC 173-201A, NTR
A243: CHLORODIBROMOMETHANE 124481 8V | B243: Y | C243: Y | H243: 0.41 | I243: 34 | K243: NTR
A244: CHLORIDE (dissolved) in mg/L 16887006 | B244: N | C244: N | D244: 860 | E244: 230 | K244: SEE WAC 173-201A FOOTNOTES
A245: 2-CHLORONAPTHALENE 91587 16B | B245: Y | C245: N | D245: 1600 | F245: 7.5 | H245: 1700 | I245: 4300 | K245: Gold Book, FR 63, 237-HH
A246: CHLORINE 7782505 | B246: N | C246: N | D246: 19 | E246: 11 | F246: 13 | G246: 7.5 | K246: WAC 173-201A
A247: CHLOROALKYL ETHERS | B247: Y | C247: N | D247: 238000 | K247: Gold Book
A248: CHLOROETHYL ETHER (BIS - 2) 111444 | B248: Y | C248: Y | H248: 0.031 | I248: 1.4 | K248: NTR
A249: CHLOROFORM 67663 11V | B249: Y | C249: Y | D249: 28900 | E249: 1240 | H249: 5.7 | I249: 470 | K249: Gold Book, NTR - HH
A250: CHLOROISOPROPYL ETHER (BIS-2) 108601 | B250: Y | C250: N | H250: 1400 | I250: 170000 | K250: NTR
A251: CHLOROMETHYL ETHER (BIS) | B251: N | C251: Y | H251: 3.76e-06 | I251: 0.00184 | K251: Gold Book
A252: 2-CHLOROPHENOL 95578 1A | B252: Y | C252: N | D252: 4380 | E252: 2000 | H252: 120 | I252: 400 | J252: 0.1 | K252: Gold Book, FR 63, 237-HH
A253: 4-CHLOROPHENOL 106489 | B253: N | C253: N | F253: 29700 | J253: 0.1 | K253: Gold Book
A254: CHLOROPHENOXY HERBICIDES(2,4,5-TP) 93721 | B254: N | C254: N | F254: 10 in drinking water | K254: Gold Book
A255: CHLOROPHENOXY HERBICIDES(2,4-D) 94757 | B255: N | C255: N | F255: 100 in drinking water | K255: Gold Book
A256: CHLORPYRIFOS 2921882 | B256: N | C256: N | D256: 0.083 | E256: 0.041 | F256: 0.011 | G256: 0.0056 | K256: WAC 173-201A
A257: CHLORO-4METHYL-3 PHENOL | B257: N | C257: N | D257: 30 | K257: Gold Book
A258: CHROMIUM(HEX) 18540299 | B258: Y | C258: N | D258: 15 | E258: 10 | F258: 1100 | G258: 50 | K258: WAC 173-201A | L258: 0.982 | M258: 0.962 | N258: 0.993 | O258: 0.993
A259: CHROMIUM(TRI) -16065831 5M Hardness dependent | B259: N | C259: N | D259: =(0.316)*EXP(0.819*(LN($B$260))+3.688) ->  | E259: =(0.86)*EXP(0.819*(LN($B$260))+1.561) ->  | F259: 10300 | G259: NA | K259: WAC 173-201A, EXCEPT MARINE ACUTE
A260: Based on hardness in next column | B260: =B203 -> 0 | L260: 0.316 | M260: 0.86
A261: CHRYSENE 218019 18B | B261: Y | C261: Y | H261: 0.0028 | I261: 0.031 | K261: NTR
A262: COLOR | B262: N | C262: N | D262: narrative statement see document
A263: COPPER - 744058 6M Hardness dependent | B263: Y | C263: N | D263: =0.96*EXP(0.9422*(LN($B$264))-1.464) ->  | E263: =(0.96)*EXP(0.8545*(LN($B$264))-1.465) ->  | F263: 4.8 | G263: 3.1 | J263: 1000 | K263: WAC 173-201A | L263: =IF(AND($B$202=0,$B$201=0),0.996, IF(AND($B$202="S",$B$201<6.7), 1, IF(AND($B$202="s", $B$201>=6.7),1.91*$B$201^ -0.341, IF(AND($B$202="a", $B$201<11.4), 1, IF(AND($B$202="a",$B$201>=11.4), 2.29*$B$201^ -0.341))))) -> 0.996 | M263: =IF(AND($B$202=0,$B$201=0),0.996, IF(AND($B$202="s",$B$201<6.7), 1, IF(AND($B$202="s", $B$201>=6.7),1.91*$B$201^ -0.341, IF(AND($B$202="a", $B$201<11.4), 1, IF(AND($B$202="a",$B$201>=11.4), 2.29*$B$201^ -0.341))))) -> 0.996 | N263: 0.83 | O263: 0.83
A264: Based on hardness in next column | B264: =B203 -> 0
A265: CYANIDE 57125 14M | B265: Y | C265: N | D265: 22 | E265: 5.2 | F265: 1 | G265: 1 | H265: 700 | I265: 220000 | K265: WAC 173-201A, NTR
A266: DDT 50293 7P | B266: Y | C266: Y | D266: 1.1 | E266: 0.001 | F266: 0.13 | G266: 0.001 | H266: 0.00059 | I266: 0.00059 | K266: WAC 173-201A, NTR
A267: DDT METABOLITE (DDE) 72559 8P | B267: Y | C267: Y | D267: 1.1 | E267: 0.001 | F267: 0.13 | G267: 0.001 | H267: 0.00059 | I267: 0.00059 | K267: WAC 173-201A, NTR
A268: DDT METABOLITE (DDD) 72548 9P | B268: Y | C268: Y | D268: 1.1 | E268: 0.001 | F268: 0.13 | G268: 0.001 | H268: 0.00083 | I268: 0.00084 | K268: WAC 173-201A, NTR
A269: DEMETON | B269: Y | C269: N | E269: 0.1 | G269: 0.1 | K269: Gold Book
A270: DIBENZO(a,h)ANTHRACENE 53703 19B | B270: Y | C270: Y | H270: 0.0028 | I270: 0.031 | K270: NTR
A271: DIBUTYLPHTHALATE 84742 | B271: Y | C271: N | D271: 940 | E271: 3 | F271: 2944 | G271: 3.4 | H271: 2700 | I271: 12000 | K271: Gold Book, NTR - HH
A272: 1,2 DICHLOROBENZENE 95501 20B | B272: Y | C272: N | D272: 1120 | E272: 763 | F272: 1970 | H272: 2700 | I272: 17000 | K272: NTR - HH
A273: 1,3 DICHLOROBENZENE 541731 21B | B273: Y | C273: N | D273: 1120 | E273: 763 | F273: 1970 | H273: 400 | I273: 2600 | K273: NTR - HH
A274: 1,4 DICHLOROBENZENE 106467 22B | B274: Y | C274: N | D274: 1120 | E274: 763 | F274: 1970 | H274: 400 | I274: 2600 | K274: NTR - HH
A275: 3,3 DICHLOROBENZIDINE 91941 23B | B275: Y | C275: Y | H275: 0.04 | I275: 0.077 | K275: NTR
A276: DICHLOROBROMOMETHANE 75274 12V | B276: Y | C276: Y | H276: 0.27 | I276: 22 | K276: NTR
A277: 1,2 DICHLOROETHANE 107062 15V | B277: Y | C277: Y | D277: 118000 | E277: 20000 | F277: 113000 | H277: 0.38 | I277: 99 | K277: Gold Book, NTR - HH
A278: 1,1 DICHLOROETHYLENE 75354 16V | B278: Y | C278: Y | D278: 11600 | F278: 224000 | H278: 0.057 | I278: 3.2 | K278: Gold Book, NTR - HH
A279: 2,3 DICHLOROPHENOL | J279: 0.04
A280: 2,4 DICHLOROPHENOL 1208312 2A | B280: N | C280: N | D280: 2020 | E280: 365 | H280: 93 | I280: 790 | J280: 0.3 | K280: NTR - HH
A281: 2,5 DICHLOROPHENOL | J281: 0.5
A282: 2,6 DICHLOROPHENOL | J282: 0.2
A283: 1,2 DICHLOROPROPANE 78875 | B283: Y | C283: N | D283: 23000 | E283: 5700 | F283: 10300 | G283: 3040 | H283: 0.52 | I283: 39 | K283: Gold Book, FR 63, 237-HH
A284: 1,3 DICHLOROPROPENE 542756 | B284: Y | C284: N | D284: 6060 | E284: 244 | F284: 790 | H284: 87 | I284: 14100 | K284: Gold Book
A285: 1,3 -DICHLOROPROPYLENE 542756 18V | B285: Y | C285: N | H285: 10 | I285: 1700 | K285: NTR
A286: DIELDRIN 60571 10P | B286: Y | C286: Y | D286: 2.5 | E286: 0.0019 | F286: 0.71 | G286: 0.0019 | H286: 0.00014 | I286: 0.00014 | K286: WAC 173-201A, NTR
A287: DIETHYLPHTHALATE 84662 24B | B287: Y | C287: N | D287: 940 | E287: 3 | F287: 2944 | G287: 3.4 | H287: 23000 | I287: 120000 | K287: Gold Book, NTR - HH
A288: 2,4 DIMETHYLPHENOL 105679 | B288: Y | C288: N | D288: 2120 | H288: 540 | I288: 2300 | J288: 400 | K288: Gold Book, FR 63, 237-HH
A289: DIMETHYLPHTHALATE 131113 25B | B289: Y | C289: N | D289: 940 | E289: 3 | F289: 2944 | G289: 3.4 | H289: 313000 | I289: 2900000 | K289: Gold Book, NTR - HH
A290: DI-n-BUTYL PHTHALATE 84742 26B | B290: Y | C290: N | H290: 2700 | I290: 12000 | K290: NTR
A291: 2-METHYL-4,6 -DINITROPHENOL 534521 4A | B291: Y | C291: N | H291: 13.4 | I291: 765 | K291: NTR
A292: 2,4-DINITROPHENOL 51285 5A | B292: Y | C292: N | H292: 70 | I292: 14000 | K292: NTR
A293: DINITROTOLUENE 2,4 121142 27B | B293: Y | C293: Y | D293: 330 | E293: 230 | F293: 590 | G293: 370 | H293: 0.11 | I293: 9.1 | K293: Gold Book, NTR - HH
A294: DINITROTOLUENE 2,6 606202 28B | B294: Y | C294: N | D294: 330 | E294: 230 | F294: 590 | G294: 370 | K294: Gold Book
A295: DINITRO-O-CRESOL 2,4 | B295: Y | C295: N | H295: 13.4 | I295: 765 | K295: Gold Book
A296: DIOXIN (2,3,7,8-TCDD) 1746016 | B296: Y | C296: Y | D296: 0.01 | E296: 1e-05 | H296: 1.3e-08 | I296: 1.4e-08 | K296: Gold Book, NTR - HH
A297: 1,2 DIPHENYLHYDRAZINE 122667 30B | B297: Y | C297: Y | D297: 270 | H297: 0.04 | I297: 0.54 | K297: Gold Book, NTR - HH
A298: DI-2-ETHYLHEXYLPHTHALATE 117817 | B298: Y | C298: Y | D298: 940 | E298: 3 | F298: 2944 | G298: 3.4 | H298: 1.8 | I298: 5.9 | K298: WQC based on Gold Book values for phthalate esthers, HH-NTR
A299: ENDOSULFAN a 959988 11P, b 33213659 12P | B299: Y | C299: N | D299: 0.22 | E299: 0.056 | F299: 0.034 | G299: 0.0087 | H299: 0.93 | I299: 2 | K299: WAC 173-201A, NTR
A300: ENDOSULFAN SULFATE 1031078 13P | B300: Y | C300: N | H300: 0.93 | I300: 2 | K300: NTR
A301: ENDRIN 72208 14P | B301: Y | C301: N | D301: 0.18 | E301: 0.0023 | F301: 0.037 | G301: 0.0023 | H301: 0.76 | I301: 0.81 | K301: WAC 173-201A, NTR
A302: ENDRIN ALDEHYDE 7421934 15P | B302: Y | C302: N | H302: 0.76 | I302: 0.81 | K302: NTR
A303: ETHYLBENZENE 100414 19V | B303: Y | C303: N | D303: 32000 | F303: 430 | H303: 3100 | I303: 29000 | K303: Gold Book, NTR - HH
A304: FLUORANTHENE 206440 31B | B304: Y | C304: N | D304: 3980 | F304: 40 | G304: 16 | H304: 300 | I304: 370 | K304: Gold Book, NTR - HH
A305: FLUORENE 86737 32B | B305: Y | C305: N | H305: 1300 | I305: 14000 | K305: NTR
A306: GASSES, TOTAL DISSOLVED | B306: N | C306: N | D306: see WAC 173-201A and the Gold Book
A307: GUTHION 86500 | B307: N | C307: N | E307: 0.01 | G307: 0.01 | K307: Gold Book
A308: HALOETHERS | B308: Y | C308: N | D308: 380 | E308: 122 | H308: 0.19 | I308: 15.7 | K308: Gold Book
A309: HALOMETHANES | B309: Y | C309: Y | D309: 11000 | F309: 12000 | G309: 6400 | K309: Gold Book
A310: HEPTACHLOR 76448 16P | B310: Y | C310: Y | D310: 0.52 | E310: 0.0038 | F310: 0.053 | G310: 0.0036 | H310: 0.00021 | I310: 0.00021 | K310: WAC 173-201A, NTR
A311: HEPTACHLOR EPOXIDE 1024573 17P | B311: Y | C311: Y | D311: 0.52 | E311: 0.0038 | F311: 0.053 | G311: 0.0036 | H311: 0.0001 | I311: 0.00011 | K311: WAC 173-201A, NTR
A312: HEXACHLOROBENZENE 118741 33B | B312: Y | C312: Y | H312: 0.00075 | I312: 0.00077 | K312: NTR - HH
A313: HEXACHLOROBUTADIENE 87683 34B | B313: Y | C313: Y | D313: 90 | E313: 9.3 | F313: 32 | H313: 0.44 | I313: 50 | K313: NTR - HH
A314: HEXACHLOROCYCLOHEXANE-ALPHA 319846 2P | B314: Y | C314: Y | H314: 0.0039 | I314: 0.013 | K314: NTR
A315: HEXACHLOROCYCLOHEXANE-BETA 319857 3P | B315: Y | C315: Y | H315: 0.014 | I315: 0.046 | K315: NTR
A316: HEXACHLOROCYCLOHEXANE-GAMMA (lindane) 58899 4P | B316: Y | C316: Y | D316: 2 | E316: 0.08 | F316: 0.16 | H316: 0.019 | I316: 0.063 | K316: WAC 173-201A, NTR
A317: HEXACHLOROCYCLOHEXANE-DELTA 319868 5P | B317: Y | C317: Y | H317: 0.0123 | I317: 0.0414 | K317: FR 63, 237-HH
A318: HEXACHLOROCYCLOPENTADIENE 77474 35B | B318: Y | C318: N | D318: 7 | E318: 5.2 | F318: 7 | H318: 240 | I318: 17000 | J318: 1 | K318: Gold Book, NTR - HH
A319: HEXACHLOROETHANE 67721 36B | B319: N | C319: Y | D319: 980 | E319: 540 | F319: 940 | H319: 1.9 | I319: 8.9 | K319: Gold Book, NTR - HH
A320: INDENO(1,2,3-cd)PYRENE 193395 37B | B320: Y | C320: Y | H320: 0.0028 | I320: 0.031 | K320: NTR
A321: IRON 7439896 | B321: N | C321: N | E321: 1000 | H321: 300 | K321: Gold Book
A322: ISOPHORONE 78591 | B322: Y | C322: Y | D322: 117000 | F322: 12900 | H322: 8.4 | I322: 600 | K322: Gold Book, NTR - HH
A323: LEAD - 7439921 7M Dependent on hardness | B323: Y | C323: N | D323: =(1.46203-((LN($B$324))*(0.145712)))*EXP(1.273*(LN($B$324))-1.46) ->  | E323: =(1.46203-((LN($B$324))*(0.145712)))*EXP(1.273*(LN($B$324))-4.705) ->  | F323: 210 | G323: 8.1 | K323: WAC 173-201A, | L323: 0.466 | M323: 0.466 | N323: 0.951 | O323: 0.951
A324: Based on hardness in next column c | B324: =B203 -> 0
A325: MALATHION 121755 | B325: N | C325: N | E325: 0.1 | G325: 0.1 | K325: Gold Book
A326: MANGANESE 7439965 | B326: N | C326: N | E326: See Gold Book | H326: 50 | I326: 100 | K326: FR 63, 237-HH
A327: 2-METHYL-4-CHLOROPHENOL | J327: 1800
A328: 3-METHYL-4-CHLOROPHENOL 59507 | J328: 3000
A329: 3-METHYL-6-CHLOROPHENOL | J329: 20
A330: METHYL BROMIDE 74839 20V | B330: Y | C330: N | H330: 48 | I330: 4000 | K330: NTR
A331: METHYLENE CHLORIDE 75092 22V | B331: Y | C331: Y | H331: 4.7 | I331: 1600 | K331: NTR
A332: MERCURY 7439976 8M | B332: Y | C332: N | D332: 2.1 | E332: 0.012 | F332: 1.8 | G332: 0.025 | H332: 0.14 | I332: 0.15 | K332: WAC 173-201A, NTR - HH | L332: 0.85 | N332: 0.85
A333: METHOXYCHLOR | B333: N | C333: N | E333: 0.03 | G333: 0.03 | H333: 100 | K333: Gold Book
A334: MIREX 2385855 | B334: N | C334: N | E334: 0.001 | G334: 0.001 | K334: Gold Book
A335: MONOCHLOROBENZENE 108907 | B335: Y | C335: N | E335: See Chlorobenzene | J335: 20
A336: NAPHTHALENE 91203 39B | B336: Y | C336: N | D336: 2300 | E336: 620 | F336: 2350 | K336: Gold Book
A337: NICKEL - 7440020 9M - Dependent on hardness | B337: Y | C337: N | D337: =(0.998)*(EXP(0.846*(LN($B$338))+3.3612)) ->  | E337: =(0.997)*(EXP(0.846*(LN($B$338))+1.1645)) ->  | F337: 74 | G337: 8.2 | H337: 610 | I337: 4600 | K337: WAC 173-201A, NTR | L337: 0.998 | M337: 0.997 | N337: 0.99 | O337: 0.99
A338: Based on hardness in next column | B338: =B203 -> 0
A339: NITROBENZENE 98953 40B | B339: Y | C339: N | D339: 27000 | F339: 6680 | H339: 17 | I339: 1900 | J339: 30 | K339: Gold Book, NTR - HH
A340: 2-NITROPHENOL 88755 | B340: Y | C340: N | D340: 230 | E340: 150 | F340: 4850 | K340: Gold Book
A341: NITRATE/NITRITE (N) | B341: N | C341: N | E341: See Gold Book | H341: 10000 | K341: Gold Book
A342: NITROSAMINES | B342: Y | C342: Y | D342: 5850 | F342: 3300000 | H342: 0.008 | I342: 1.24 | K342: Gold Book, FR 63, 237-HH
... 49 more rows

Sheet Non-Conservative
C1: ADJUSTMENTS TO THE LOCLIMIT.XLS SPREADSHEET FOR NON-CONSERVATIVE POLLUTANTS
B3: Make Changes in | C3: FOR THE CASE OF:
B4: Spreadsheet | C4: POLLUTANTS FOR WHICH WATER QUALITY STANDARDS EXIST:
A5: 1 | B5: BasicData | C5: Enter basic data as for conservative pollutants and names of pollutants in lines 62-65 (make additional lines if needed)
A6: 2 | B6: BasicData | C6: Collect monitoring data and choose to calculate limits (lines 35-39) using actual data
A7: 3 | B7: Sample Data | C7: Input sampling data in column U - X (clean sample methods may be needed for effluent and ambient samples)
A8: 4 | B8: Sample Data | C8: To give all loadings to industries, input a value in row 10 equal to the ave Influent concentration (row 3) * BasicData cells C24 / C26
A9: 5 | B9: POTW Limits | C9: Enter WQ Criteria in rows 29-32 if criteria for the pollutants exist in the table in the lower part of that spreadsheet
A10: 6 | B10: Local Limits | C10: Enter 'Y' to using site specific sample data in rows 50 and 53 for these specific pollutants (if this is not the default for all pollutants)
A11: 7 | B11: Local Limits | C11: Find the column for the pollutant (T-W) and enter "NA" in rows 27-30 and 60-62 for inhibition thresholds and sludge criteria unless these exist.
A12: 8 | B12: Local Limits | C12: Adjust presumptions as necessary to obtain results (not all cells will automatically recognize when their calculation is not applicable)
C14: IF NO SAMPLING EXISTS, use of this spreadsheet should be confirmed after data exists, but you can estimate a limit if you:
A15: 1 | B15: LOCLIMIT.xls | C15: Estimate the removal rate and input as the "Reference Ave Plant Removal" in LOCLIMIT.xls row 46 (under the appropriate column)
C16: (This removal rate is the ratio of effluent to influent after biodegradation, volatization, and sludge partitioning)
A17: 2 | B17: BasicData.xls | C17: Only change settings in the "BasicData" lines 35 and 38 to "N" if no monitoring data exists for any pollutant
B18: LOCLIMIT.xls | C18: Otherwise enter "N" in Local Limits rows 50 and 53 under the column for this pollutant to indicate that monitoring data does not exist.
A19: 3 | B19: (continue as above) | C19: Continue from step 5 as for pollutants for which WQ standards exist (above)
B21: Spreadsheet | C21: POLLUTANTS THAT HAVE EXPLOSIVE OR TOXIC VAPORS:
A22: 1 | B22: Toxic-Explosive | C22: List Pollutants of potential concern (usually from IU Survey or Permit Applications) in the "Summary Table" in Toxic-Explosive Limits tab
A23: 2 | B23: Toxic-Explosive | C23: Calculate toxicity and explosivity limits (or read them from the included tables TE-1 or TE-2) in the "Toxic-Explosive Limits" sheet
A24: 3 | B24: Toxic-Explosive | C24: Typically the lower of the explosivity or vapor toxicity thresholds should be the local limit. This may be increased (steps 3 on) if:
C25: If there are diluting flows before the nearest point of concern do a flow proportionate weighting to increase the limit by that proportion.
B26: Toxic-Explosive | C26: First, in the same manner, determine the limiting concentration using the "Toxic-Explosive.xls" worksheet
C27: Then multiply this value by the ratio of total flows / flows which contain the pollutant
B28: Toxic-Explosive | C28: Put the resulting value (and a footnote explaining the rationale) in the summary table in the "Toxic-Explosive Limits" tab

Sheet Conventional Poll Tool
B3: Conventional Pollutant Management Tables:
E4: CHECK OF DESIGN CAPACITY:
E5: MMA Oxygen Delivery Capacity of the POTW: | G5: <- Calculations not included here - redundancy requirements apply
E6: Design MMA loading of BOD5: | G6: <- MMA = Maximum Monthly Average
E7: Conversion Factor lb O2/lb BOD:
E8: Design MMA loading of Ammonia (as N):
E9: Conversion Factor lb O2/lb Ammonia (as N)
E10: Percentage of Oxygen Capacity Used: | F10: =(F6*F7+F8*F9)/F5 -> 
H11: Next Upgrade
B12: BOD LOAD ALLOCATION TABLE: | F12: CURRENT | G12: DESIGN | H12: FUTURE
B13: Total BOD Loading Available:
B14: BOD Loading for Domestic Sources:
B15: BOD Loading allocation for Commercial:
B16: BOD Loading for Significant Industries
B17: BOD Loading in reserve for domestic
B18: BOD loading in reserve SIU's
B21: TSS LOAD ALLOCATION TABLE: | F21: CURRENT | G21: DESIGN | H21: FUTURE
B22: Total TSS Loading Available:
B23: TSS Loading for Domestic Sources:
B24: TSS Loading allocation for Commercial:
B25: TSS Loading for Significant Industries
B26: TSS Loading in reserve for domestic
B27: TSS Loading in reserve for SIU's
B29: AMMONIA LOAD ALLOCATION TABLE: | F29: CURRENT | G29: DESIGN | H29: FUTURE
B30: Total Ammonia Loading Available:
B31: Ammonia Loading for Domestic Sources:
B32: Ammonia Loading allocation for Commercial:
B33: Ammonia Loading for Significant Industries
B34: Ammonia Loading in reserve for domestic
B35: Ammonia Loading in reserve for SIU's
B37: STRATEGY:

Sheet Toxic-Explosive Limits
I1: HANDY CONVERSION TABLES
D3: Spreadsheet for calculating vapor toxicity and explosivity screening levels | I3: Using Henry's from .pdf file: | J3: Method to convert from: KHCP
D4: The Henry's Law Constant is abbreviated as H in this worksheet | I4: Table CONV1 - Compound: | J4: Methyl Bromide | K4: (fill in)
I5: Henry's # in units in .pdf file | J5: 0.0044 | K5: (research to find)
C6: Summary Table | D6: Explosivity Screening LVL | E6: Vapor Toxicity Limit | F6: 0.1*LEL | G6: Proposed Limit | I6: Molar Weight | J6: 94.94 | K6: (research to find)
C7: Pollutant: | D7: Max. Disch. Conc. | E7: From table TE-1 | F7: From table TE-1&2 | I7: Henry's # in units for vapor Toxicity | J7: =40.9/J5 -> 9295.454545
I8: Henry's # in units for Explosivity | J8: =0.0409/(J5*J6) -> 0.09790872704
I10: Translation Table: H vapor <> H explosivity:
I11: Table CONV2: Compound M.W. = | J11: 94.94 | K11: (research to find)
I12: Given H in Units for vapor Toxicity: | J12: 9295 | K12: (research to find)
I13: Equiv. H in Units for Explosivity | J13: =J12/(J11*1000) -> 0.09790393933
I14: Given H in Units for Explosivity: | J14: 0.0979 | K14: (research to find)
I15: Equiv. H in Units for Toxicity: | J15: =J14*1000*J11 -> 9294.626
I17: Explosivity from LEL%:
I18: Table CONV3 - Compound: | J18: Methyl Bromide | K18: (complete)
G19: (Note, these limits are | I19: Explosivity: LEL% in air | J19: 10 | K19: (research to find)
G20: based on the effect where | I20: Henry's law constant: | J20: 0.0979 | K20: (research to find)
G21: discharged not the load at | I21: C(vapor) - mol/m3 | J21: =0.0409*J19 -> 0.409
G22: the headworks) | I22: RESULTANT Aqueous LEL: | J22: =J21/J20 -> 4.17773238 | K22: in water
D24: Air Density @70F=1.20kg/m3 | I24: Vapor - from mg/m3 std:
D25: Air Density @stp = 1.29kg/m3 | I25: Table CONV4 - Compound: | J25: Methyl Bromide | K25: (complete)
D26: Molal air volume=22.4 m3/mol at STP | I26: ACGIH TLV-TWA (w/v) | J26: 19.46 | K26: (research to find)
D27: 1 mol/atm = 24.46 aq/gas | I27: Henry's law constant: | J27: 9295 | K27: (research to find)
I28: Gas-Vapor Screening Level: | J28: =J26/J27 -> 0.002093598709 | K28: in water
C29: How to find the water concentration that leads to equilibrium air concentrations of concern
B30: Step 1 | C30: Identify potential pollutants of concern (based on pollutants used at IUs) | I30: Table CONV5 - Compound: | J30: Methyl Bromide | K30: (complete)
B31: Step 2 | C31: Identify relevant criteria: For Henry's levels, use references | I31: ACGIH TLV-TWA (v/v) | J31: 5 | K31: (research to find)
C32: For fume toxicity: use WA Standards (WA-OSHA-STDS tab) for exposure. | I32: Molar Weight | J32: 94.94 | K32: (research to find)
C33: For Explosivity find the Lower Explosive Limit (LEL) and use 10% of the LEL for screening | I33: Henry's law constant: | J33: 9295 | K33: (research to find)
B34: Step 3 | C34: Find the corresponding IU discharge screening level for vapor toxicity | I34: Equivalent TLV-TWS (w/v) | J34: =0.041*(J31*J32) -> 19.4627
C35: The Gas/Vapor Toxicity screening level = (Vapor Toxicity level) / (Henry's Law Constant) | I35: Gas-Vapor Screening Level: | J35: =J34/J33 -> 0.002093889188 | K35: in water
C36: Convert units for Vapor Toxicity into "mg/m3" and the Henry's Law Constant into "(mg/m3)/(mg/L)"
B37: Step 4 | C37: Find the explosivity screening level = X% * Critical Vapor Concentration / Henry's Law Constant | I37: Using Henyr's in RREL TDB:
C38: Critical Vapor Concentration"C(vapor)" is in mol/m3 & Henry's Law Constant is in "(mol/m3)/(mg/L)" | I38: Table CONV6 - Compound: | J38: Octane | K38: (complete)
C39: EPA Recommends: X% be 10% (or a multiplier of 0.1 times the LEL). | I39: RREL TDB Value: | J39: 3.21 | K39: (research to find)
B40: Step 5 | C40: Compare the more stringent screening level to current "end of pipe" discharge levels | I40: Molar Weight | J40: 114.23 | K40: (research to find)
B41: Step 6 | C41: Codify limits if more than one user likely to discharge, otherwise, include in specific permit | I41: Table TE-2 Column G Value | J41: =1/(J39*1000) -> 0.0003115264798
B42: NOTE: The Henry's law constant in Table TE-1, column H is appropriate for calculating gas/vapor toxicity. | I42: Explosivity Henry's Number: | J42: =0.0409/(J41*J40) -> 1.149339053
B43: Use Table CONV2 and MW to translate this to a Henry's Law Constant useful for calculating Explosivity Screening level | I43: Vapor Toxicity Henry's Number | J43: =40.9/J41 -> 131289
B44: T = Temperature -- For purposes of this spreadsheet this is assumed to be constant 25C
B45: Significant deviations from 25C temperature will require a temperature adjustment (see more detailed analysis methods)
C47: Example: Limit based on Explosivity | F47: Note:
C48: Identify pollutant of concern | E48: Chlorobenzene | F48: Identified from industrial surveys or permit applications
C49: Determine LEL | E49: 0.014 | F49: From table above - note use as fraction when cancelling units -- two orders of magnitude difference
C50: Calculate screening conc | E50: =0.04087*E49*100 -> 0.057218 | F50: LEL% * .04087 (@25C)
C51: Determine Henry's const | E51: 0.32 | F51: From literature (or table above)
C52: Determine Molar Wt. | E52: 112.45 | F52: From literature (or table above)
C53: Convert Henry's const | E53: =0.04087/(E52*E51) -> 0.00113578257 | F53: ~ .04087/(MW * H in mol/atm)
C54: Calculate screening level | E54: =E50/E53 -> 50.3776 | F54: ~ Cvap / H
C55: (alternate formula:) | E55: =0.1*1000*E49*E51*E52 -> 50.3776 | F55: 10%*LEL*MW*Khcp*1000L/m3
C56: Compare to effluent level | E56: 12.4 | F56: From samples or permit app
C57: Establish limit? | E57: Yes | F57: Can use "reaspot" spreadsheet from Ecology -- Consider all explosive parameters as additive through
C59: EXAMPLE TABLES (Vapor Toxicity in Table TE-1, Explosivity in Table TE-2) | G59: H > 1*ee-4 atm*m3/mol = volatile
C60: SELECTED POLLUTANT TOXICITY AND EXPLOSIVITY DATA: | G60: (From EPA's 1992 Manual) | H60: H > 4.1 (mg/m3)/(mg/L) = volatile
C61: TABLE TE-1 | E61: EPA Published | F61: Explosivity | G61: Calc'd Gas/Vapor | H61: Vapor Toxicity Limit | I61: Henry's Law Constant | J61: Vapor Threshold | K61: Molar | L61: Equivalent
C62: CAS# | D62: Compound Name: | E62: Gas/Vapor Toxicity | F62: Screening | G62: Toxicity screening lvl | H62: TLV-TWA or STEL | I62: expressed as | J62: TLV-TWA | K62: Weight | L62: TLV-TWS
C63: (add if desired) | D63: (most common in yellow) | E63: Screening lvl(1) | F63: Level mg/L | G63: Basis = WA State law | H63: mg/m3 | I63: (mg/m3)/(mg/L) | J63: in PPM by volume | K63: of Pollutant | L63: mg/m3
D64: Acenapthalene | I64: 60.3
D65: Acetone | G65: =L65/I65 -> 787.4172185 | H65: =L65 -> 1189 | I65: 1.51 | J65: 500 | K65: 58 | L65: =0.041*(K65*J65) -> 1189
D66: Acetonitrile | J66: 2 | K66: 41.05 | L66: 3.3661
D67: Acrolein | G67: =L67/I67 -> 0.04592 | H67: =L67 -> 0.2296 | I67: 5 | J67: 0.1 | K67: 56 | L67: 0.2296
B68: l | D68: Acrylonitrile | E68: 1.19 | F68: 1794 | G68: =L68/I68 -> 1.200552486 | H68: 4.3 | I68: 3.62 | J68: 2 | K68: 53 | L68: 4.346
B69: l | D69: Aldrin | E69: 0.38 | G69: =L69/I69 -> 5.754192308 | H69: 0.25 | I69: 0.65 | J69: 0.25 | K69: 364.9 | L69: 3.740225 | M69: (STEL=.75, TWA=.25)
D70: Ammonia | G70: =L70/I70 -> 26.00746269 | H70: =L70 -> 17.425 | I70: 0.67 | J70: 25 | K70: 17 | L70: 17.425
D71: Anthracine | I71: 51.1
B72: l | D72: Benzene | E72: 0.13 | F72: 20 | G72: 0.07116688889 | H72: 32 | I72: 225 | J72: 5 | K72: 78.11 | L72: =0.041*(K72*J72) -> 16.01255 | M72: (State stds 5 ppm STEL)
D73: Bis(2-chloromethyl) ether | E73: 0.0005 | H73: 0.0044 | I73: 8.58
B74: l | D74: Bromoform | E74: 0.24 | G74: 0.2354984091 | H74: 5.2 | I74: 22 | J74: 0.5 | K74: 252.73 | L74: =0.041*(K74*J74) -> 5.180965
D75: Bromomethane | E75: 0.002 | F75: 4.7 | H75: 20 | I75: 8189 | K75: 94.94
D76: Carbon Dioxide | G76: 7.497921862 | H76: =L76 -> 9020 | I76: 1203 | J76: 5000 | K76: 44 | L76: =0.041*(K76*J76) -> 9020
B77: l | D77: Carbon Disulfide | E77: 0.06 | F77: 6.3 | G77: 0.07645077551 | H77: 31 | I77: 490 | J77: 12 | K77: 76.14 | L77: =0.041*(K77*J77) -> 37.46088 | M77: (state std 15 minute STEL)
B78: l | D78: Carbon Tetrachloride | E78: 0.03 | G78: 0.01319376569 | H78: 31 | I78: 956 | J78: 2 | K78: 153.82 | L78: =0.041*(K78*J78) -> 12.61324 | M78: (state TLV-TWA 8-hr std = 2)
B79: l | D79: Chlordane | E79: =H79/I79 -> 1.282051282 | H79: 0.5 | I79: 0.39 | K79: 409.78
D80: Chlorine | G80: 0.00363875 | H80: =L80 -> 0.72775 | I80: 200 | J80: 0.5 | K80: 35.5 | L80: =0.041*(K80*J80) -> 0.72775
B81: l | D81: Chlorobenzene | E81: 2.31 | F81: 40 | G81: 2.322966443 | H81: 345 | I81: 149 | J81: 75 | K81: 112.56 | L81: =0.041*(K81*J81) -> 346.122
D82: Chloroethane | E82: 5.73 | F82: 1.6 | H82: 2600 | I82: 6152 | K82: 64.51
B83: l | D83: Chloroform | E83: 0.41 | G83: 0.08155583333 | H83: 49 | I83: 120 | J83: 2 | K83: 119.35 | L83: =0.041*(K83*J83) -> 9.7867
D84: Chloromethane | E84: 0.29 | F84: 1.1 | H84: 103 | I84: 372 | K84: 50.49
B85: l | D85: 1,2 Dichlorobenzene | E85: 3.75 | F85: 165 | G85: 3.757481297 | H85: 301 | I85: 80.2 | J85: 50 | K85: 147 | L85: =0.041*(K85*J85) -> 301.35
D86: 1,3 Dichlorobenzene | I86: 148 | K86: 147
B87: l | D87: 1,4 Dichlorobenzene | E87: 3.55 | F87: 104 | G87: =L87/I87 -> 5.22023622 | H87: 451 | I87: 127 | J87: 110 | K87: 147 | L87: 662.97
B88: l | D88: Dichlorodifluoromethane | E88: 0.04 | G88: =L88/I88 -> 0.0003464437895 | H88: 4950 | I88: 121801 | J88: 10 | K88: 102.92 | L88: 42.1972 | M88: (STEL)
B89: l | D89: 1,1 Dichloroethane | E89: 4.58 | F89: 128 | G89: =L89/I89 -> 2.290903955 | H89: 810 | I89: 177 | J89: 100 | K89: 98.9 | L89: =0.041*(K89*J89) -> 405.49
D90: trans-,2-Dichloroethylene (1,2-Dithloroethylene) | E90: 0.28 | F90: 14 | G90: =H90/I90 -> 0.2847396768 | H90: 793 | I90: 2785 | K90: 96.94
D91: 1,2-Dichloropropane | E91: 3.62 | F91: 164 | G91: =L91/I91 -> 3.616328125 | H91: 347 | I91: 96 | J91: 75 | K91: 112.9 | L91: =0.041*(K91*J91) -> 347.1675
B92: l | D92: 1,3-Dichloropropene | E92: 0.08 | F92: 435 | G92: 0.08137432188 | H92: 4.5 | I92: 55.3 | K92: 110.97
B93: l | D93: Dieldrin | E93: 13 | G93: 12.5 | H93: 0.25 | I93: 0.02 | K93: 380.91
D94: Diethyl amine | G94: =L94/I94 -> 48.27419355 | H94: =L94 -> 14.965 | I94: 0.31 | J94: 5 | K94: 73 | L94: =0.041*(K94*J94) -> 14.965
B95: l | D95: Diethyl phthalate | E95: 107 | G95: 100 | H95: 5 | I95: 0.05 | K95: 222.24
B96: l | D96: 4,6-Dinitro-o-cresol | E96: 10.78 | G96: 3.333333333 | H96: 0.2 | I96: 0.06 | K96: 198.13
B97: l | D97: Dinitrotoluene | E97: 7.21 | G97: 7.142857143 | H97: 1.5 | I97: 0.21 | K97: 182.13
B98: l | D98: Endrin | E98: =H98/I98 -> 5 | G98: 5 | H98: 0.1 | I98: 0.02
B99: l | D99: Ethyl Benzene | E99: 1.59 | F99: 16 | G99: =L99/I99 -> 1.982664234 | H99: 434 | I99: 274 | J99: 125 | K99: 106 | L99: =0.041*(K99*J99) -> 543.25 | M99: (STEL = 125, TLV-TWA = 100)
D100: Ethylene Dichloride | E100: 1.05 | F100: 660 | G100: =L100/I100 -> 0.2105263158 | H100: 40 | I100: 38 | L100: 8
B101: l | D101: Formaldehyde | E101: =H101/I101 -> 0.1201923077 | F101: 412 | G101: =L101/I101 -> 0.1182692308 | H101: 2.5 | I101: 20.8 | J101: 2 | K101: 30 | L101: =0.041*(K101*J101) -> 2.46 | M101: (STEL = 2, TLV = .75)
D102: Gluteraldehyde 111-30-8 | G102: =L102/I102 -> 18.32553571 | H102: 0.8 | I102: 0.0448 | J102: 0.2 | K102: 100.12 | L102: =0.041*(K102*J102) -> 0.820984
B103: l | D103: Heptachlor | E103: 0.003 | G103: =L103/I103 -> 0.003067484663 | H103: 0.5 | I103: 163 | L103: 0.5
B104: l | D104: Hexachloro-1,3 butadiene | E104: 0.0002 | G104: 0.0001973684211 | H104: 0.21 | I104: 1064
B105: l | D105: Hexachloroethane | E105: 0.93 | G105: 0.09326923077 | H105: 9.7 | I105: 104
B106: l | D106: Hexachloropentadiene | E106: 658 | G106: 137.5 | H106: 0.11 | I106: 0.0008
D107: Hexane | G107: 0.003319088051 | H107: =L107 -> 176.3 | I107: 53117 | J107: 50 | K107: 86 | L107: =0.041*(K107*J107) -> 176.3
D108: Hydrogen Sulfide | G108: 0.03408312958 | H108: =L108 -> 13.94 | I108: 409 | J108: 10 | K108: 34 | L108: =0.041*(K108*J108) -> 13.94
D109: Methyl alcohol | E109: =H109/I109 -> 1382.778947 | G109: 1382.778947 | H109: =L109 -> 262.728 | I109: 0.19 | J109: 200 | K109: 32.04 | L109: =0.041*(K109*J109) -> 262.728
D110: Methyl Bromide | E110: =H110/I110 -> 0.002094114482 | G110: 0.002094114482 | H110: =L110 -> 19.4627 | I110: 9294 | J110: 5 | K110: 94.94 | L110: =0.041*(K110*J110) -> 19.4627
D111: Methyl ethyl ketone | E111: 249 | F111: 2486 | G111: 248.9451477 | H111: 590 | I111: 2.37 | J111: 300 | K111: =L111/(0.041*J111) -> 71.95121951 | L111: 885 | M111: (STEL = 300, TLV = 200)
B112: l | D112: Methyl Chloride | E112: =H112/I112 -> 0.1167964405 | G112: =L112/I112 -> 0.05756646274 | H112: 210 | I112: 1798 | J112: 50 | K112: 50.49 | L112: =0.041*(K112*J112) -> 103.5045
B113: l | D113: Methylene Chloride | E113: 2.06 | F113: 494 | G113: =L113/I113 -> 5.157183057 | H113: 434 | I113: 84.4 | J113: 125 | K113: 84.93 | L113: =0.041*(K113*J113) -> 435.26625 | M113: (STEL=125, TLV=25)
B114: l | D114: Napthalene | F114: 240 | G114: 2.650356779 | H114: 52 | I114: 19.62
B115: l | D115: Nitrobenzene | F115: 17046 | G115: =L115/I115 -> 1.886792453 | H115: 5 | I115: 0.53 | L115: 1 | M115: (TLV-TWA)
D116: Penatchloroethane | I116: 88.7
D117: Pentachlorophenol | E117: 9.41 | G117: 4.545454545 | H117: 0.5 | I117: 0.11 | L117: 0.5 | M117: (TLV-TWA)
B118: l | D118: Phenol | E118: =H118/I118 -> 950 | G118: =L118/I118 -> 963.5 | H118: 19 | I118: 0.02 | J118: 5 | K118: 94 | L118: =0.041*(K118*J118) -> 19.27 | M118: (TLV-TWA)
D119: Phosgene | J119: 0.1 | K119: 98.92 | L119: 0.405572
D120: Pyridine | J120: 5 | K120: 79.1 | L120: 16.2155
B121: l | D121: 1,1,2,2,-Tetrachloroethane | G121: =L121/I121 -> 0.4439903226 | H121: 7 | I121: 15.5 | J121: 1 | K121: 167.85 | L121: 6.88185
B122: l | D122: Tetrachloroethylene (Perchloroethylene) | E122: 0.53 | G122: =L122/I122 -> 0.2675314465 | H122: 339 | I122: 636 | J122: 25 | K122: 166 | L122: 170.15 | M122: (TLV-TWA = 25)
B123: l | D123: Toluene | E123: 1.36 | F123: 17 | G123: =L123/I123 -> 2.042599278 | H123: 377 | I123: 277 | J123: 150 | K123: 92 | L123: 565.8 | M123: (STEL=150, TLV=100)
D124: Toxaphene | E124: 0.003 | G124: =L124/I124 -> 0.005 | H124: 0.5 | I124: 200 | L124: 1 | M124: (STEL=1, TLV=.5)
B125: l | D125: 1,2,4-Trichlorobenzene | E125: 0.39 | F125: 197 | G125: 0.3904255319 | H125: 36.7 | I125: 94
D126: 1,1,1-Trichloroethane | E126: 1.55 | F126: 33 | G126: =L126/I126 -> 1.561411093 | H126: 1900 | I126: 1226 | J126: 350 | K126: 133.4 | L126: =0.041*(K126*J126) -> 1914.29
B127: l | D127: 1,1,2-Trichloroethane | E127: 1.15 | G127: 1.145833333 | H127: 55 | I127: 48 | J127: 10 | K127: 133.4 | L127: =0.041*(K127*J127) -> 54.694
B128: l | D128: Trichloroethylene | E128: 0.71 | F128: 114 | G128: =L128/I128 -> 2.850259259 | H128: 269 | I128: 378 | J128: 200 | K128: 131.39 | L128: =0.041*(K128*J128) -> 1077.398 | M128: (STEL=200, TLV=50)
B129: l | D129: Trichlorofluoromethane | E129: 1.23 | G129: =L129/I129 -> 1.224579051 | H129: 5620 | I129: 4573 | J129: 1000 | L129: 5600
D130: Triethylamine | J130: 5 | K130: 101.19 | L130: =0.041*(K130*J130) -> 20.74395
B131: l | D131: Vinyl Chloride | E131: 0.003 | F131: 2.2 | G131: =L131/I131 -> 0.003013996707 | H131: 13 | I131: 4251 | J131: 5 | K131: 62.5 | L131: =0.041*(K131*J131) -> 12.8125 | M131: (STEL=5, TLV=1)
B132: l | D132: Vinylidene Chloride | E132: 0.003 | F132: 3.3 | G132: =H132/I132 -> 0.002575328354 | H132: 20 | I132: 7766
B133: l | D133: Xylene | G133: =L133/I133 -> 2.340306452 | H133: 655 | I133: 279 | J133: 150 | K133: 106.17 | L133: =0.041*(K133*J133) -> 652.9455 | M133: (STEL=150, TLV=100)
D134: Aroclor 1242 | E134: 0.01 | G134: 0.01236093943 | H134: 1 | I134: 80.9
D135: Aroclor 1248 | I135: 147
D136: Aroclor 1254 | E136: 0.005 | G136: 0.004716981132 | H136: 0.5 | I136: 106
D137: Aroclor 1260 | I137: 30.246
B139: Note 1 -- Gas/Vapor toxicity screening level is from the EPA manual on protection of POTW workers, or calculated from converting the concentration
B140: times the molar weight. Since some TWA-TLV values have changed over the years column K may be more current than column G
H142: Cvap = (0.1*LEL%)*P/(R*T) | I142: Cvap = mol/m3
B143: Henry's #'s in Column G, Table TE-2 from R. Sander (1999) Compilation of Henry's Law | H143: Cvap =.04087*LEL% | I143: LEL = % v/v | J143: (numbers used)
B144: Constants for Inorganic and Organic Species of Potential Importance in Environmental | H144: (LEL% = LEL fraction * 100) | I144: P = 1.0 atm (1.01*10^5 pa) | J144: 1
B145: Chemistry (V.3) Find at http://www.mpch-mainz.mpg.de/~sander/res/henry.html | H145: =(0.1*J144*100)/(J145*J146) -> 0.04087273257 | I145: R = .08206 atm*L/Mol*K | J145: 0.8206
I146: T = 298.15K (@25C or 77F) | J146: 298.15 | K146: T = Temperature - adjust Temp coefficient to the left if not 25C
D147: LEL values are from Appendix A of EPA Manual "Guidance to protect POTW workers from toxic and reactive gasses and vapors"
D148: EPA credits "Hazards evaluation and risk control services data guide bulletin HE-109A", Hercules Corp, 1983 | K148: Double Check
D149: Table TE-2 | G149: (RESEARCH TO FIND:) | K149: In this column
D150: Compound | E150: LEL % by volume | F150: Cvap (10% of LEL) | G150: Henry's Constant | I150: Henry's Constant | J150: Liquid Concentration
D151: PARAFFIN HYDROCARBONS | F151: by EPA formula | G151: in M/atm | H151: Molar Weight | I151: in (mol/m3)/(mg/l) | J151: At 10% of Explosivity Threshold
D152: Methane | E152: 5 | F152: =0.0409*E152 -> 0.2045 | G152: 0.0014 | H152: 16 | I152: =0.0409/(H152*G152) -> 1.825892857 | J152: =F152/I152 -> 0.112
D153: Ethane | E153: 3 | F153: =0.0409*E153 -> 0.1227 | G153: 0.002 | H153: 30 | I153: =0.0409/(H153*G153) -> 0.6816666667 | J153: =F153/I153 -> 0.18
D154: Propane | E154: 2.1 | F154: 0.08589 | G154: 0.0015 | H154: 44 | I154: 0.6196969697 | J154: 0.1386
D155: Butane | E155: 1.8 | F155: 0.07362 | G155: 0.0011 | H155: 58 | I155: 0.6410658307 | J155: 0.11484
D156: Isobutane | E156: 1.8 | F156: 0.07362 | G156: 0.00087 | H156: 58 | I156: 0.8105430044 | J156: 0.090828
D157: Pentane | E157: 1.4 | F157: 0.05726 | G157: 0.0008 | H157: 72 | I157: 0.7100694444 | J157: 0.08064
D158: Isopentane | E158: 1.4 | F158: 0.05726 | G158: 0.00073 | H158: 72 | I158: 0.7781582953 | J158: 0.073584
D159: 2,2-Dimethylpropane | E159: 1.4 | F159: 0.05726 | G159: 0.00047 | H159: 72 | I159: 1.208628842 | J159: 0.047376
D160: Hexane | E160: 1.2 | F160: 0.04908 | G160: 0.00077 | H160: 86 | I160: 0.6176381758 | J160: 0.079464
D161: Heptane | E161: 1 | F161: 0.0409 | G161: 0.0012 | H161: 100 | I161: 0.3408333333 | J161: 0.12
D162: 2,3-Dimethylpentane | E162: 1.1 | F162: 0.04499 | G162: 0.00058 | H162: 100 | I162: 0.7051724138 | J162: 0.0638
D163: Octane | E163: 0.95 | F163: 0.038855 | G163: 0.0002 | H163: 114 | I163: 1.793859649 | J163: 0.02166
D164: Nonane | E164: 0.85 | F164: 0.034765 | G164: 0.0002 | H164: 128 | I164: 1.59765625 | J164: 0.02176
D165: Decane | E165: 0.75 | F165: 0.030675 | G165: 0.00021 | H165: 142 | I165: 1.37156271 | J165: 0.022365
D166: OLEFINS:
D167: Ethylene | E167: 2.7 | F167: 0.11043 | G167: 0.0048 | H167: 28 | I167: =0.0409/(H167*G167) -> 0.3043154762 | J167: 0.36288
D168: Propylene | E168: 2.4 | F168: 0.09816 | G168: 0.0048 | H168: 42.08 | I168: 0.2024912864 | J168: 0.4847616
D169: Butene-1 | E169: 1.6 | F169: 0.06544 | G169: 0.004 | H169: 56.11 | I169: 0.1822313313 | J169: 0.359104
D170: Butene-2 | E170: 1.7 | F170: 0.06953 | G170: 0.0044 | H170: 56.11 | I170: 0.1656648466 | J170: 0.4197028
D171: Amylene | E171: 1.4 | F171: 0.05726 | G171: 0.0045 | H171: 70.13 | I171: 0.129600583 | J171: 0.441819
D172: AROMATICS:
D173: Benzene | E173: 1.4 | F173: 0.05726 | G173: 0.18 | H173: 78 | I173: 0.002913105413 | J173: 19.656 | K173: (v.s. 20.mg/L by EPA Manual)
D174: Ethylbenzene | E174: 1 | F174: 0.0409 | G174: 0.12 | H174: 106 | I174: 0.003215408805 | J174: 12.72
D175: Cumene | E175: 0.9 | F175: 0.03681 | G175: 0.069 | H175: 120 | I175: 0.004939613527 | J175: 7.452
D176: Toluene | E176: 1.2 | F176: 0.04908 | G176: 0.1477 | H176: 92 | I176: 0.003009920226 | J176: 16.30608 | K176: (v.s. 17. mg/l by EPA Manual)
D177: Xylene | E177: 1.1 | F177: 0.04499 | G177: 0.24 | H177: 106 | I177: 0.001607704403 | J177: 27.984
D178: CYCLIC HYDROCARBONS
D179: Cyclopropane | E179: 2.4 | F179: 0.09816 | G179: 0.013 | H179: 42 | I179: 0.07490842491 | J179: 1.3104
D180: Cyclohexane | E180: 1.3 | F180: 0.05317 | G180: 0.0052 | H180: 84 | I180: 0.09363553114 | J180: 0.56784
D181: Methylcyclohexane | E181: 1.1 | F181: 0.04499 | G181: 0.0097 | H181: 98 | I181: 0.04302545761 | J181: 1.04566
C182: Not greatly | D182: ALCOHOLS
C183: Flammable | D183: Methyl Alcohol | E183: 6.7 | F183: 0.27403 | G183: 220 | H183: 32 | I183: 5.809659091e-06 | J183: 47168
C184: (darkened) | D184: Ethyl Alcohol | E184: 3.3 | F184: 0.13497 | G184: 120 | H184: 46 | I184: 7.40942029e-06 | J184: 18216
D185: Allyl Alcohol | E185: 2.5 | F185: 0.10225 | G185: 440 | H185: 58 | I185: 1.602664577e-06 | J185: 63800
D186: n-Propyl alcohol | E186: 2.2 | F186: 0.08998 | G186: 140 | H186: 60.1 | I186: 4.860946042e-06 | J186: 18510.8
D187: Isopropyl Alcohol | E187: 2.2 | F187: 0.08998 | G187: 150 | H187: 60 | I187: 4.544444444e-06 | J187: 19800
D188: n-Butyl alcohol | E188: 1.7 | F188: 0.06953 | G188: 120 | H188: 74.12 | I188: 4.598398993e-06 | J188: 15120.48
D189: n-Amyl alcohol | E189: 1.4 | F189: 0.05726 | G189: 82 | H189: 88 | I189: 5.667960089e-06 | J189: 10102.4
D190: Isoamyl alcohol | E190: 1.4 | F190: 0.05726 | H190: 88.15
D191: ALDEHYDES
D192: Acetaldehyde | E192: 4 | F192: 0.1636 | G192: 14 | H192: 44.05 | I192: 6.632073942e-05 | J192: 2466.8
D193: Crotonaldehyde | E193: 2.1 | F193: 0.08589 | G193: 59 | H193: 70.09 | I193: 9.890431431e-06 | J193: 8684.151
D194: Paraldehyde | E194: 1.3 | F194: 0.05317 | H194: 132.16
D195: Propionaldehyde | E195: 2.9 | F195: 0.11861 | G195: 2.8 | H195: 58.08 | I195: 0.0002515003935 | J195: 471.6096
D196: ETHERS
D197: Methyl ethyl ether | E197: 2.2 | F197: 0.08998 | G197: 0.9 | H197: 60.1 | I197: 0.0007561471621 | J197: 118.998
D198: Diethyl ether | E198: 1.9 | F198: 0.07771 | G198: 0.8 | H198: 74.12 | I198: 0.0006897598489 | J198: 112.6624
D199: Divinyl ether 109-93-3 | E199: 1.7 | F199: 0.06953 | H199: 70.09
D200: Tetrahydrofuran | E200: 2 | F200: 0.0818 | G200: 14 | H200: 72.11 | I200: 4.05135012e-05 | J200: 2019.08
D201: KETONES
D202: Acetone | E202: 2.6 | F202: 0.10634 | G202: 27 | H202: 58 | I202: 2.611749681e-05 | J202: 4071.6
D203: Acetophenone | E203: 1.1 | F203: 0.04499 | G203: 98 | H203: 120 | I203: 3.477891156e-06 | J203: 12936
D204: Methyl ethyl ketone | E204: 1.9 | F204: 0.07771 | G204: 17.2574 | H204: 72 | I204: 3.291663608e-05 | J204: 2360.81232 | K204: (Compared to 2,486 mg/L by the EPA Manual!!!?)
D205: Methyl propyl ketone | E205: 1.6 | F205: 0.06544 | G205: 12 | H205: 86.13 | I205: 3.957196486e-05 | J205: 1653.696
D206: Methyl butyl ketone | E206: 1.2 | F206: 0.04908 | H206: 100.16
D207: ACIDS
D208: Acetic acid | E208: 5.4 | F208: 0.22086 | G208: 5200 | H208: 60 | I208: 1.310897436e-07 | J208: 1684800
... 112 more rows

Sheet WA-OSHA-STDS
A1: WAC 296-841-20025 | B1: Agency filings affecting this section
A2: Permissible exposure limits (PELs)
A3: The following information applies to Table 3, Permissible Exposure Limits (PELs) for Airborne Contaminants.
A4: • ppm refers to parts of vapor or gas per million parts of air by volume, at 25 degrees C and 760 mm Hg pressure.
A5: • mg/m3 refers to milligrams of an airborne contaminant per cubic meter of air.
A6: • F/cc refers to fibers per cubic centimeter of air.
A7: • For a metal that is measured as the metal itself, only the CAS number for the metal is given. The CAS numbers for individual compounds of the metal are not provided. For more information about CAS registry numbers see the web site: http://www.cas.org.
A8: • Short-term exposure limits (STEL) pertain to fifteen-minute exposure periods, unless another time period is noted in Table 3.
A9: • An "X" in the "skin" column indicates the contaminant can be absorbed through the skin, either by airborne or direct contact.
A10: – Personal protective equipment (PPE) to prevent skin contact may be needed to minimize the risk for adverse health effects when employees are exposed to these chemicals.
A11: – Requirements for the use of gloves, coveralls, goggles, and other personal protective equipment can be found in WAC 296-800-160, Personal protective equipment (PPE).
A12: • Nuisance dusts (also known as inert dusts) are included in the Table 3 listing, particulates not otherwise regulated (PNOR).
A13: – The PNOR listing in Table 3 also applies to other particulate airborne contaminants for which a specific PEL is NOT listed unless the airborne contaminant is found to require a lower limit.
A15: Table 3 "Permissible Exposure Limits (PELs) for Airborne Contaminants"
A16: Airborne contaminant | B16: CAS | C16: TWA8 | D16: STEL | E16: Ceiling | F16: Skin
A17: Abate (Temephos) | B17: 3383-96-8 | C17: ---- | D17: ---- | E17: ---- | F17: ----
A18: Total particulate | B18: ---- | C18: 10 mg/m3 | D18: 20 mg/m3 | E18: ---- | F18: ----
A19: Respirable fraction | B19: ---- | C19: 5 mg/m3 | D19: 10 mg/m3 | E19: ---- | F19: ----
A20: Acetaldehyde | B20: 75-07-0 | C20: 100 ppm | D20: 150 ppm | E20: ---- | F20: ----
A21: Acetic acid | B21: 64-19-7 | C21: 10 ppm | D21: 20 ppm | E21: ---- | F21: ----
A22: Acetic anhydride | B22: 108-24-7 | C22: ---- | D22: ---- | E22: 5 ppm | F22: ----
A23: Actinolite (asbestiform) (as asbestos) | B23: ---- | C23: 0.1 f/cc | D23: 1.0 f/cc (30 minutes) | E23: ---- | F23: ----
A24: (see WAC 296-62-077 and
A25: chapter 296-65 WAC)
A26: Acetone | B26: 67-64-1 | C26: 750 ppm | D26: 1,000 ppm | E26: ---- | F26: ----
A27: Acetonitrile | B27: 75-05-8 | C27: 40 ppm | D27: 60 ppm | E27: ---- | F27: ----
A28: 2-Acetylaminofluorene | B28: 53-96-3 | C28: ---- | D28: ---- | E28: ---- | F28: ----
A29: (see WAC 296-62-073)
A30: Acetylene | B30: 74-86-2 | C30: Simple asphyxiant | D30: ---- | E30: ---- | F30: ----
A31: Acetylene dichloride | B31: 540-59-0 | C31: 200 ppm | D31: 250 ppm | E31: ---- | F31: ----
A32: (1,2-Dichloroethylene)
A33: Acetylene tetrabromide | B33: 79-27-6 | C33: 1 ppm | D33: 3 ppm | E33: ---- | F33: ----
A34: Acetylsalicylic acid | B34: 50-78-2 | C34: 5 mg/m3 | D34: 10 mg/m3 | E34: ---- | F34: ----
A35: (Aspirin)
A36: Acrolein | B36: 107-02-8 | C36: 0.1 ppm | D36: 0.3 ppm | E36: ---- | F36: ----
A37: Acrylamide | B37: 79-06-1 | C37: 0.03 mg/m3 | D37: 0.09 mg/m3 | E37: ---- | F37: X
A38: Acrylic acid | B38: 79-10-7 | C38: 10 ppm | D38: 20 ppm | E38: ---- | F38: X
A39: Acrylonitrile (Vinyl cyanide) | B39: 107-13-1 | C39: 2 ppm | D39: 10 ppm | E39: ---- | F39: ----
A40: (see WAC 296-62-07336)
A41: Aldrin | B41: 309-00-2 | C41: 0.25 mg/m3 | D41: 0.75 mg/m3 | E41: ---- | F41: X
A42: Allyl alcohol | B42: 107-18-6 | C42: 2 ppm | D42: 4 ppm | E42: ---- | F42: X
A43: Allyl chloride | B43: 107-05-1 | C43: 1 ppm | D43: 2 ppm | E43: ---- | F43: ----
A44: Allyl glycidyl ether (AGE) | B44: 106-92-3 | C44: 5 ppm | D44: 10 ppm | E44: ---- | F44: ----
A45: Allyl propyl disulfide | B45: 2179-59-1 | C45: 2 ppm | D45: 3 ppm | E45: ---- | F45: ----
A46: alpha-Alumina | B46: 1344-28-1 | C46: ---- | D46: ---- | E46: ---- | F46: ----
A47: (Aluminum oxide)
A48: Total particulate | B48: ---- | C48: 10 mg/m3 | D48: 20 mg/m3 | E48: ---- | F48: ----
A49: Respirable fraction | B49: ---- | C49: 5 mg/m3 | D49: 10 mg/m3 | E49: ---- | F49: ----
A50: Aluminum (as Al) | B50: 7429-90-5 | C50: ---- | D50: ---- | E50: ---- | F50: ----
A51: Total particulate | B51: ---- | C51: 10 mg/m3 | D51: 20 mg/m3 | E51: ---- | F51: ----
A52: Respirable fraction | B52: ---- | C52: 5 mg/m3 | D52: 10 mg/m3 | E52: ---- | F52: ----
A53: Pyro powders | B53: ---- | C53: 5 mg/m3 | D53: 10 mg/m3 | E53: ---- | F53: ----
A54: Welding fumes | B54: ---- | C54: 5 mg/m3 | D54: 10 mg/m3 | E54: ---- | F54: ----
A55: Soluble salts | B55: ---- | C55: 2 mg/m3 | D55: 4 mg/m3 | E55: ---- | F55: ----
A56: Alkyls (NOC) | B56: ---- | C56: 2 mg/m3 | D56: 4 mg/m3 | E56: ---- | F56: ----
A57: Aluminum oxide (Alundum, | B57: 7429-90-5 | C57: ---- | D57: ---- | E57: ---- | F57: ----
A58: Corundum)
A59: Total particulate | B59: ---- | C59: 10 mg/m3 | D59: 20 mg/m3 | E59: ---- | F59: ----
A60: Respirable fraction | B60: ---- | C60: 5 mg/m3 | D60: 10 mg/m3 | E60: ---- | F60: ----
A61: 4-Aminodiphenyl | B61: 92-67-1 | C61: ---- | D61: ---- | E61: ---- | F61: ----
A62: (see WAC 296-62-073)
A63: 2-Aminoethanol | B63: 141-43-5 | C63: 3 ppm | D63: 6 ppm | E63: ---- | F63: ----
A64: (Ethanolamine)
A65: 2-Aminopyridine | B65: 504-29-0 | C65: 0.5 ppm | D65: 1.5 ppm | E65: ---- | F65: ----
A66: Amitrole | B66: 61-82-5 | C66: 0.2 mg/m3 | D66: 0.6 mg/m3 | E66: ---- | F66: ----
A67: Ammonia | B67: 7664-41-7 | C67: 25 ppm | D67: 35 ppm | E67: ---- | F67: ----
A68: Ammonium chloride, fume | B68: 12125-02-9 | C68: 10 mg/m3 | D68: 20 mg/m3 | E68: ---- | F68: ----
A69: Ammonium sulfamate (Ammate) | B69: 7773-06-0 | C69: ---- | D69: ---- | E69: ---- | F69: ----
A70: Total particulate | B70: ---- | C70: 10 mg/m3 | D70: 20 mg/m3 | E70: ---- | F70: ----
A71: Respirable fraction | B71: ---- | C71: 5.0 mg/m3 | D71: 10 mg/m3 | E71: ---- | F71: ----
A72: Amosite (as asbestos) | B72: ---- | C72: 0.1 f/cc | D72: 1.0 f/cc (30 minutes) | E72: ---- | F72: ----
A73: (see WAC 296-62-077 and
A74: and chapter 296-65 WAC)
A75: n-Amyl acetate | B75: 628-63-7 | C75: 100 ppm | D75: 150 ppm | E75: ---- | F75: ----
A76: sec-Amyl acetate | B76: 626-38-0 | C76: 125 ppm | D76: 156 ppm | E76: ---- | F76: ----
A77: Aniline and homologues | B77: 62-53-3 | C77: 2 ppm | D77: 4 ppm | E77: ---- | F77: X
A78: Anisidine (o, p-isomers) | B78: 29191-52-4 | C78: 0.1 ppm | D78: 0.3 ppm | E78: ---- | F78: X
A79: Anthophyllite (asbestiform) (as | B79: ---- | C79: 0.1 f/cc | D79: 1.0 f/cc (30 minutes) | E79: ---- | F79: ----
A80: asbestos)
A81: (see WAC 296-62-077 and
A82: chapter 296-65 WAC)
A83: Antimony and compounds (as Sb) | B83: 7440-36-0 | C83: 0.5 mg/m3 | D83: 1.5 mg/m3 | E83: ---- | F83: ----
A84: ANTU | B84: 86-88-4 | C84: 0.3 mg/m3 | D84: 0.9 mg/m3 | E84: ---- | F84: ----
A85: (alpha Naphthyl thiourea)
A86: Argon | B86: 7440-37-1 | C86: Simple asphyxiant | D86: ---- | E86: ---- | F86: ----
A87: Arsenic, | B87: 7440-38-2 | C87: 0.2 mg/m3 | D87: 0.6 mg/m3 | E87: ---- | F87: ----
A88: organic compounds (as As)
A89: Arsenic, inorganic | B89: 7440-38-2 | C89: 0.01 mg/m3 | D89: ---- | E89: ---- | F89: ----
A90: compounds (as As) (when
A91: use is covered by chapter
A92: 296-848 WAC)
A93: Arsenic, inorganic | B93: 7440-38-2 | C93: 0.2 mg/m3 | D93: 0.6 mg/m3 | E93: ---- | F93: ----
A94: compounds (as As)
A95: (when use is not
A96: covered by chapter
A97: 296-848 WAC)
A98: Arsine | B98: 7784-42-1 | C98: 0.05 ppm | D98: 0.15 ppm | E98: ---- | F98: ----
A99: Asbestos | B99: ---- | C99: 0.1 f/cc | D99: 1.0 f/cc (30 minutes) | E99: ---- | F99: ----
A100: (see WAC 296-62-077
A101: and chapter 296-65 WAC)
A102: Asphalt (Petroleum fumes) | B102: 8052-42-4 | C102: 5 mg/m3 | D102: 10 mg/m3 | E102: ---- | F102: ----
A103: Atrazine | B103: 1912-24-9 | C103: 5 mg/m3 | D103: 10 mg/m3 | E103: ---- | F103: ----
A104: Azinphos methyl (Guthion) | B104: 86-50-0 | C104: 0.2 mg/m3 | D104: 0.6 mg/m3 | E104: ---- | F104: X
A105: Azodrin (Monocrotophos) | B105: 6923-22-4 | C105: 0.25 mg/m3 | D105: 0.75 mg/m3 | E105: ---- | F105: ----
A106: Barium, soluble | B106: 7440-39-3 | C106: 0.5 mg/m3 | D106: 1.5 mg/m3 | E106: ---- | F106: ----
A107: compounds (as Ba)
A108: Barium sulfate | B108: 7727-43-7 | C108: ---- | D108: ---- | E108: ---- | F108: ----
A109: Total particulate | B109: ---- | C109: 10 mg/m3 | D109: 20 mg/m3 | E109: ---- | F109: ----
A110: Respirable fraction | B110: ---- | C110: 5 mg/m3 | D110: 10 mg/m3 | E110: ---- | F110: ----
A111: Baygon (Propoxur) | B111: 114-26-1 | C111: 0.5 mg/m3 | D111: 1.5 mg/m3 | E111: ---- | F111: ----
A112: Benomyl | B112: 17804-35-2 | C112: ---- | D112: ---- | E112: ---- | F112: ----
A113: Total particulate | B113: ---- | C113: 10 mg/m3 | D113: 20 mg/m3 | E113: ---- | F113: ----
A114: Respirable fraction | B114: ---- | C114: 5 mg/m3 | D114: 10 mg/m3 | E114: ---- | F114: ----
A115: Benzene | B115: 71-43-2 | C115: 1 ppm | D115: 5 ppm | E115: ---- | F115: ----
A116: (see chapter 296-849 WAC)
A117: Benzidine | B117: 92-87-5 | C117: ---- | D117: ---- | E117: ---- | F117: ----
A118: (see WAC 296-62-073)
A119: p-Benzoquinone | B119: 106-51-4 | C119: 0.1 ppm | D119: 0.3 ppm | E119: ---- | F119: ----
A120: (Quinone)
A121: Benzo(a) pyrene | B121: 65996-93-2 | C121: 0.2 mg/m3 | D121: 0.6 mg/m3 | E121: ---- | F121: ----
A122: (Coal tar pitch volatiles)
A123: Benzoyl peroxide | B123: 94-36-0 | C123: 5 mg/m3 | D123: 10 mg/m3 | E123: ---- | F123: ----
A124: Benzyl chloride | B124: 100-44-7 | C124: 1ppm | D124: 3 ppm | E124: ---- | F124: ----
A125: Beryllium and beryllium | B125: 7440-41-7 | C125: 0.002 mg/m3 | D125: 0.005 mg/m3 | E125: 0.025 mg/m3 | F125: ----
A126: compounds (as Be) | D126: (30 min.)
A127: Biphenyl (Diphenyl) | B127: 92-52-4 | C127: 0.2 ppm | D127: 0.6 ppm | E127: ---- | F127: ----
A128: Bismuth telluride, undoped | B128: 1304-82-1 | C128: ---- | D128: ---- | E128: ---- | F128: ----
A129: Total particulate | B129: ---- | C129: 10 mg/m3 | D129: 20 mg/m3 | E129: ---- | F129: ----
A130: Respirable fraction | B130: ---- | C130: 5 mg/m3 | D130: 10 mg/m3 | E130: ---- | F130: ----
A131: Bismuth telluride, Se-doped | B131: ---- | C131: 5 mg/m3 | D131: 10 mg/m3 | E131: ---- | F131: ----
A132: Borates, tetra, sodium salts | B132: ---- | C132: ---- | D132: ---- | E132: ---- | F132: ----
A133: Anhydrous | B133: 1330-43-4 | C133: 1 mg/m3 | D133: 3 mg/m3 | E133: ---- | F133: ----
A134: Decahydrate | B134: 1303-96-4 | C134: 5 mg/m3 | D134: 10 mg/m3 | E134: ---- | F134: ----
A135: Pentahydrate | B135: 12179-04-3 | C135: 1 mg/m3 | D135: 3 mg/m3 | E135: ---- | F135: ----
A136: Boron oxide | B136: 1303-86-2 | C136: ---- | D136: ---- | E136: ---- | F136: ----
A137: Total particulate | B137: ---- | C137: 10 mg/m3 | D137: 20 mg/m3 | E137: ---- | F137: ----
A138: Boron tribromide | B138: 10294-33-4 | C138: ---- | D138: ---- | E138: 1 ppm | F138: ----
A139: Boron trifluoride | B139: 6737-07-2 | C139: ---- | D139: ---- | E139: 1 ppm | F139: ----
A140: Bromacil | B140: 314-40-9 | C140: 1 ppm | D140: 3 ppm | E140: ---- | F140: ----
A141: Bromine | B141: 7726-95-6 | C141: 0.1 ppm | D141: 0.3 ppm | E141: ---- | F141: ----
A142: Bromine pentafluoride | B142: 7789-30-2 | C142: 0.1 ppm | D142: 0.3 ppm | E142: ---- | F142: ----
A143: Bromochloromethane | B143: 74-97-5 | C143: 200 ppm | D143: 250 ppm | E143: ---- | F143: ----
A144: (Chlorobromomthane)
A145: Bromoform | B145: 15-25-2 | C145: 0.5 ppm | D145: 1.5 ppm | E145: ---- | F145: X
A146: Butadiene | B146: 106-99-0 | C146: 1 ppm | D146: 5 ppm | E146: ---- | F146: ----
A147: (1,3-butadiene)
A148: (see WAC 296-62-07460)
A149: Butane | B149: 106-97-8 | C149: 800 ppm | D149: 1,000 ppm | E149: ---- | F149: ----
A150: Butanethiol | B150: 109-79-5 | C150: 0.5 ppm | D150: 1.5 ppm | E150: ---- | F150: ----
A151: (Butyl mercaptan)
A152: 2-Butanone | B152: 78-93-3 | C152: 200 ppm | D152: 300 ppm | E152: ---- | F152: ----
A153: (Methyl ethyl ketone)
A154: 2-Butoxy ethanol | B154: 111-76-2 | C154: 25 ppm | D154: 38 ppm | E154: ---- | F154: X
A155: (Butyl cellosolve)
A156: n-Butyl acetate | B156: 123-86-4 | C156: 150 ppm | D156: 200 ppm | E156: ---- | F156: ----
A157: sec-Butyl acetate | B157: 105-46-4 | C157: 200 ppm | D157: 250 ppm | E157: ---- | F157: ----
A158: tert-Butyl acetate | B158: 540-88-5 | C158: 200 ppm | D158: 250 ppm | E158: ---- | F158: ----
A159: Butyl acrylate | B159: 141-32-2 | C159: 10 ppm | D159: 20 ppm | E159: ---- | F159: ----
A160: n-Butyl alcohol | B160: 71-36-3 | C160: ---- | D160: ---- | E160: 50 ppm | F160: X
A161: sec-Butyl alcohol | B161: 78-92-2 | C161: 100 ppm | D161: 150 ppm | E161: -- -- | F161: ----
A162: tert-Butyl alcohol | B162: 75-65-0 | C162: 100 ppm | D162: 150 ppm | E162: ---- | F162: ----
A163: Butylamine | B163: 109-73-9 | C163: ---- | D163: ---- | E163: 5 ppm | F163: X
A164: Butyl cellosolve (2-Butoxy ethanol) | B164: 111-76-2 | C164: 25 ppm | D164: 38 ppm | E164: ---- | F164: ----
A165: tert-Butyl chromate | B165: 1189-85-1 | C165: 0.005 mg/m3 | D165: ---- | E165: 0.1 mg/m3 | F165: X
A166: (as Cr)
A167: (see WAC 296-62-08003)
A168: n-Butyl glycidyl ether (BGE) | B168: 2426-08-6 | C168: 25 ppm | D168: 38 ppm | E168: ---- | F168: ----
A169: n-Butyl lactate | B169: 138-22-7 | C169: 5 ppm | D169: 10 ppm | E169: --- | F169: ----
A170: Butyl mercaptan | B170: 109-79-5 | C170: 0.5 ppm | D170: 1.5 ppm | E170: ---- | F170: ----
A171: o-sec-Butylphenol | B171: 89-72-5 | C171: 5 ppm | D171: 10 ppm | E171: ---- | F171: X
A172: p-tert-Butyl-toluene | B172: 98-51-1 | C172: 10 ppm | D172: 20 ppm | E172: ---- | F172: ----
A173: Cadmium oxide fume (as Cd) | B173: 1306-19-0 | C173: 0.005 mg/m3 | D173: ---- | E173: -- -- | F173: ----
A174: (see WAC 296-62-074
A175: and 296-155-174)
A176: Cadmium dust and salts (as Cd) | B176: 7440-43-9 | C176: 0.005 mg/m3 | D176: ---- | E176: ---- | F176: ----
A177: (see WAC 296-62-074
A178: and 296-155-174)
A179: Calcium arsenate | B179: ---- | C179: 0.01 mg/m3 | D179: ---- | E179: ---- | F179: ----
A180: (see chapter 296-848 WAC)
A181: Calcium carbonate | B181: 1317-65-3 | C181: ---- | D181: ---- | E181: ---- | F181: ----
A182: Total particulate | B182: ---- | C182: 10 mg/m3 | D182: 20 mg/m3 | E182: ---- | F182: ----
A183: Respirable fraction | B183: ---- | C183: 5 mg/m3 | D183: 10 mg/m3 | E183: ---- | F183: ----
A184: Calcium cyanamide | B184: 156-62-7 | C184: 0.5 mg/m3 | D184: 1.5 mg/m3 | E184: ---- | F184: ----
A185: Calcium hydroxide | B185: 1305-62-0 | C185: 5 mg/m3 | D185: 10 mg/m3 | E185: ---- | F185: ----
A186: Calcium oxide | B186: 1305-78-8 | C186: 2 mg/m3 | D186: 4 mg/m3 | E186: ---- | F186: ----
A187: Calcium silicate | B187: 1344-95-2 | C187: ---- | D187: ---- | E187: ---- | F187: ----
A188: Total particulate | B188: ---- | C188: 10 mg/m3 | D188: 20 mg/m3 | E188: ---- | F188: ----
A189: Respirable fraction | B189: ---- | C189: 5 mg/m3 | D189: 10 mg/m3 | E189: ---- | F189: ----
A190: Calcium sulfate | B190: 7778-18-9 | C190: ---- | D190: ---- | E190: ---- | F190: ----
A191: Total particulate | B191: ---- | C191: 10 mg/m3 | D191: 20 mg/m3 | E191: ---- | F191: ----
A192: Respirable fraction | B192: ---- | C192: 5 mg/m3 | D192: 10 mg/m3 | E192: ---- | F192: ----
A193: Camphor (synthetic) | B193: 76-22-2 | C193: 2 mg/m3 | D193: 4 mg/m3 | E193: ---- | F193: ----
A194: Caprolactam | B194: 105-60-2 | C194: ---- | D194: ---- | E194: ---- | F194: ----
A195: Dust | B195: ---- | C195: 1 mg/m3 | D195: 3 mg/m3 | E195: ---- | F195: ----
A196: Vapor | B196: ---- | C196: 5 ppm | D196: 10 ppm | E196: ---- | F196: ----
A197: Captafol | B197: 2425-06-1 | C197: 0.1 mg/m3 | D197: 0.3 mg/m3 | E197: ---- | F197: X
A198: (Difolatan)
A199: Captan | B199: 133-06-2 | C199: 5 mg/m3 | D199: 10 mg/m3 | E199: ---- | F199: ----
A200: Carbaryl (Sevin) | B200: 63-25-2 | C200: 5 mg/m3 | D200: 10 mg/m3 | E200: ---- | F200: ----
A201: Carbofuran (Furadon) | B201: 1563-66-2 | C201: 0.1 mg/m3 | D201: 0.3 mg/m3 | E201: ---- | F201: ----
... 1039 more rows

Sheet RREL Henry's Law Constants
A1: Extracted from EPA's RREL Treatability Database, 1994 | C1: (atm*M3 / mol)
A2: COMPOUND | B2: CASNO | C2: HENRYS_LAW | D2: MOL_WT | E2: TYPE | F2: STYPE | G2: FORMULA | H2: MELT_POINT | I2: BOIL_POINT | J2: VAPOR_PRES | K2: SOLUBILITY | L2: REF_HL | M2: PART_COEFF | N2: REF_PC | O2: E_NONCAR | P2: E_RISK | Q2: E_DWATER | R2: E_WQUALITY | S2: E_AQ_TOX
A3: ACENAPHTHENE | B3: 83-32-9 | C3: 2.41 E-4 @ 25 | D3: 154.21 | E3: PAH | G3: C12 H10 | H3: 96.2 | I3: 279 | J3: 10 @ 131 | K3: 3.42 @ 25 | L3: 191D | M3: 3.92 | N3: 1032A | O3: NA | P3: NA | Q3: NA | R3: 345B | S3: NA
A4: DIMETHYLPHENOL,2,4- | B4: 105-67-9 | C4: 1.7 E-5 @ 25 | D4: 122.17 | E4: PHENOLIC | G4: C8 H10 O | H4: 27 | I4: 210 | J4: 98 @ 104 | L4: 2034B | M4: 2.42 | N4: 1226A | O4: NA | P4: NA | Q4: NA | R4: 345B | S4: 5B
A5: DINITRO-o-CRESOL,4,6- | B5: 534-52-1 | C5: 1.4 E-6 @ 25 | D5: 198.13 | E5: PHENOLIC | G5: C7 H6 N2 O5 | H5: 87.5 | I5: 312 | J5: 1 E-4 @ 25 | K5: 130 @ 20 | L5: 191D | M5: 2.85 (C) | N5: 379B | O5: NA | P5: NA | Q5: NA | R5: NA | S5: 5B
A6: DINITROPHENOL,2,4- | B6: 51-28-5 | C6: 6.45 E-10 @ 18 (C) | D6: 184.11 | E6: PHENOLIC | G6: C6 H4 N2 O5 | H6: 115 TO 116 | K6: 5600 @ 18 | L6: 2034B | M6: 1.54 | N6: 163A | O6: 4B | P6: NA | Q6: NA | R6: 4B | S6: 5B
A7: DIPHENYLHYDRAZINE,1,2- | B7: 122-66-7 | C7: 3.4 E-9 @ 25 (C) | D7: 184.24 | E7: AROMATIC | F7: HYDRAZINE | G7: C12 H12 N2 | H7: 131 | K7: 221 | L7: 2034B | M7: 3.03 | N7: 379B | O7: NA | P7: 4B | Q7: NA | R7: 345B | S7: 5B
A8: ENDRIN | B8: 72-20-8 | C8: 4 E-7 @ 25 (C) | D8: 380.93 | E8: PESTICIDE | G8: C12 H8 CL6 O | H8: 245 DECOMPOSES | J8: 2 E-7 @ 25 | K8: 0.26 @ 25 | L8: 2034B | M8: 5.6 (C) | N8: 463A | O8: NA | P8: NA | Q8: 357B | R8: 345B | S8: 5B
A9: ETHYLBENZENE | B9: 100-41-4 | C9: 6.44 E-3 @ 25 | D9: 106.17 | E9: AROMATIC | F9: HYDROCARBON | G9: C8 H10 | H9: -95 | I9: 136.2 | J9: 10 @ 25.9 | K9: 152 @ 20 | L9: 191D | M9: 3.15 | N9: 379B | O9: 4B | P9: NA | Q9: 346B | R9: 4B | S9: 5B
A10: FLUORANTHENE | B10: 206-44-0 | C10: 6.5 E-6 @ 25 (C) | D10: 202.26 | E10: PAH | G10: C16 H10 | H10: 107 | I10: 375 | K10: 0.265 @ 25 | L10: 2034B | M10: 5.33 (C) | N10: 379B | O10: NA | P10: NA | Q10: NA | R10: 345B | S10: 5B
A11: FLUORENE | B11: 86-73-7 | C11: 1.17 E-4 @ 25 | D11: 166.22 | E11: PAH | G11: C13 H10 | H11: 114.8 | I11: 295 | J11: 10 @ 146 | K11: 1.9 @ 25 | L11: 191D | M11: 4.18 | N11: 1032A | O11: NA | P11: NA | Q11: NA | R11: NA | S11: 5B
A12: FURFUROL | B12: 98-01-1 | C12: 3.6 E-6 | D12: 96.08 | E12: FURAN | F12: ALDEHYDE | G12: C5 H4 O2 | H12: -36.5 | I12: 161.8 | J12: 1 @ 18.5 | K12: 8.3 E 4 @ 20 | L12: 2029A | M12: 0.52 | N12: 1193B | O12: NA | P12: NA | Q12: NA | R12: NA | S12: 5B
A13: HEPTACHLOR | B13: 76-44-8 | C13: 1.48 E-3 | D13: 373.32 | E13: PESTICIDE | G13: C10 H5 CL7 | H13: 95 | J13: 3 E-4 @ 25 | K13: 0.056 @ 25 | L13: 191B | N13: NA | O13: NA | P13: NA | Q13: 357B | R13: 345B | S13: 5B
A14: HEPTACHLOR EPOXIDE | B14: 1024-57-3 | C14: 3.16 E-5 @ 25 | D14: 389.2 | E14: PESTICIDE | G14: C10 H5 CL7 O | H14: 157 | K14: 0.35 @ 25 | L14: 191B | N14: NA | O14: 4B | P14: NA | Q14: 357B | R14: 4B | S14: 5B
A15: HEXACHLOROBENZENE | B15: 118-74-1 | C15: 1.70 E-3 @ 25 | D15: 284.78 | E15: AROMATIC | F15: HALOGENATED | G15: C6 CL6 | H15: 231 | I15: 323 | J15: 1 @ 114.4 | K15: 0.11 @ 24 | L15: 191D | M15: 5.47 | N15: 1032A | O15: NA | P15: NA | Q15: 346B | R15: 345B | S15: NA
A16: HEXACHLOROBUTADIENE | B16: 87-68-3 | C16: 0.0256 @ 20 (C) | D16: 260.76 | E16: HYDROCARBON | F16: HALOGENATED | G16: C4 CL6 | H16: -21 | I16: 215 | J16: 0.15 @ 20 | K16: 2 @ 20 | L16: 2034B | M16: 4.78 | N16: 1226A | O16: 4B | P16: 4B | Q16: NA | R16: 4B | S16: 5B
A17: HEXACHLOROCYCLOPENTADIENE | B17: 77-47-4 | C17: 0.016 @ 25 (C) | D17: 272.77 | E17: CYCLIC | F17: HALOGENATED | G17: C5 CL6 | H17: -10 | I17: 239 | J17: 0.08 @ 25 | K17: 1.8 @ 25 | L17: 2034B | M17: 3.99 | N17: 379B | O17: 4B | P17: NA | Q17: NA | R17: 4B | S17: 5B
A18: HEXACHLOROETHANE | B18: 67-72-1 | C18: 9.85 E-3 @ 25 | D18: 236.74 | E18: HYDROCARBON | F18: HALOGENATED | G18: C2 CL6 | H18: 186.8 TRIPLE POINT | I18: 186.8 | J18: 0.40 @ 20 | K18: 50 @ 22 | L18: 191B | M18: 4.14 | N18: 1237A | O18: NA | P18: 4B | Q18: NA | R18: 4B | S18: 5B
A19: INDENO(1,2,3-cd)PYRENE | B19: 193-39-5 | C19: 6.95 E-8 @ 25 (C) | D19: 276.34 | E19: PAH | G19: C22 H12 | H19: 160 | I19: 536 | L19: 2034B | M19: 7.66 (C) | N19: 379B | O19: NA | P19: NA | Q19: NA | R19: 345B | S19: NA
A20: MERCURY | B20: 7439-97-6 | C20: 1.14 E-2 (C) | D20: 200.59 | E20: INORGANIC | F20: ELEMENT | G20: HG | H20: -38.87 | I20: 356.58 | J20: 1.2 E-3 @ 20 | K20: 0.056 @ 25 | L20: 1018A | N20: NA | O20: NA | P20: NA | Q20: 349B | R20: 345B | S20: 5B
A21: METHYL CHLORIDE | B21: 74-87-3 | C21: 8.82 E-3 @ 24.8 | D21: 50.49 | E21: HYDROCARBON | F21: HALOGENATED | G21: C H3 CL | H21: -97.7 | I21: -24.22 | J21: 3800 @ 20 | K21: 6360 @ 20 | L21: 1034A | M21: 0.91 | N21: 379A | O21: NA | P21: NA | Q21: NA | R21: 345B | S21: 5B
A22: METHYLENE CHLORIDE | B22: 75-09-2 | C22: 3.19 E-3 @ 25 | D22: 84.93 | E22: HYDROCARBON | F22: HALOGENATED | G22: C H2 CL2 | H22: -95.1 | I22: 40 | J22: 429 @ 25 | K22: 1.67 E 4 @ 25 | L22: 191D | M22: 1.25 | N22: 338D | O22: 4B | P22: 4B | Q22: 346B | R22: 4B | S22: 5B
A23: N-NITROSODIPHENYLAMINE | B23: 86-30-6 | C23: 3.13 | D23: 198.23 | E23: AROMATIC | F23: AMINE | G23: C12 H10 N2 O | H23: 66.5 | J23: 0.1 | K23: 35 | L23: 1226A | M23: 2.79 | N23: 1226A | O23: NA | P23: 4B | Q23: NA | R23: 4B | S23: 5B
A24: NAPHTHALENE | B24: 91-20-3 | C24: 4.83 E-4 @ 25 | D24: 128.17 | E24: PAH | G24: C10 H8 | H24: 80.5 | I24: 218 | J24: 0.082 @ 25 | K24: 30 @ 25 | L24: 419A | M24: 3.37 | N24: 163A | O24: NA | P24: NA | Q24: NA | R24: 345B | S24: 5B
A25: NITROBENZENE | B25: 98-95-3 | C25: 2.38 E-5 @ 25 | D25: 123.11 | E25: AROMATIC | F25: NITRO | G25: C6 H5 N O2 | H25: 5.7 | I25: 210.8 | J25: 0.15 @ 20 | K25: 1900 @ 20 | L25: 191D | M25: 1.85 | N25: 163A | O25: 4B | P25: NA | Q25: NA | R25: 4B | S25: 5B
A26: OCTANE | B26: 111-65-9 | C26: 3.21 @ 25 | D26: 114.23 | E26: HYDROCARBON | G26: C8 H18 | H26: -56.8 | I26: 125.7 | J26: 11 @ 20 | K26: 20 | L26: 1018A | M26: 5.18 | N26: 1193B | O26: NA | P26: NA | Q26: NA | R26: NA | S26: 5B
A27: PCB 1016 | B27: 12674-11-2 | C27: 1.35 E-2 | D27: 257.9 | E27: PCB | G27: C12 H7 CL3 (57%) | I27: 325 TO 356 | J27: 4 E-4 @ 25 (EST) | K27: 0.049 @ 24 | L27: 1115D | M27: 4.38 | N27: 378B | O27: NA | P27: NA | Q27: NA | R27: 345B | S27: 5B
A28: PCB 1221 | B28: 11104-28-2 | C28: 2.28 E-4 @ 25 (C) | D28: 200.7 | E28: PCB | G28: C12 H9 CL (51%) | I28: 275 TO 320 | J28: 6.7 E-3 @ 25 (EST) | K28: 0.59 @ 24 | L28: 1221A | M28: 4.09 | N28: 378B | O28: NA | P28: NA | Q28: NA | R28: 345B | S28: 5B
A29: PCB 1242 | B29: 53469-21-9 | C29: 3.43 E-4 @ 25 | D29: 266.5 | E29: PCB | G29: C12 H7 CL3 (49%) | I29: 325 TO 366 | J29: 4.06 E-4 @ 25 | K29: 0.10 @ 24 | L29: 1221A | M29: 4.11 | N29: 378B | O29: NA | P29: NA | Q29: NA | R29: 345B | S29: 5B
A30: PCB 1248 | B30: 12672-29-6 | C30: 4.4 E-4 @ 25 | D30: 299.5 | E30: PCB | G30: C12 H6 CL4 (40%) | I30: 340 TO 375 | J30: 4.94 E-4 @ 25 | K30: 0.054 | L30: 1221A | M30: 5.75 | N30: 378B | O30: NA | P30: NA | Q30: NA | R30: 345B | S30: 5B
A31: PCB 1254 | B31: 11097-69-1 | C31: 8.37 E-3 @ 25 | D31: 328.4 | E31: PCB | G31: C12 H5 CL5 (48%) | I31: 365 TO 390 | J31: 7.71 E-5 @ 25 | K31: 0.057 @ 24 | L31: 191B | M31: 6.03 (EST) | N31: 378B | O31: NA | P31: NA | Q31: NA | R31: 345B | S31: 5B
A32: PCB 1260 | B32: 11096-82-5 | C32: 3.36 E-4 @ 25 | D32: 375.7 | E32: PCB | G32: C12 H3 CL7 (41%) | I32: 385 TO 420 | J32: 4.05 E-5 @ 25 | K32: 0.080 @ 24 | L32: 1221A | M32: >6.11 | N32: 378B | O32: NA | P32: NA | Q32: NA | R32: 345B | S32: 5B
A33: PENTACHLOROPHENOL | B33: 87-86-5 | C33: 2.8 E-6 @ 20 (C) | D33: 266.34 | E33: PESTICIDE | G33: C6 H CL5 O | H33: 191 | I33: 309 | J33: 1.1 E-4 @ 20 | K33: 14 @ 20 | L33: 2034B | M33: 5.01 | N33: 163A | O33: 4B | P33: NA | Q33: 357B | R33: 4B | S33: 5B
A34: PHENANTHRENE | B34: 85-01-8 | C34: 3.93 E-5 @ 25 | D34: 178.23 | E34: PAH | G34: C14 H10 | H34: 100 | I34: 340 | J34: 1 @ 118.2 | K34: 0.816 @ 21 | L34: 419A | M34: 4.46 | N34: 163A | O34: NA | P34: NA | Q34: NA | R34: 345B | S34: 5B
A35: PHENOL | B35: 108-95-2 | C35: 1.3 E-6 @ 25 | D35: 94.11 | E35: PHENOLIC | G35: C6 H6 O | H35: 43 | I35: 181.7 | J35: 0.35 @ 25 | K35: 8 E 4 @ 25 | L35: 191B | M35: 1.46 | N35: 163A | O35: 4B | P35: NA | Q35: NA | R35: 4B | S35: 5B
A36: PYRENE | B36: 129-00-0 | C36: 5.1 E-6 @ 25 (C) | D36: 202.26 | E36: PAH | G36: C16 H10 | H36: 156 | I36: 393 | J36: 2.5 @ 200 | K36: 0.16 @ 26 | L36: 2034B | M36: 5.18 | N36: 1032A | O36: NA | P36: NA | Q36: NA | R36: NA | S36: 5B
A37: TETRACHLORODIBENZO-p-DIOXIN,2,3,7,8- | B37: 1746-01-6 | C37: 2.1 E-3 (C) | D37: 321.96 | E37: DIOXIN | G37: C12 H4 CL4 O2 | H37: 303 TO 305 | J37: 7.4 E-10 @ 25 | K37: 1.93 E-5 | L37: 2034B | M37: 6.64 | N37: 1220A | O37: NA | P37: NA | Q37: NA | R37: 345B | S37: 5B
A38: TETRACHLOROETHANE,1,1,1,2- | B38: 630-20-6 | C38: 0.011 (C) | D38: 167.85 | E38: HYDROCARBON | F38: HALOGENATED | G38: C2 H2 CL4 | H38: -70.2 | I38: 130.5 | J38: 10 @ 19.3 | K38: 200 @ 20 | L38: 2033B | M38: 3.04 (C) | N38: 2033B | O38: NA | P38: NA | Q38: NA | R38: 345B | S38: 5B
A39: TETRACHLOROETHANE,1,1,2,2- | B39: 79-34-5 | C39: 3.8 E-4 @ 20 (C) | D39: 167.85 | E39: HYDROCARBON | F39: HALOGENATED | G39: C2 H2 CL4 | H39: -43.8 | I39: 146.3 | J39: 4 @ 25 | K39: 2900 @ 20 | L39: 2034B | M39: 2.39 | N39: 1226A | O39: NA | P39: 4B | Q39: NA | R39: 345B | S39: 5B
A40: TETRACHLOROETHYLENE | B40: 127-18-4 | C40: 2.87 E-2 @ 25 | D40: 165.83 | E40: HYDROCARBON | F40: HALOGENATED | G40: C2 CL4 | H40: -22.4 | I40: 121.1 | J40: 19 @ 25 | K40: 150 @ 25 | L40: 191D | M40: 2.53 | N40: 1226A | O40: 4B | P40: NA | Q40: 346B | R40: 345B | S40: 5B
A41: TETRAHYDROFURAN | B41: 109-99-9 | C41: 1.1 E-4 | D41: 72.11 | E41: FURAN | G41: C4 H8 O | H41: -108.5 | I41: 66 | J41: 162 @ 25 | K41: MISCIBLE | L41: 2029A | M41: 0.46 | N41: 1234A | O41: NA | P41: NA | Q41: NA | R41: NA | S41: NA
A42: TOLUENE | B42: 108-88-3 | C42: 5.92 E-3 @ 25 | D42: 92.14 | E42: AROMATIC | F42: HYDROCARBON | G42: C7 H8 | H42: -95 | I42: 110.6 | J42: 28 @ 25 | K42: 515 @ 20 | L42: 191B | M42: 2.69 | N42: 163A | O42: 4B | P42: NA | Q42: 346B | R42: 4B | S42: 5B
A43: TOXAPHENE | B43: 8001-35-2 | C43: 4.89 E-3 @ 25 | D43: 414 (AVG) | E43: PESTICIDE | G43: C10 H10 CL8 (AVG) | H43: 70-95 | I43: >120 DECOMPOSES | J43: 0.2 TO 0.4 @ 25 | K43: 0.5-3 @ 25 | L43: 191D | M43: 3.3 | N43: 378B | O43: NA | P43: NA | Q43: 357B | R43: 345B | S43: 5B
A44: TRICHLOROBENZENE,1,2,4- | B44: 120-82-1 | C44: 1.42 E-3 @ 25 | D44: 181.46 | E44: AROMATIC | F44: HALOGENATED | G44: C6 H3 CL3 | H44: 17 | I44: 213.5 | J44: 1 @ 38.4 | K44: 19 @ 22 | L44: 191D | M44: 3.98 | N44: 1032A | O44: 4B | P44: NA | Q44: NA | R44: 4B | S44: 5B
A45: TRICHLOROETHANE,1,1,1- | B45: 71-55-6 | C45: 4.08 E-3 @ 25 | D45: 133.40 | E45: HYDROCARBON | F45: HALOGENATED | G45: C2 H3 CL3 | H45: -30.4 | I45: 74.1 | J45: 100 @ 20 | K45: 4400 @ 20 | L45: 191D | M45: 2.47 | N45: 1226A | O45: 4B | P45: NA | Q45: 346B | R45: 4B | S45: 5B
A46: TRICHLOROETHYLENE | B46: 79-01-6 | C46: 1.17 E-2 @ 25 | D46: 131.39 | E46: HYDROCARBON | F46: HALOGENATED | G46: C2 H CL3 | H46: -84.8 | I46: 86.7 | J46: 77 @ 25 | K46: 1100 @ 25 | L46: 191D | M46: 2.53 | N46: 1032A | O46: NA | P46: 4B | Q46: 346B | R46: 4B | S46: 5B
A47: TRICHLOROMONOFLUOROMETHANE | B47: 75-69-4 | C47: 5.83 E-2 @ 25 | D47: 137.4 | E47: HYDROCARBON | F47: HALOGENATED | G47: C CL3 F | H47: -111 | I47: 23.8 | J47: 687 @ 20 | K47: 1100 @ 25 | L47: 191D | M47: 2.53 | N47: 338D | O47: 4B | P47: NA | Q47: NA | R47: 345B | S47: NA
A48: TRICHLOROPHENOL,2,4,6- | B48: 88-06-2 | C48: 4 E-6 @ 25 (C) | D48: 197.45 | E48: PHENOLIC | F48: HALOGENATED | G48: C6 H3 CL3 O | H48: 69.5 | I48: 246 | J48: 1 @ 76.5 | K48: 800 @ 25 | L48: 2034B | M48: 3.69 | N48: 163A | O48: NA | P48: 4B | Q48: NA | R48: 4B | S48: 5B
A49: TRINITROTOLUENE,2,4,6- | B49: 118-96-7 | C49: 2.0 E-7 | D49: 227.13 | E49: AROMATIC | F49: NITRO | G49: C7 H5 N3 O6 | H49: 80.1 | I49: 240 EXPLODES | J49: 0.046 @ 82 | K49: 100 @ 25 | L49: 2033B | M49: 5.53 (C) | N49: 2033B | O49: NA | P49: NA | Q49: NA | R49: NA | S49: 5B
A50: VINYL CHLORIDE | B50: 75-01-4 | C50: 2.78 E-2 @ 25 | D50: 62.50 | E50: HYDROCARBON | F50: HALOGENATED | G50: C2 H3 CL | H50: -159.7 | I50: -13.9 | J50: 2580 @ 20 | K50: 1.1 @ 25 | L50: 1034A | M50: 0.60 | N50: 379B | O50: NA | P50: NA | Q50: 346B | R50: 345B | S50: 5B
A51: XYLENE,o- | B51: 95-47-6 | C51: 5.27 E-3 @ 25 (C) | D51: 106.16 | E51: HYDROCARBON | F51: AROMATIC | G51: C8 H10 | H51: -25.2 | I51: 144.4 | J51: 5 @ 20 | K51: 175 @ 20 | L51: 1018A | M51: 2.77 | N51: 463A | O51: NA | P51: NA | Q51: 346B | R51: NA | S51: 5B
A52: PICRIC ACID | B52: 88-89-1 | C52: 2.03 | D52: 229.11 | E52: HYDROCARBON | F52: AROMATIC | G52: C6 H3 N3 O7 | H52: 121.8 | I52: >300 EXPLOSIVE | K52: 1.4 E 4 @ 20 | L52: 463A | N52: NA | O52: NA | P52: NA | Q52: NA | R52: NA | S52: 5B
A53: OXALIC ACID | B53: 144-62-7 | C53: -0.81 TO -0.43 | D53: 90.04 | E53: ORGANIC ACID | G53: C2 H2 O4 | H53: 189.5 DECOMPOSES | I53: SUBLIMES | J53: 3 E-4 @ 30 | K53: 9.5 E 4 | L53: 463A | N53: NA | O53: NA | P53: NA | Q53: NA | R53: NA | S53: 5B
A54: N-METHYLANILINE | B54: 100-61-8 | C54: 1.66 | D54: 107.16 | E54: HYDROCARBON | F54: AROMATIC | G54: C7 H9 N | H54: -57 | I54: 196 | J54: 1 @ 36 | K54: SLIGHTLY SOLUBLE | L54: 163A | N54: NA | O54: NA | P54: NA | Q54: NA | R54: NA | S54: 5B
A55: HEXANOIC ACID | B55: 142-62-1 | C55: 1.88 | D55: 116.16 | E55: ORGANIC ACID | G55: C6 H12 O2 | H55: -4 | I55: 205.7 | J55: 0.2 @ 20 | K55: 1.1 E 4 | L55: 463A | N55: NA | O55: NA | P55: NA | Q55: NA | R55: NA | S55: 5B
A56: TERPINEOL,alpha- | B56: 98-55-5 | C56: 6.09 E-5 | D56: 154.25 | E56: ALCOHOL | F56: CYCLIC | G56: C10 H18 O | H56: 36.9 | I56: 217 to 218 | J56: 1 @ 53 | L56: NA | N56: NA | O56: NA | P56: NA | Q56: NA | R56: NA | S56: 5B
A57: BENZYL ALCOHOL | B57: 100-51-6 | C57: 1.10 | D57: 108.13 | E57: ALCOHOL | F57: AROMATIC | G57: C7 H8 O | H57: -15.3 | I57: 205.3 | J57: 0.15 @ 25 | K57: 3.5 E 4 @ 20 | L57: 163A | N57: NA | O57: NA | P57: NA | Q57: NA | R57: NA | S57: 5B
A58: ACENAPHTHYLENE | B58: 208-96-8 | C58: 1.14 E-4 @ 25 | D58: 152.20 | E58: PAH | G58: C12 H8 | H58: 92 | I58: 265 | K58: 3.93 @ 25 | L58: 191D | M58: 4.07 (C) | N58: 379B | O58: NA | P58: NA | Q58: NA | R58: 345B | S58: 5B
A59: ACRYLONITRILE | B59: 107-13-1 | C59: 8.8 E-5 (C) | D59: 53.06 | E59: NITRILE | F59: UNSATURATED | G59: C3 H3 N | H59: -83.7 | I59: 77.4 | J59: 137 @ 30 | K59: 7.35 E 4 @ 20 | L59: 2034B | M59: -0.92 | N59: 463A | O59: NA | P59: 4B | Q59: NA | R59: 345B | S59: 5B
A60: ALDRIN | B60: 309-00-2 | C60: 4.96 E-4 @ 25 | D60: 364.91 | E60: PESTICIDE | G60: C12 H8 CL6 | H60: 104 | J60: 2.3 E-5 @ 20 | K60: 0.017 @ 25 | L60: 191D | M60: 5.11 | N60: 2032B | O60: 4B | P60: 4B | Q60: NA | R60: 345B | S60: 5B
A61: AMINOPHENOL,3- | B61: 591-27-5 | C61: 0.15/0.17 | D61: 109.13 | E61: PHENOLIC | F61: AMINE | G61: C6 H7 N O | H61: 122 TO 123 | I61: 164 @ 11 mm HG | K61: 2.6 E 4 | L61: 163A | M61: 0.17 | N61: 163A | O61: NA | P61: NA | Q61: NA | R61: NA | S61: NA
A62: ANTHRACENE | B62: 120-12-7 | C62: 8.6 E-5 @ 25 (C) | D62: 178.23 | E62: PAH | G62: C14 H10 | H62: 216.3 | I62: 340 | K62: 1.29 @ 25 | L62: 2034B | M62: 4.45 | N62: 379B | O62: NA | P62: NA | Q62: NA | R62: 345B | S62: 5B
A63: BENZENE | B63: 71-43-2 | C63: 5.55 E-3 @ 25 | D63: 78.11 | E63: AROMATIC | F63: HYDROCARBON | G63: C6 H6 | H63: 5.5 | I63: 80.1 | J63: 95 @ 25 | K63: 1780 @ 20 | L63: 191D | M63: 2.13 | N63: 379B | O63: NA | P63: 4B | Q63: 346B | R63: 345B | S63: 5B
A64: BENZO(a)PYRENE | B64: 50-32-8 | C64: 4.9 E-7 @ 25 (C) | D64: 252.30 | E64: PAH | G64: C20 H12 | H64: 179 TO 179.3 | J64: 5 E-9 @ 20 | K64: 0.0038 @ 25 | L64: 2034B | M64: 5.98 | N64: 1032A | O64: NA | P64: 4B | Q64: NA | R64: 345B | S64: 5B
A65: BENZOTRICHLORIDE | B65: 98-07-7 | C65: 3.1 E-4 (C) | D65: 195.48 | E65: AROMATIC | F65: HALOGENATED | G65: C7 H5 CL3 | H65: -5.0 | I65: 220.8 | J65: 40 @ 119.8 | K65: INSOLUBLE | L65: 2033B | M65: 2.92 | N65: 163A | O65: NA | P65: NA | Q65: NA | R65: NA | S65: 5B
A66: BENZYL CHLORIDE | B66: 100-44-7 | C66: 5.1 E-3 (C) | D66: 126.59 | E66: AROMATIC | F66: HALOGENATED | G66: C7 H7 CL | H66: -43 | I66: 179 | J66: 1 @ 22 | K66: INSOLUBLE | L66: 2033B | M66: 2.30 | N66: 163A | O66: NA | P66: NA | Q66: NA | R66: 345B | S66: 5B
A67: BHC,gamma- | B67: 58-89-9 | C67: 4.93 E-7 @ 25 (C) | D67: 290.83 | E67: PESTICIDE | G67: C6 H6 CL6 | H67: 112.5 | I67: 323.4 | J67: 9.4 E-6 @ 20 | K67: 7 @ 20 | L67: 1018A | M67: 3.24 (C) | N67: 163A | O67: 4B | P67: NA | Q67: NA | R67: 4B | S67: 5B
A68: BIPHENYL | B68: 92-52-4 | C68: 4.08 E-4 @ 25 | D68: 154.20 | E68: AROMATIC | F68: HYDROCARBON | G68: C12 H10 | H68: 68.8 | I68: 255 | J68: 1 @ 70.6 | K68: 7.5 @ 25 | L68: 419A | M68: 3.95 | N68: 1032A | O68: 4B | P68: NA | Q68: NA | R68: NA | S68: 5B
A69: BIS(2-CHLOROETHYL)ETHER | B69: 111-44-4 | C69: 1.3 E-5 @ 20 (C) | D69: 143.01 | E69: ETHER | F69: HALOGENATED | G69: C4 H8 CL2 O | H69: -51.7 | I69: 178.8 | J69: 0.71 @ 20 | K69: 1.02 E 4 | L69: 2034B | M69: 1.58 (C) | N69: 379B | O69: NA | P69: 4B | Q69: NA | R69: 345B | S69: 5B
A70: BIS(2-ETHYLHEXYL)PHTHALATE | B70: 117-81-7 | C70: 3 E-7 @ 20 (C) | D70: 390.57 | E70: PHTHALATE | G70: C24 H38 O4 | H70: -50 | I70: 384 | J70: 1.2 @ 200 | K70: 0.4 & 1.3 @ 25 | L70: 2034B | M70: 5.3 | N70: 379B | O70: 4B | P70: NA | Q70: NA | R70: 4B | S70: 5B
A71: BIS(CHLOROMETHYL)ETHER | B71: 542-88-1 | C71: 2.1 E-4 @ 25 | D71: 114.96 | E71: ETHER | F71: HALOGENATED | G71: C2 H4 CL2 O | H71: -41.5 | I71: 104 | J71: 30 @ 22 | K71: 2.2 E 4 @ 25 | L71: 2034B | M71: -0.38 (C) | N71: 379B | O71: NA | P71: NA | Q71: NA | R71: 345B | S71: NA
A72: BROMOFORM | B72: 75-25-2 | C72: 5.32 E-4 @ 25 | D72: 252.73 | E72: HYDROCARBON | F72: HALOGENATED | G72: C H BR3 | H72: 8.3 | I72: 149.5 | J72: 5.6 @ 25 | K72: 3200 @ 30 | L72: 191D | M72: 2.30 (C) | N72: 379B | O72: 4B | P72: NA | Q72: NA | R72: NA | S72: 5B
A73: CARBON TETRACHLORIDE | B73: 56-23-5 | C73: 2.93 E-2 @ 25 | D73: 153.82 | E73: HYDROCARBON | F73: HALOGENATED | G73: C CL4 | H73: -23 | I73: 76.8 | J73: 113 @ 25 | K73: 800 @ 20 | L73: 191D | M73: 2.73 | N73: 1226A | O73: 4B | P73: 4B | Q73: 346B | R73: 4B | S73: NA
A74: CHLORDANE | B74: 57-74-9 | C74: 4.79 E-5 @ 25 | D74: 409.80 | E74: PESTICIDE | G74: C10 H6 CL8 | H74: 107 CIS; 103 TRANS | I74: 175 | J74: 1E-5 @ 25 | K74: 0.056 | L74: 191D | M74: 2.78 | N74: 378B | O74: 4B | P74: NA | Q74: 357B | R74: 4B | S74: 5B
A75: CHLORO-m-CRESOL,p- | B75: 59-50-7 | C75: 2.5 E-6 @ 20 (C) | D75: 142.59 | E75: PHENOLIC | F75: HALOGENATED | G75: C7 H7 CL O | H75: 66 | I75: 235 | K75: 3850 @ 20 | L75: 2034B | M75: 3.10 | N75: 163A | O75: NA | P75: NA | Q75: NA | R75: NA | S75: 5B
A76: CHLOROACETALDEHYDE | B76: 107-20-0 | C76: 1 E-3 @ 20 | D76: 78.50 | E76: ALDEHYDE | F76: HALOGENATED | G76: C2 H3 CL O | I76: 85 | J76: 100 @ 25 | L76: 2033B | M76: -3.8 (C) | N76: 2033B | O76: NA | P76: NA | Q76: NA | R76: NA | S76: 5B
A77: CHLOROBENZENE | B77: 108-90-7 | C77: 3.93 E-3 @ 25 | D77: 112.56 | E77: AROMATIC | F77: HALOGENATED | G77: C6 H5 CL | H77: -45.6 | I77: 132 | J77: 11.8 @ 25 | K77: 488 @ 25 | L77: 191D | M77: 2.84 | N77: 163A | O77: NA | P77: NA | Q77: 346B | R77: 345B | S77: 5B
A78: CHLORODIBROMOMETHANE | B78: 124-48-1 | C78: 7.83 E-4 @ 25 | D78: 208.28 | E78: HYDROCARBON | F78: HALOGENATED | G78: C H BR2 CL | H78: -22 | I78: 120 | J78: 15 @ 10.5 | L78: 191D | M78: 2.09 (C) | N78: 379B | O78: NA | P78: NA | Q78: NA | R78: 345B | S78: 5B
A79: CHLOROETHANE | B79: 75-00-3 | C79: 1.11 E-2 @ 24.8 | D79: 64.51 | E79: HYDROCARBON | F79: HALOGENATED | G79: C2 H5 CL | H79: -136.4 | I79: 12.3 | J79: 2660 @ 25 | K79: 5740 @ 20 | L79: 1034A | M79: 1.43 | N79: 338D | O79: NA | P79: NA | Q79: NA | R79: 345B | S79: NA
A80: CHLOROFORM | B80: 67-66-3 | C80: 3.39 E-3 @ 25 | D80: 119.38 | E80: HYDROCARBON | F80: HALOGENATED | G80: C H CL3 | H80: -63.5 | I80: 61.7 | J80: 160 @ 20 | K80: 9300 @ 25 | L80: 191D | M80: 1.97 | N80: 163A | O80: 4B | P80: NA | Q80: NA | R80: 345B | S80: 5B
A81: CHLOROPHENOL,2- | B81: 95-57-8 | C81: 1.03 E-5 @ 20 (C) | D81: 128.56 | E81: PHENOLIC | F81: HALOGENATED | G81: C6 H5 CL O | H81: 9.0 | I81: 174.9 | J81: 40 @ 82 | K81: 2.85 E 4 @ 20 | L81: 2034B | M81: 2.15 | N81: 163A | O81: NA | P81: NA | Q81: NA | R81: 345B | S81: 5B
A82: CHRYSENE | B82: 218-01-9 | C82: 1.05 E-6 @ 25 (C) | D82: 228.29 | E82: PAH | G82: C18 H12 | H82: 254 | I82: 448 | J82: 6.3 E-9 @ 25 | K82: 0.006 @ 25 | L82: 2034B | M82: 5.61 | N82: 379B | O82: NA | P82: NA | Q82: NA | R82: 345B | S82: 5B
A83: CUMENE | B83: 98-82-8 | C83: 1.46 E-2 @ 25 (C) | D83: 120.19 | E83: AROMATIC | F83: HYDROCARBON | G83: C9 H12 | H83: -96 | I83: 152.4 | J83: 3.2 @ 20 | K83: 50 @ 20 | L83: 1018A | M83: 3.66 | N83: 463A | O83: NA | P83: NA | Q83: NA | R83: NA | S83: 5B
A84: DDT,p,p'- | B84: 50-29-3 | C84: 3.89 E-5 @ 25 (C) | D84: 354.49 | E84: PESTICIDE | G84: C14 H9 CL5 | H84: 108 | I84: 260 | J84: 1.5 E-7 @ 20 | K84: 0.0031 @ 25 | L84: 1018A | M84: 6.19 | N84: 463A | O84: 4B | P84: NA | Q84: NA | R84: 4B | S84: 5B
A85: DI-n-BUTYL PHTHALATE | B85: 84-74-2 | C85: 2.8 E-7 @ 25 (C) | D85: 278.35 | E85: PHTHALATE | G85: C16 H22 O4 | H85: -35 | I85: 340 | J85: 0.1 @ 115 | K85: 400 @ 25 | L85: 2034B | M85: 5.2 (C) | N85: 379B | O85: 4B | P85: NA | Q85: NA | R85: 4B | S85: 5B
A86: DIBENZO(a,h)ANTHRACENE | B86: 53-70-3 | C86: 7.3 E-8 @ 25 (C) | D86: 278.35 | E86: PAH | G86: C22 H14 | H86: 266 | I86: 524 | K86: 0.0005 @ 25 | L86: 2034B | M86: 5.97 (C) | N86: 379B | O86: NA | P86: NA | Q86: NA | R86: 345B | S86: NA
A87: DICHLOROBENZENE,1,2- | B87: 95-50-1 | C87: 1.94 E-3 @ 25 | D87: 147.00 | E87: AROMATIC | F87: HALOGENATED | G87: C6 H4 CL2 | H87: -17.0 | I87: 180.5 | J87: 1.5 @ 25 | K87: 145 @ 25 | L87: 191D | M87: 3.38 | N87: 163A | O87: NA | P87: NA | Q87: 346B | R87: 345B | S87: 5B
A88: DICHLOROBENZENE,1,3- | B88: 541-73-1 | C88: 2.63 E-3 @ 25 | D88: 147.00 | E88: AROMATIC | F88: HALOGENATED | G88: C6 H4 CL2 | H88: -24.7 | I88: 173 | J88: 1.0 @ 12.1 | K88: 123 @ 25 | L88: 191D | M88: 3.38 | N88: 163A | O88: NA | P88: NA | Q88: 346B | R88: 345B | S88: 5B
A89: DICHLOROBENZENE,1,4- | B89: 106-46-7 | C89: 2.72 E-3 @ 25 | D89: 147.00 | E89: AROMATIC | F89: HALOGENATED | G89: C6 H4 CL2 | H89: 53.1 | I89: 174 | J89: 1.8 @ 30 | K89: 79 @ 25 | L89: 191D | M89: 3.39 | N89: 163A | O89: NA | P89: NA | Q89: 346B | R89: 345B | S89: 5B
A90: DICHLOROBROMOMETHANE | B90: 75-27-4 | C90: 2.12 E-3 @ 25 | D90: 163.83 | E90: HYDROCARBON | F90: HALOGENATED | G90: C H BR CL2 | H90: -55 | I90: 89.2 | J90: 50 @ 20 | L90: 191D | M90: 1.88 (C) | N90: 379B | O90: 4B | P90: NA | Q90: NA | R90: 4B | S90: 5B
A91: DICHLOROETHANE,1,1- | B91: 75-34-3 | C91: 5.45 E-3 @ 25 | D91: 98.96 | E91: HYDROCARBON | F91: HALOGENATED | G91: C2 H4 CL2 | H91: -97.0 | I91: 57.3 | J91: 234 @ 25 | K91: 5500 @ 20 | L91: 191D | M91: 1.79 | N91: 338D | O91: NA | P91: NA | Q91: NA | R91: 345B | S91: 5B
A92: DICHLOROETHANE,1,2- | B92: 107-06-2 | C92: 1.10 E-3 @ 25 | D92: 98.96 | E92: HYDROCARBON | F92: HALOGENATED | G92: C2 H4 CL2 | H92: -35.3 | I92: 83.5 | J92: 79 @ 25 | K92: 8690 @ 20 | L92: 191D | M92: 1.45 | N92: 1226A | O92: NA | P92: 4B | Q92: 346B | R92: 345B | S92: 5B
A93: DICHLOROETHYLENE,1,1- | B93: 75-35-4 | C93: 1.49 E-2 @ 25 | D93: 96.94 | E93: HYDROCARBON | F93: HALOGENATED | G93: C2 H2 CL2 | H93: -122.6 | I93: 31.6 | J93: 591 @ 25 | K93: 210 @ 25 | L93: 191D | M93: 1.48 | N93: 379B | O93: 4B | P93: 4B | Q93: 346B | R93: 4B | S93: 5B
A94: DICHLOROETHYLENE,1,2-CIS- | B94: 156-59-2 | C94: 4.08 E-3 @ 24.8 | D94: 96.94 | E94: HYDROCARBON | F94: HALOGENATED | G94: C2 H2 CL2 | H94: -81.5 | I94: 60 | J94: 202 @ 25 | K94: 800 @ 20 | L94: 1034A | N94: NA | O94: NA | P94: NA | Q94: 346B | R94: 345B | S94: NA
A95: DICHLOROETHYLENE,1,2-TRANS- | B95: 156-60-5 | C95: 5.32 E-3 @ 25 | D95: 96.94 | E95: HYDROCARBON | F95: HALOGENATED | G95: C2 H2 CL2 | H95: -50 | I95: 47.5 | J95: 331 @ 25 | K95: 600 @ 20 | L95: 191D | M95: 1.48 (C) | N95: 379B | O95: NA | P95: NA | Q95: 346B | R95: 345B | S95: 5B
A96: DICHLOROPHENOL,2,4- | B96: 120-83-2 | C96: 2.8 E-6 @ 20 (C) | D96: 163.0 | E96: PHENOLIC | F96: HALOGENATED | G96: C6 H4 CL2 O | H96: 45 | I96: 210 | J96: 1 @ 53 | K96: 4500 @ 25 | L96: 2034B | M96: 2.75 | N96: 379B | O96: 4B | P96: NA | Q96: NA | R96: 4B | S96: 5B
A97: DICHLOROPHENOL,2,6- | B97: 87-65-0 | C97: 4 E-5 (C) | D97: 163.00 | E97: PHENOLIC | F97: HALOGENATED | G97: C6 H4 CL2 O | H97: 65 TO 68 | I97: 218 TO 220 | J97: 1 @ 59.5 | L97: 2033B | M97: 2.88 | N97: 2033B | O97: NA | P97: NA | Q97: NA | R97: 345B | S97: 5B
A98: DICHLOROPROPANE,1,2- | B98: 78-87-5 | C98: 2.82 E-3 @ 25 | D98: 112.99 | E98: HYDROCARBON | F98: HALOGENATED | G98: C3 H6 CL2 | H98: -100.4 | I98: 96.4 | J98: 42 @ 20 | K98: 2700 @ 20 | L98: 191D | M98: 2.28 (C) | N98: 379B | O98: NA | P98: NA | Q98: 357B | R98: 345B | S98: 5B
A99: DICHLOROPROPYLENE,1,3- | B99: 542-75-6 | C99: 3.5 E-3 @ 25 | D99: 110.97 | E99: HYDROCARBON | F99: HALOGENATED | G99: C3 H4 CL2 | H99: <-50 | I99: 104.3 CIS; 112 TRANS | J99: 43 CIS; 34 TRANS @ 25 | K99: 2700 @ 25 APPROX | L99: 191D | M99: 1.98 (C) | N99: 379B | O99: NA | P99: NA | Q99: NA | R99: 345B | S99: 5B
A100: DIELDRIN | B100: 60-57-1 | C100: 5.84 E-5 @ 25 | D100: 380.93 | E100: PESTICIDE | G100: C12 H8 CL6 O | H100: 176 | J100: 1.8 E-7 @ 25 | K100: 0.186 @ 20 | L100: 191D | M100: 4.09 | N100: 2032B | O100: NA | P100: NA | Q100: NA | R100: 345B | S100: 5B
A101: PROPYLPHENOL,4- | B101: 645-56-7 | C101: 0.86 (C) | D101: 136.19 | E101: PHENOLIC | G101: C9 H12 O | H101: 22 | I101: 232.6 | K101: VERY SLIGHTLY SOLUBLE | L101: 163A | N101: NA | O101: NA | P101: NA | Q101: NA | R101: 345B | S101: NA
A102: HYDROXYBENZOIC ACID,4- | B102: 99-96-7 | C102: 1.58 | D102: 138.13 | E102: AROMATIC | F102: ACID | G102: C7 H6 O3 | H102: 213 TO 214 | K102: 8,000 | L102: 163A | N102: NA | O102: NA | P102: NA | Q102: NA | R102: NA | S102: 5B
A103: METHOXYPHENOL,4- | B103: 150-76-5 | C103: 1.34 | D103: 124.14 | E103: PHENOLIC | G103: C7 H8 O2 | H103: 55 TO 57 | I103: 243 | K103: 4 E 4 @ 25 | L103: 163A | N103: NA | O103: NA | P103: NA | Q103: NA | R103: NA | S103: 5B
A104: AMINOPHENOL,4- | B104: 123-30-8 | C104: 0.04 | D104: 109.13 | E104: PHENOLIC | F104: AMINE | G104: C6 H7 N O | H104: 190 | I104: 284 DECOMPOSES | K104: 6,500 @ 24 | L104: 163A | N104: NA | O104: NA | P104: NA | Q104: NA | R104: NA | S104: 5B
A105: PENTANEDIONE,2,4- | B105: 123-54-6 | C105: 1.90 TO 2.25 | D105: 100.11 | E105: KETONE | G105: C5 H8 O2 | H105: -23.1 | I105: 140.6 | K105: 1.25 E 5 @ 20 | L105: 163A | N105: NA | O105: NA | P105: NA | Q105: NA | R105: NA | S105: 5B
A106: ETHYLPHENOL,2- | B106: 90-00-6 | C106: 0.83/0.68 | D106: 122.17 | E106: PHENOLIC | G106: C8 H10 O | H106: -3.4 | I106: 204.5 | J106: 1 @ 46.2 | K106: INSOLUBLE | L106: 163A | N106: NA | O106: NA | P106: NA | Q106: NA | R106: NA | S106: NA
A107: METHOXYPHENOL,2- | B107: 90-05-1 | C107: 1.31/2.53 | D107: 124.14 | E107: PHENOLIC | G107: C7 H8 O2 | H107: 28 | I107: 205 | J107: 0.103 @ 25 | K107: 1.6 E 4 @ 15 | L107: 463A | N107: NA | O107: NA | P107: NA | Q107: NA | R107: NA | S107: 5B
A108: AMINOPHENOL,2- | B108: 95-55-6 | C108: 0.52/0.62 | D108: 109.13 | E108: PHENOLIC | F108: AMINE | G108: C6 H7 N O | H108: 170 TO 174 | I108: SUBLIMES | K108: 2 E 4 | L108: 163A | N108: NA | O108: NA | P108: NA | Q108: NA | R108: NA | S108: 5B
A109: TRICHLOROBENZENE,1,3,5- | B109: 108-70-3 | C109: 4.27 | D109: 181.45 | E109: AROMATIC | F109: HALOGENATED | G109: C6 H3 CL3 | H109: 63.4 | I109: 208.5 | K109: 5.8 @ 20 | L109: 1236A | N109: NA | O109: NA | P109: NA | Q109: NA | R109: 345B | S109: NA
